Body,BodyName,ServiceLabel,ServiceDivisionLabel,ExpenditureCategory,DetailedExpenditureType,DetailedExpenditureCode,DatePaid,TransactionNumber,NetAmount,CapitalOrRevenue,SupplierName
http://statistics.data.gov.uk/doc/local-authority/00DA,Leeds City Council,Central & Corporate,Commercial Services Trading Services,Supplies and Services,Operational Materials,205,14-Mar-14,1203-00001,351.81,R,A & A Electrical Distributors Ltd
http://statistics.data.gov.uk/doc/local-authority/00DA,Leeds City Council,Central & Corporate,Commercial Services Trading Services,Supplies and Services,Operational Materials,205,21-Mar-14,1203-00002,35.05,R,A & A Electrical Distributors Ltd
http://statistics.data.gov.uk/doc/local-authority/00DA,Leeds City Council,Childrens Services,Learning Skills & Universal,Supplies and Services,Bought In Professional Services,277,14-Mar-14,1203-00003,125,R,A Ajmal
http://statistics.data.gov.uk/doc/local-authority/00DA,Leeds City Council,City Development,Planning & Sustainable Development,Income,Planning Fees,939,13-Mar-14,1203-00004,178,R,REDACTED PERSONAL DATA
http://statistics.data.gov.uk/doc/local-authority/00DA,Leeds City Council,Central & Corporate,Commercial Services Trading Services,Supplies and Services,Operational Materials,205,07-Mar-14,1203-00005,347.44,R,A Andrews & Sons (Marbles & Tiles)
http://statistics.data.gov.uk/doc/local-authority/00DA,Leeds City Council,Environment & Housing,Streetscene Environmental Services,Income,Penalties  Fines & Car Parking Charges,934,06-Mar-14,1203-00006,2,R,REDACTED PERSONAL DATA
http://statistics.data.gov.uk/doc/local-authority/00DA,Leeds City Council,City Development,Highways,Supplies and Services,Other Hired And Contracted Services,265,25-Mar-14,1203-00007,1811.6,R,A D D Loop Cutting Services Ltd
http://statistics.data.gov.uk/doc/local-authority/00DA,Leeds City Council,City Development,Highways,Capital,Other Costs,7,25-Mar-14,1203-00008,1324.2,C,A D D Loop Cutting Services Ltd
http://statistics.data.gov.uk/doc/local-authority/00DA,Leeds City Council,City Development,Highways,Capital,Construction,3,25-Mar-14,1203-00009,725.95,C,A D D Loop Cutting Services Ltd
http://statistics.data.gov.uk/doc/local-authority/00DA,Leeds City Council,Adult Social Care,Roseville Enterprises,Supplies and Services,Operational Furniture And Equipment,203,07-Mar-14,1203-00010,2601.7,R,A D G Engineering Ltd
http://statistics.data.gov.uk/doc/local-authority/00DA,Leeds City Council,Adult Social Care,Roseville Enterprises,Supplies and Services,Operational Furniture And Equipment,203,07-Mar-14,1203-00011,655,R,A D G Engineering Ltd
http://statistics.data.gov.uk/doc/local-authority/00DA,Leeds City Council,Adult Social Care,Roseville Enterprises,Supplies and Services,Operational Furniture And Equipment,203,05-Mar-14,1203-00012,2700,R,A D G Engineering Ltd
http://statistics.data.gov.uk/doc/local-authority/00DA,Leeds City Council,Adult Social Care,Roseville Enterprises,Supplies and Services,Operational Furniture And Equipment,203,13-Mar-14,1203-00013,100,R,A D G Engineering Ltd
http://statistics.data.gov.uk/doc/local-authority/00DA,Leeds City Council,Childrens Services,Learning Skills & Universal,Third Party Payments,Services Rendered By Voluntary Sector,505,21-Mar-14,1203-00014,1041.78,R,A E Speight
http://statistics.data.gov.uk/doc/local-authority/00DA,Leeds City Council,Childrens Services,Learning Skills & Universal,Third Party Payments,Services Rendered By Other Organisations,511,21-Mar-14,1203-00015,2648.25,R,A E Speight
http://statistics.data.gov.uk/doc/local-authority/00DA,Leeds City Council,City Development,Highways,Capital,Construction,3,21-Mar-14,1203-00016,81478.28,C,A E Yates Ltd
http://statistics.data.gov.uk/doc/local-authority/00DA,Leeds City Council,City Development,Highways,Capital,Construction,3,04-Mar-14,1203-00017,53974.02,C,A E Yates Ltd
http://statistics.data.gov.uk/doc/local-authority/00DA,Leeds City Council,City Development,Recreation,Income,Swimming Bath Charges,923,06-Mar-14,1203-00018,75.6,R,REDACTED PERSONAL DATA
http://statistics.data.gov.uk/doc/local-authority/00DA,Leeds City Council,City Development,Recreation,Income,Swimming Bath Charges,923,27-Mar-14,1203-00019,10.8,R,REDACTED PERSONAL DATA
http://statistics.data.gov.uk/doc/local-authority/00DA,Leeds City Council,Childrens Services,Learning Skills & Universal,Third Party Payments,Services Rendered By Other Organisations,511,21-Mar-14,1203-00020,123.75,R,A Hodgson
http://statistics.data.gov.uk/doc/local-authority/00DA,Leeds City Council,Central & Corporate,Commercial Services Trading Services,Supplies and Services,Operational Materials,205,28-Mar-14,1203-00021,395,R,A J H  Pump Supply & Repair Ltd
http://statistics.data.gov.uk/doc/local-authority/00DA,Leeds City Council,Central & Corporate,Commercial Services Trading Services,Supplies and Services,Operational Materials,205,21-Mar-14,1203-00022,517,R,A J H  Pump Supply & Repair Ltd
http://statistics.data.gov.uk/doc/local-authority/00DA,Leeds City Council,Central & Corporate,Commercial Services Trading Services,Supplies and Services,Operational Materials,205,14-Mar-14,1203-00023,945,R,A J H  Pump Supply & Repair Ltd
http://statistics.data.gov.uk/doc/local-authority/00DA,Leeds City Council,Central & Corporate,Commercial Services Trading Services,Supplies and Services,Operational Materials,205,14-Mar-14,1203-00024,1050,R,A J H  Pump Supply & Repair Ltd
http://statistics.data.gov.uk/doc/local-authority/00DA,Leeds City Council,Central & Corporate,Commercial Services Trading Services,Supplies and Services,Operational Materials,205,14-Mar-14,1203-00025,795,R,A J H  Pump Supply & Repair Ltd
http://statistics.data.gov.uk/doc/local-authority/00DA,Leeds City Council,Central & Corporate,Commercial Services Trading Services,Supplies and Services,Operational Materials,205,14-Mar-14,1203-00026,837,R,A J H  Pump Supply & Repair Ltd
http://statistics.data.gov.uk/doc/local-authority/00DA,Leeds City Council,Central & Corporate,Commercial Services Trading Services,Supplies and Services,Operational Materials,205,14-Mar-14,1203-00027,1746,R,A J H  Pump Supply & Repair Ltd
http://statistics.data.gov.uk/doc/local-authority/00DA,Leeds City Council,Central & Corporate,Commercial Services Trading Services,Supplies and Services,Operational Materials,205,17-Mar-14,1203-00028,6600,R,A J H  Pump Supply & Repair Ltd
http://statistics.data.gov.uk/doc/local-authority/00DA,Leeds City Council,City Development,Economic Development,Supplies and Services,Resaleable Materials,204,26-Mar-14,1203-00029,196,R,A J Promotions
http://statistics.data.gov.uk/doc/local-authority/00DA,Leeds City Council,City Development, Libraries  Arts & Heritage,Supplies and Services,Art Galleries Total Stores,3,26-Mar-14,1203-00030,707.83,R,A J Promotions
http://statistics.data.gov.uk/doc/local-authority/00DA,Leeds City Council,City Development, Libraries  Arts & Heritage,Supplies and Services,Libraries,591,26-Mar-14,1203-00031,121.68,R,A J Promotions
http://statistics.data.gov.uk/doc/local-authority/00DA,Leeds City Council,Central & Corporate,Public Health,Third Party Payments,Public Health Commissioned Services,526,17-Mar-14,1203-00032,170,R,A Khan & K Muneer
http://statistics.data.gov.uk/doc/local-authority/00DA,Leeds City Council,Childrens Services,Learning Skills & Universal,Third Party Payments,Services Rendered By Other Organisations,511,10-Mar-14,1203-00033,302.5,R,A Little Something Extra Ltd
http://statistics.data.gov.uk/doc/local-authority/00DA,Leeds City Council,Childrens Services,Learning Skills & Universal,Third Party Payments,Services Rendered By Voluntary Sector,505,19-Mar-14,1203-00034,131.25,R,A Little Something Extra Ltd
http://statistics.data.gov.uk/doc/local-authority/00DA,Leeds City Council,Childrens Services,Learning Skills & Universal,Third Party Payments,Services Rendered By Voluntary Sector,505,04-Mar-14,1203-00035,200,R,A Little Something Extra Ltd
http://statistics.data.gov.uk/doc/local-authority/00DA,Leeds City Council,Childrens Services,Learning Skills & Universal,Third Party Payments,Services Rendered By Voluntary Sector,505,04-Mar-14,1203-00036,200,R,A Little Something Extra Ltd
http://statistics.data.gov.uk/doc/local-authority/00DA,Leeds City Council,Childrens Services,Learning Skills & Universal,Third Party Payments,Services Rendered By Voluntary Sector,505,04-Mar-14,1203-00037,300,R,A Little Something Extra Ltd
http://statistics.data.gov.uk/doc/local-authority/00DA,Leeds City Council,Childrens Services,Learning Skills & Universal,Third Party Payments,Services Rendered By Voluntary Sector,505,04-Mar-14,1203-00038,300,R,A Little Something Extra Ltd
http://statistics.data.gov.uk/doc/local-authority/00DA,Leeds City Council,Central & Corporate,Human Resources,Employees,Occupational Health,85,21-Mar-14,1203-00039,80,R,A M Smith
http://statistics.data.gov.uk/doc/local-authority/00DA,Leeds City Council,City Development,Recreation,Income,Sporting & Other Recreational Fees,928,06-Mar-14,1203-00040,26.4,R,REDACTED PERSONAL DATA
http://statistics.data.gov.uk/doc/local-authority/00DA,Leeds City Council,Central & Corporate,Customer Services,Supplies and Services,Other Hired And Contracted Services,265,06-Mar-14,1203-00041,269.75,R,A Mohammed
http://statistics.data.gov.uk/doc/local-authority/00DA,Leeds City Council,Central & Corporate,Customer Services,Supplies and Services,Other Hired And Contracted Services,265,06-Mar-14,1203-00042,106.25,R,A Mohammed
http://statistics.data.gov.uk/doc/local-authority/00DA,Leeds City Council,Central & Corporate,Customer Services,Supplies and Services,Other Hired And Contracted Services,265,06-Mar-14,1203-00043,311.25,R,A Musalam
http://statistics.data.gov.uk/doc/local-authority/00DA,Leeds City Council,Central & Corporate,Customer Services,Supplies and Services,Other Hired And Contracted Services,265,06-Mar-14,1203-00044,341,R,A Namaki
http://statistics.data.gov.uk/doc/local-authority/00DA,Leeds City Council,Central & Corporate,Public Health,Third Party Payments,Public Health Commissioned Services,526,04-Mar-14,1203-00045,1998.85,R,A P Health
http://statistics.data.gov.uk/doc/local-authority/00DA,Leeds City Council,Central & Corporate,Public Health,Third Party Payments,Public Health Commissioned Services,526,17-Mar-14,1203-00046,125,R,REDACTED PERSONAL DATA
http://statistics.data.gov.uk/doc/local-authority/00DA,Leeds City Council,Adult Social Care,Services For Older People Under 65 P/Dis,Transfer Payments,Direct Payments,626,12-Mar-14,1203-00047,1006.92,R,REDACTED PERSONAL DATA
http://statistics.data.gov.uk/doc/local-authority/00DA,Leeds City Council,City Development, Libraries  Arts & Heritage,Supplies and Services,Books & Audio-Visual Materials,206,06-Mar-14,1203-00048,121.6,R,A S Jhagra
http://statistics.data.gov.uk/doc/local-authority/00DA,Leeds City Council,Central & Corporate,Customer Services,Supplies and Services,Other Hired And Contracted Services,265,06-Mar-14,1203-00049,21.6,R,A Sheikholeslami
http://statistics.data.gov.uk/doc/local-authority/00DA,Leeds City Council,Central & Corporate,Customer Services,Supplies and Services,Other Hired And Contracted Services,265,06-Mar-14,1203-00050,65.25,R,A Sheikholeslami
http://statistics.data.gov.uk/doc/local-authority/00DA,Leeds City Council,Childrens Services,Learning Skills & Universal,Third Party Payments,Services Rendered By Other Organisations,511,20-Mar-14,1203-00051,407.4,R,A Spivey
http://statistics.data.gov.uk/doc/local-authority/00DA,Leeds City Council,Childrens Services,Learning Skills & Universal,Third Party Payments,Services Rendered By Other Organisations,511,20-Mar-14,1203-00052,160.05,R,A Spivey
http://statistics.data.gov.uk/doc/local-authority/00DA,Leeds City Council,Childrens Services,Safeguarding Targeted & Specialist,Third Party Payments,Adoptions - Allowances,560,20-Mar-14,1203-00053,500,R,REDACTED PERSONAL DATA
http://statistics.data.gov.uk/doc/local-authority/00DA,Leeds City Council,Adult Social Care,Social Services Support Services,Supplies and Services,Bought In Professional Services,277,13-Mar-14,1203-00054,170,R,A Waite & Son
http://statistics.data.gov.uk/doc/local-authority/00DA,Leeds City Council,Childrens Services,Learning Skills & Universal,Third Party Payments,Services Rendered By Other Organisations,511,21-Mar-14,1203-00055,59,R,A Walding
http://statistics.data.gov.uk/doc/local-authority/00DA,Leeds City Council,Childrens Services,Learning Skills & Universal,Third Party Payments,Services Rendered By Other Organisations,511,21-Mar-14,1203-00056,160.05,R,A Walding
http://statistics.data.gov.uk/doc/local-authority/00DA,Leeds City Council,Childrens Services,Learning Skills & Universal,Third Party Payments,Services Rendered By Other Organisations,511,21-Mar-14,1203-00057,651.75,R,A Walding
http://statistics.data.gov.uk/doc/local-authority/00DA,Leeds City Council,Childrens Services,Safeguarding Targeted & Specialist,Third Party Payments,Residence Order,557,18-Mar-14,1203-00058,650,R,A Walding
http://statistics.data.gov.uk/doc/local-authority/00DA,Leeds City Council,Childrens Services,Safeguarding Targeted & Specialist,Third Party Payments,Residence Order,557,10-Mar-14,1203-00059,1250,R,A Walding
http://statistics.data.gov.uk/doc/local-authority/00DA,Leeds City Council,Adult Social Care,Services For Older People Under 65 P/Dis,Transfer Payments,Direct Payments,626,19-Mar-14,1203-00060,2144.3,R,REDACTED PERSONAL DATA
http://statistics.data.gov.uk/doc/local-authority/00DA,Leeds City Council,Adult Social Care,Services For Older People Under 65 P/Dis,Transfer Payments,Direct Payments,626,12-Mar-14,1203-00061,1384.16,R,REDACTED PERSONAL DATA
http://statistics.data.gov.uk/doc/local-authority/00DA,Leeds City Council,Central & Corporate,Customer Services,Supplies and Services,Other Hired And Contracted Services,265,06-Mar-14,1203-00062,45.72,R,A Zeir
http://statistics.data.gov.uk/doc/local-authority/00DA,Leeds City Council,Childrens Services,Safeguarding Targeted & Specialist,Third Party Payments,Adoptions - Allowances,560,13-Mar-14,1203-00063,56.25,R,REDACTED PERSONAL DATA
http://statistics.data.gov.uk/doc/local-authority/00DA,Leeds City Council,Childrens Services,Safeguarding Targeted & Specialist,Third Party Payments,Adoptions - Allowances,560,13-Mar-14,1203-00064,1000,R,REDACTED PERSONAL DATA
http://statistics.data.gov.uk/doc/local-authority/00DA,Leeds City Council,Central & Corporate Functions,Commercial Services Trading Services  ,Supplies and Services,Operational Materials,205,12-Feb-14,1203-00065,124.52,R,A2b Office Technol
http://statistics.data.gov.uk/doc/local-authority/00DA,Leeds City Council,Central & Corporate,Commercial Services Trading Services,Supplies and Services,Operational Furniture And Equipment,203,13-Mar-14,1203-00066,101.7,R,A3 Machines Limited
http://statistics.data.gov.uk/doc/local-authority/00DA,Leeds City Council,Central & Corporate,Public Health,Third Party Payments,Public Health Commissioned Services,526,04-Mar-14,1203-00067,11.6,R,Aaa Healthcare Ltd
http://statistics.data.gov.uk/doc/local-authority/00DA,Leeds City Council,Adult Social Care,Services For Older People - 65 And Over  ,Supplies and Services,Subsistence,256,14-Feb-14,1203-00068,630,R,Aagrah Restaurant
http://statistics.data.gov.uk/doc/local-authority/00DA,Leeds City Council,Adult Social Care,Services For Older People Under 65 P/Dis,Transfer Payments,Personalised Budgets,627,12-Mar-14,1203-00069,822.4,R,REDACTED PERSONAL DATA
http://statistics.data.gov.uk/doc/local-authority/00DA,Leeds City Council,Childrens Services,Safeguarding Targeted & Specialist,Supplies and Services,Operational Furniture And Equipment,203,19-Mar-14,1203-00070,250,R,Aat (Gb) Ltd
http://statistics.data.gov.uk/doc/local-authority/00DA,Leeds City Council,City Development,Asset Management Services,Supplies and Services,Other Hired And Contracted Services,265,07-Mar-14,1203-00071,27.83,R,Abacus
http://statistics.data.gov.uk/doc/local-authority/00DA,Leeds City Council,Central & Corporate,Support And Facilities General Fund,Support Services,Legal Disbursements,411,20-Mar-14,1203-00072,14.51,R,Abacus Express Limited
http://statistics.data.gov.uk/doc/local-authority/00DA,Leeds City Council,Childrens Services,Safeguarding Targeted & Specialist,Support Services,Legal Disbursements,411,07-Mar-14,1203-00073,14.51,R,Abacus Express Limited
http://statistics.data.gov.uk/doc/local-authority/00DA,Leeds City Council,Childrens Services,Safeguarding Targeted & Specialist,Support Services,Legal Disbursements,411,13-Mar-14,1203-00074,14.51,R,Abacus Express Limited
http://statistics.data.gov.uk/doc/local-authority/00DA,Leeds City Council,City Development,Highways,Supplies and Services,Operational Furniture And Equipment,203,18-Mar-14,1203-00075,14.51,R,Abacus Express Limited
http://statistics.data.gov.uk/doc/local-authority/00DA,Leeds City Council,Central & Corporate,Leeds Shared Services,Supplies and Services,Computer Software & Equipment,214,10-Mar-14,1203-00076,7360,R,Abacus Software Ltd
http://statistics.data.gov.uk/doc/local-authority/00DA,Leeds City Council,Adult Social Care,Services For Older People - 65 And Over,Third Party Payments,Nursing Care Dementia,574,12-Mar-14,1203-00077,2305.64,R,Abbendon Nursing Home
http://statistics.data.gov.uk/doc/local-authority/00DA,Leeds City Council,City Development,Libraries  Arts & Heritage  ,Supplies and Services,Books & Audio-Visual Materials,206,05-Feb-14,1203-00078,16.97,R,Abbey House Museum
http://statistics.data.gov.uk/doc/local-authority/00DA,Leeds City Council,Environment & Housing,Environmental Action (South),Supplies and Services,Other Hired And Contracted Services,265,07-Mar-14,1203-00079,65.29,R,Abbey House Veterinary Hospital
http://statistics.data.gov.uk/doc/local-authority/00DA,Leeds City Council,Environment & Housing,Environmental Action (South),Supplies and Services,Other Hired And Contracted Services,265,28-Mar-14,1203-00080,80,R,Abbey House Veterinary Hospital
http://statistics.data.gov.uk/doc/local-authority/00DA,Leeds City Council,Adult Social Care,Services For Older People - 65 And Over,Third Party Payments,Residential Care Dementia,571,12-Mar-14,1203-00081,1142.2,R,Abbey Lea Residential Care Home
http://statistics.data.gov.uk/doc/local-authority/00DA,Leeds City Council,Childrens Services,Safeguarding Targeted & Specialist,Third Party Payments,Leaving Care Allowances,555,05-Mar-14,1203-00082,480,R,Abbey Taxis (Boston) Ltd
http://statistics.data.gov.uk/doc/local-authority/00DA,Leeds City Council,Childrens Services,Learning Skills & Universal,Third Party Payments,Services Rendered By Other Organisations,511,21-Mar-14,1203-00083,948.75,R,Abc Daycare
http://statistics.data.gov.uk/doc/local-authority/00DA,Leeds City Council,Childrens Services,Learning Skills & Universal,Third Party Payments,Services Rendered By Other Organisations,511,21-Mar-14,1203-00084,1031.25,R,Abc Nursery At Lufc
http://statistics.data.gov.uk/doc/local-authority/00DA,Leeds City Council,Environment & Housing,Statutory Housing,Supplies and Services,Other Hired And Contracted Services,265,13-Mar-14,1203-00085,500,R,Abdul Farrukh
http://statistics.data.gov.uk/doc/local-authority/00DA,Leeds City Council,Central & Corporate,Support And Facilities General Fund,Income,Admissions  Booking Fees & Ticket Sales,933,20-Mar-14,1203-00086,55,R,REDACTED PERSONAL DATA
http://statistics.data.gov.uk/doc/local-authority/00DA,Leeds City Council,Adult Social Care,Services For Older People - 65 And Over,Third Party Payments,Nursing Home,570,12-Mar-14,1203-00087,21275.91,R,Aberford Hall
http://statistics.data.gov.uk/doc/local-authority/00DA,Leeds City Council,Adult Social Care,Services For Older People - 65 And Over,Third Party Payments,Nursing Care Dementia,574,12-Mar-14,1203-00088,1836,R,Aberford Hall
http://statistics.data.gov.uk/doc/local-authority/00DA,Leeds City Council,Adult Social Care,Services For Older People - 65 And Over,Third Party Payments,Residential,580,12-Mar-14,1203-00089,6200.02,R,Aberford Hall
http://statistics.data.gov.uk/doc/local-authority/00DA,Leeds City Council,Central & Corporate,Commercial Services Trading Services,Supplies and Services,Operational Materials,205,12-Mar-14,1203-00090,3150,R,Abi Garage Doors Ltd
http://statistics.data.gov.uk/doc/local-authority/00DA,Leeds City Council,Central & Corporate,Commercial Services Trading Services,Supplies and Services,Operational Materials,205,26-Mar-14,1203-00091,12,R,Abi Garage Doors Ltd
http://statistics.data.gov.uk/doc/local-authority/00DA,Leeds City Council,Central & Corporate,Commercial Services Trading Services,Supplies and Services,Operational Materials,205,26-Mar-14,1203-00092,225,R,Abi Garage Doors Ltd
http://statistics.data.gov.uk/doc/local-authority/00DA,Leeds City Council as Accountable Body,Social Services Pooled Budgets,Jcs For People With Learning Disabilitie,Transfer Payments,Personal Budgets,627,12-Mar-14,1203-00093,913,R,REDACTED PERSONAL DATA
http://statistics.data.gov.uk/doc/local-authority/00DA,Leeds City Council,Childrens Services,Learning Skills & Universal,Third Party Payments,Services Rendered By Other Organisations,511,07-Mar-14,1203-00094,18869.6,R,Academic Appointments Ltd
http://statistics.data.gov.uk/doc/local-authority/00DA,Leeds City Council,Childrens Services,Safeguarding Targeted & Specialist,Employees,Agency Staff,8,03-Mar-14,1203-00095,3822.05,R,Academic Appointments Ltd
http://statistics.data.gov.uk/doc/local-authority/00DA,Leeds City Council,Childrens Services,Safeguarding Targeted & Specialist,Employees,Agency Staff,8,13-Mar-14,1203-00096,3275.74,R,Academic Appointments Ltd
http://statistics.data.gov.uk/doc/local-authority/00DA,Leeds City Council,Childrens Services,Safeguarding Targeted & Specialist,Employees,Agency Staff,8,21-Mar-14,1203-00097,3977.12,R,Academic Appointments Ltd
http://statistics.data.gov.uk/doc/local-authority/00DA,Leeds City Council,Childrens Services,Safeguarding Targeted & Specialist,Employees,Agency Staff,8,28-Mar-14,1203-00098,244.7,R,Academic Appointments Ltd
http://statistics.data.gov.uk/doc/local-authority/00DA,Leeds City Council,Childrens Services,Safeguarding Targeted & Specialist,Employees,Agency Staff,8,31-Mar-14,1203-00099,4318.95,R,Academic Appointments Ltd
http://statistics.data.gov.uk/doc/local-authority/00DA,Leeds City Council,Strategic Accounts,Miscellaneous,Supplies and Services,Non-Recurring Grants,227,31-Mar-14,1203-00100,100,R,Access Committee For Leeds
http://statistics.data.gov.uk/doc/local-authority/00DA,Leeds City Council,Central & Corporate,Executive Support,Supplies and Services,Computer Software & Equipment,214,14-Mar-14,1203-00101,7800,R,Access Intelligence Media And
http://statistics.data.gov.uk/doc/local-authority/00DA,Leeds City Council,City Development,Libraries  Arts & Heritage  ,Supplies and Services,Operational Materials,205,27-Feb-14,1203-00102,5.75,R,Access Locksmiths
http://statistics.data.gov.uk/doc/local-authority/00DA,Leeds City Council,Central & Corporate,Commercial Services Trading Services,Supplies and Services,Operational Materials,205,28-Mar-14,1203-00103,42.77,R,Access Locksmiths (Leeds) Limited
http://statistics.data.gov.uk/doc/local-authority/00DA,Leeds City Council,Central & Corporate,Commercial Services Trading Services,Supplies and Services,Operational Materials,205,28-Mar-14,1203-00104,52.28,R,Access Locksmiths (Leeds) Limited
http://statistics.data.gov.uk/doc/local-authority/00DA,Leeds City Council,Central & Corporate,Commercial Services Trading Services,Supplies and Services,Operational Materials,205,28-Mar-14,1203-00105,176,R,Access Locksmiths (Leeds) Limited
http://statistics.data.gov.uk/doc/local-authority/00DA,Leeds City Council,Central & Corporate,Commercial Services Trading Services,Supplies and Services,Operational Materials,205,28-Mar-14,1203-00106,18.76,R,Access Locksmiths (Leeds) Limited
http://statistics.data.gov.uk/doc/local-authority/00DA,Leeds City Council,Central & Corporate,Commercial Services Trading Services,Supplies and Services,Operational Materials,205,28-Mar-14,1203-00107,58.9,R,Access Locksmiths (Leeds) Limited
http://statistics.data.gov.uk/doc/local-authority/00DA,Leeds City Council,Central & Corporate,Commercial Services Trading Services,Supplies and Services,Operational Materials,205,28-Mar-14,1203-00108,13.25,R,Access Locksmiths (Leeds) Limited
http://statistics.data.gov.uk/doc/local-authority/00DA,Leeds City Council,Central & Corporate,Commercial Services Trading Services,Supplies and Services,Operational Materials,205,28-Mar-14,1203-00109,10.72,R,Access Locksmiths (Leeds) Limited
http://statistics.data.gov.uk/doc/local-authority/00DA,Leeds City Council,Central & Corporate,Commercial Services Trading Services,Supplies and Services,Operational Materials,205,28-Mar-14,1203-00110,312.48,R,Access Locksmiths (Leeds) Limited
http://statistics.data.gov.uk/doc/local-authority/00DA,Leeds City Council,Central & Corporate,Commercial Services Trading Services,Supplies and Services,Operational Materials,205,28-Mar-14,1203-00111,33.1,R,Access Locksmiths (Leeds) Limited
http://statistics.data.gov.uk/doc/local-authority/00DA,Leeds City Council,Central & Corporate,Commercial Services Trading Services,Supplies and Services,Operational Materials,205,28-Mar-14,1203-00112,33.33,R,Access Locksmiths (Leeds) Limited
http://statistics.data.gov.uk/doc/local-authority/00DA,Leeds City Council,Central & Corporate,Commercial Services Trading Services,Supplies and Services,Operational Materials,205,04-Mar-14,1203-00113,42.72,R,Access Locksmiths (Leeds) Limited
http://statistics.data.gov.uk/doc/local-authority/00DA,Leeds City Council,Central & Corporate,Commercial Services Trading Services,Supplies and Services,Operational Materials,205,06-Mar-14,1203-00114,78.12,R,Access Locksmiths (Leeds) Limited
http://statistics.data.gov.uk/doc/local-authority/00DA,Leeds City Council,Central & Corporate,Commercial Services Trading Services,Supplies and Services,Operational Materials,205,06-Mar-14,1203-00115,13.8,R,Access Locksmiths (Leeds) Limited
http://statistics.data.gov.uk/doc/local-authority/00DA,Leeds City Council,Central & Corporate,Commercial Services Trading Services,Supplies and Services,Operational Materials,205,06-Mar-14,1203-00116,2.5,R,Access Locksmiths (Leeds) Limited
http://statistics.data.gov.uk/doc/local-authority/00DA,Leeds City Council,Environment & Housing,Hra,Supplies and Services,Teaching Furniture & Equipment,207,07-Mar-14,1203-00117,15,R,Access Locksmiths (Leeds) Limited
http://statistics.data.gov.uk/doc/local-authority/00DA,Leeds City Council,Environment & Housing,Hra,Supplies and Services,Operational Materials,205,28-Mar-14,1203-00118,103.7,R,Access Locksmiths (Leeds) Limited
http://statistics.data.gov.uk/doc/local-authority/00DA,Leeds City Council,Environment & Housing,Hra,Supplies and Services,Operational Materials,205,21-Mar-14,1203-00119,466.65,R,Access Locksmiths (Leeds) Limited
http://statistics.data.gov.uk/doc/local-authority/00DA,Leeds City Council,Environment & Housing,Hra,Supplies and Services,Operational Materials,205,07-Mar-14,1203-00120,2.5,R,Access Locksmiths (Leeds) Limited
http://statistics.data.gov.uk/doc/local-authority/00DA,Leeds City Council,Environment & Housing,Hra,Supplies and Services,Operational Materials,205,06-Mar-14,1203-00121,37.5,R,Access Locksmiths (Leeds) Limited
http://statistics.data.gov.uk/doc/local-authority/00DA,Leeds City Council,Environment & Housing,Hra,Supplies and Services,Office Furniture & Equipment,201,12-Mar-14,1203-00122,31.11,R,Access Locksmiths (Leeds) Limited
http://statistics.data.gov.uk/doc/local-authority/00DA,Leeds City Council,Environment & Housing,Hra,Supplies and Services,Office Furniture & Equipment,201,07-Mar-14,1203-00123,140.99,R,Access Locksmiths (Leeds) Limited
http://statistics.data.gov.uk/doc/local-authority/00DA,Leeds City Council,Environment & Housing,Hra,Premises,Fixtures & Fittings,131,21-Mar-14,1203-00124,32.4,R,Access Locksmiths (Leeds) Limited
http://statistics.data.gov.uk/doc/local-authority/00DA,Leeds City Council,Environment & Housing,Hra,Premises,Roads Paths Seats & Shelters,113,21-Mar-14,1203-00125,27.2,R,Access Locksmiths (Leeds) Limited
http://statistics.data.gov.uk/doc/local-authority/00DA,Leeds City Council,Environment & Housing,Hra,Premises,Roads Paths Seats & Shelters,113,21-Mar-14,1203-00126,10.45,R,Access Locksmiths (Leeds) Limited
http://statistics.data.gov.uk/doc/local-authority/00DA,Leeds City Council,Environment & Housing,Hra,Premises,General Maintenance,104,28-Mar-14,1203-00127,138.52,R,Access Locksmiths (Leeds) Limited
http://statistics.data.gov.uk/doc/local-authority/00DA,Leeds City Council,Environment & Housing,Hra,Premises,General Maintenance,104,28-Mar-14,1203-00128,105.3,R,Access Locksmiths (Leeds) Limited
http://statistics.data.gov.uk/doc/local-authority/00DA,Leeds City Council,Environment & Housing,Hra,Premises,General Maintenance,104,04-Mar-14,1203-00129,95.69,R,Access Locksmiths (Leeds) Limited
http://statistics.data.gov.uk/doc/local-authority/00DA,Leeds City Council,Environment & Housing,Hra,Premises,General Maintenance,104,04-Mar-14,1203-00130,211.14,R,Access Locksmiths (Leeds) Limited
http://statistics.data.gov.uk/doc/local-authority/00DA,Leeds City Council,Environment & Housing,Hra,Premises,General Maintenance,104,19-Mar-14,1203-00131,401,R,Access Locksmiths (Leeds) Limited
http://statistics.data.gov.uk/doc/local-authority/00DA,Leeds City Council,Environment & Housing,South South East,Capital,Other Costs,7,21-Mar-14,1203-00132,3989.31,C,Access Locksmiths (Leeds) Limited
http://statistics.data.gov.uk/doc/local-authority/00DA,Leeds City Council,Central & Corporate,Commercial Services Trading Services,Supplies and Services,Other Hired And Contracted Services,265,06-Mar-14,1203-00133,85,R,Access Opening Systems Limited
http://statistics.data.gov.uk/doc/local-authority/00DA,Leeds City Council,Central & Corporate,Commercial Services Trading Services,Supplies and Services,Operational Materials,205,28-Mar-14,1203-00134,9013,R,Access Opening Systems Limited
http://statistics.data.gov.uk/doc/local-authority/00DA,Leeds City Council,Central & Corporate,Commercial Services Trading Services,Supplies and Services,Operational Materials,205,28-Mar-14,1203-00135,63,R,Access Opening Systems Limited
http://statistics.data.gov.uk/doc/local-authority/00DA,Leeds City Council,Central & Corporate,Commercial Services Trading Services,Supplies and Services,Operational Materials,205,28-Mar-14,1203-00136,31.5,R,Access Opening Systems Limited
http://statistics.data.gov.uk/doc/local-authority/00DA,Leeds City Council,Central & Corporate,Commercial Services Trading Services,Supplies and Services,Operational Materials,205,28-Mar-14,1203-00137,35.24,R,Access Opening Systems Limited
http://statistics.data.gov.uk/doc/local-authority/00DA,Leeds City Council,Central & Corporate,Commercial Services Trading Services,Supplies and Services,Operational Materials,205,12-Mar-14,1203-00138,50.34,R,Access Opening Systems Limited
http://statistics.data.gov.uk/doc/local-authority/00DA,Leeds City Council,Central & Corporate,Commercial Services Trading Services,Supplies and Services,Operational Materials,205,12-Mar-14,1203-00139,29.5,R,Access Opening Systems Limited
http://statistics.data.gov.uk/doc/local-authority/00DA,Leeds City Council,Central & Corporate,Commercial Services Trading Services,Supplies and Services,Operational Materials,205,12-Mar-14,1203-00140,20.87,R,Access Opening Systems Limited
http://statistics.data.gov.uk/doc/local-authority/00DA,Leeds City Council,Central & Corporate,Commercial Services Trading Services,Supplies and Services,Operational Materials,205,06-Mar-14,1203-00141,134,R,Access Opening Systems Limited
http://statistics.data.gov.uk/doc/local-authority/00DA,Leeds City Council,Environment & Housing,Parks & Countryside,Supplies and Services,Operational Materials,205,12-Mar-14,1203-00142,1464,R,Ace Engineers (Morley) Ltd
http://statistics.data.gov.uk/doc/local-authority/00DA,Leeds City Council,Environment & Housing,Parks & Countryside,Supplies and Services,Operational Materials,205,26-Mar-14,1203-00143,3882,R,Ace Engineers (Morley) Ltd
http://statistics.data.gov.uk/doc/local-authority/00DA,Leeds City Council,Central & Corporate,Commercial Services General Fund,Transport,Private Hire,360,03-Mar-14,1203-00144,990,R,Ace Taxis Wakefield Ltd
http://statistics.data.gov.uk/doc/local-authority/00DA,Leeds City Council,Central & Corporate,Commercial Services General Fund,Transport,Private Hire,360,31-Mar-14,1203-00145,840,R,Ace Taxis Wakefield Ltd
http://statistics.data.gov.uk/doc/local-authority/00DA,Leeds City Council,Childrens Services,Safeguarding Targeted & Specialist,Third Party Payments,SEN Placements,566,07-Mar-14,1203-00146,18332,R,Ackworth School
http://statistics.data.gov.uk/doc/local-authority/00DA,Leeds City Council,Adult Social Care,Services For Older People - 65 And Over,Third Party Payments,Residential Care Dementia,571,13-Mar-14,1203-00147,3192.5,R,Acorn Nursing Home
http://statistics.data.gov.uk/doc/local-authority/00DA,Leeds City Council,Childrens Services,Learning Skills & Universal,Third Party Payments,Services Rendered By Other Organisations,511,21-Mar-14,1203-00148,2203.56,R,Acorns Nursery
http://statistics.data.gov.uk/doc/local-authority/00DA,Leeds City Council,Adult Social Care,Services For Adults Under 65 Mental/Dis,Third Party Payments,Residential,580,12-Mar-14,1203-00149,4258.12,R,Acre Green
http://statistics.data.gov.uk/doc/local-authority/00DA,Leeds City Council,Adult Social Care,Services For Older People - 65 And Over,Third Party Payments,Residential,580,12-Mar-14,1203-00150,9549.52,R,Acre Green
http://statistics.data.gov.uk/doc/local-authority/00DA,Leeds City Council,Adult Social Care,Services For Older People - 65 And Over,Third Party Payments,Nursing Home,570,12-Mar-14,1203-00151,22475.06,R,Acre Green
http://statistics.data.gov.uk/doc/local-authority/00DA,Leeds City Council,Adult Social Care,Services For Older People Under 65 P/Dis,Third Party Payments,Nursing Home,570,12-Mar-14,1203-00152,1350,R,Acre Green
http://statistics.data.gov.uk/doc/local-authority/00DA,Leeds City Council,Childrens Services,Safeguarding Targeted & Specialist,Third Party Payments,Independent Fostering Agencies,509,21-Mar-14,1203-00153,4199.44,R,Action For Children
http://statistics.data.gov.uk/doc/local-authority/00DA,Leeds City Council,Childrens Services,Safeguarding Targeted & Specialist,Third Party Payments,Independent Fostering Agencies,509,21-Mar-14,1203-00154,4314.24,R,Action For Children
http://statistics.data.gov.uk/doc/local-authority/00DA,Leeds City Council,Childrens Services,Safeguarding Targeted & Specialist,Third Party Payments,Independent Fostering Agencies,509,21-Mar-14,1203-00155,4663.96,R,Action For Children
http://statistics.data.gov.uk/doc/local-authority/00DA,Leeds City Council,Childrens Services,Safeguarding Targeted & Specialist,Third Party Payments,Independent Fostering Agencies,509,27-Mar-14,1203-00156,1400,R,Action For Children Services Ltd
http://statistics.data.gov.uk/doc/local-authority/00DA,Leeds City Council,Childrens Services,Safeguarding Targeted & Specialist,Third Party Payments,Interagency Adoptions,559,21-Mar-14,1203-00157,1194,R,Action For Children Services Ltd
http://statistics.data.gov.uk/doc/local-authority/00DA,Leeds City Council,Environment & Housing,Health & Environmental Action,Supplies and Services,Other Hired And Contracted Services,265,05-Mar-14,1203-00158,452.41,R,Action On Hearing Loss
http://statistics.data.gov.uk/doc/local-authority/00DA,Leeds City Council,Childrens Services,Learning Skills & Universal,Supplies and Services,Operational Furniture And Equipment,203,18-Mar-14,1203-00159,41.66,R,Activ8 Sporting Solutions Ltd
http://statistics.data.gov.uk/doc/local-authority/00DA,Leeds City Council,Environment & Housing,Hra,Premises,Grounds Maintenance Work,111,28-Mar-14,1203-00160,240,R,Active Cleaning Solutions Ltd
http://statistics.data.gov.uk/doc/local-authority/00DA,Leeds City Council,Environment & Housing,Hra,Supplies and Services,Grant Related Expenditure,298,28-Mar-14,1203-00161,390,R,Active Cleaning Solutions Ltd
http://statistics.data.gov.uk/doc/local-authority/00DA,Leeds City Council,Childrens Services,Learning Skills & Universal,Third Party Payments,Services Rendered By Other Organisations,511,21-Mar-14,1203-00162,1317.38,R,Active Kids Day Nursery
http://statistics.data.gov.uk/doc/local-authority/00DA,Leeds City Council as Accountable Body,Social Services Pooled Budgets,Leeds Community Equip Store Pooled Budgt,Supplies and Services,Other Equipment,203,28-Mar-14,1203-00163,42.04,R,Active Mobility Centre Ltd
http://statistics.data.gov.uk/doc/local-authority/00DA,Leeds City Council,Environment & Housing,Parks & Countryside,Supplies and Services,Bought In Professional Services,277,06-Mar-14,1203-00164,4261.58,R,REDACTED COMMERCIAL CONFIDENTIALITY
http://statistics.data.gov.uk/doc/local-authority/00DA,Leeds City Council,Central & Corporate,Executive Support,Supplies and Services,Office Consumables,210,12-Mar-14,1203-00165,94.7,R,Ad3 Envelope Printers Limited
http://statistics.data.gov.uk/doc/local-authority/00DA,Leeds City Council,Central & Corporate,Support And Facilities General Fund,Supplies and Services,Other Hired And Contracted Services,265,21-Mar-14,1203-00166,107,R,Ad3 Envelope Printers Limited
http://statistics.data.gov.uk/doc/local-authority/00DA,Leeds City Council,Environment & Housing,Statutory Housing,Supplies and Services,Other Hired And Contracted Services,265,03-Mar-14,1203-00167,500,R,Ada Glossop Ltd
http://statistics.data.gov.uk/doc/local-authority/00DA,Leeds City Council,Environment & Housing,Statutory Housing,Supplies and Services,Other Hired And Contracted Services,265,03-Mar-14,1203-00168,450,R,Ada Glossop Ltd
http://statistics.data.gov.uk/doc/local-authority/00DA,Leeds City Council,Adult Social Care,Assessment And Care Management,Transfer Payments,Direct Payments,626,14-Mar-14,1203-00169,380,R,REDACTED PERSONAL DATA
http://statistics.data.gov.uk/doc/local-authority/00DA,Leeds City Council,Adult Social Care,Services For Older People Under 65 P/Dis,Transfer Payments,Personalised Budgets,627,12-Mar-14,1203-00170,713.88,R,REDACTED PERSONAL DATA
http://statistics.data.gov.uk/doc/local-authority/00DA,Leeds City Council as Accountable Body,Social Services Pooled Budgets,Jcs For People With Learning Disabilitie,Transfer Payments,Direct Payments,626,12-Mar-14,1203-00171,1570.68,R,REDACTED PERSONAL DATA
http://statistics.data.gov.uk/doc/local-authority/00DA,Leeds City Council,Adult Social Care,Services For Older People Under 65 P/Dis,Transfer Payments,Personalised Budgets,627,12-Mar-14,1203-00172,576,R,REDACTED PERSONAL DATA
http://statistics.data.gov.uk/doc/local-authority/00DA,Leeds City Council,Adult Social Care,Services For Adults Under 65 Mental/Dis,Transfer Payments,Direct Payments,626,12-Mar-14,1203-00173,444.4,R,REDACTED PERSONAL DATA
http://statistics.data.gov.uk/doc/local-authority/00DA,Leeds City Council,Adult Social Care,Social Services Support Services,Support Services,Legal Disbursements,411,14-Mar-14,1203-00174,637.5,R,Adam Fullwood
http://statistics.data.gov.uk/doc/local-authority/00DA,Leeds City Council,City Development,Recreation,Employees,Training Costs,71,14-Mar-14,1203-00175,40.75,R,REDACTED PERSONAL DATA
http://statistics.data.gov.uk/doc/local-authority/00DA,Leeds City Council as Accountable Body,Social Services Pooled Budgets,Jcs For People With Learning Disabilitie,Transfer Payments,Direct Payments,626,12-Mar-14,1203-00176,859.6,R,REDACTED PERSONAL DATA
http://statistics.data.gov.uk/doc/local-authority/00DA,Leeds City Council,Central & Corporate,Information Technology,Supplies and Services,Computer Software & Equipment,214,07-Mar-14,1203-00177,2792.18,R,Adatis
http://statistics.data.gov.uk/doc/local-authority/00DA,Leeds City Council,Central & Corporate,Public Health,Third Party Payments,Public Health Commissioned Services,526,17-Mar-14,1203-00178,4563.21,R,Addlestone Moumouris Orme Sixsmith
http://statistics.data.gov.uk/doc/local-authority/00DA,Leeds City Council,Childrens Services,Learning Skills & Universal,Employees,Agency Staff,8,07-Mar-14,1203-00179,402.48,R,Adecco Uk Ltd
http://statistics.data.gov.uk/doc/local-authority/00DA,Leeds City Council,Childrens Services,Learning Skills & Universal,Employees,Agency Staff,8,07-Mar-14,1203-00180,350.88,R,Adecco Uk Ltd
http://statistics.data.gov.uk/doc/local-authority/00DA,Leeds City Council,Environment & Housing,Streetscene Environmental Services,Income,Penalties  Fines & Car Parking Charges,934,06-Mar-14,1203-00181,10,R,REDACTED PERSONAL DATA
http://statistics.data.gov.uk/doc/local-authority/00DA,Leeds City Council,Childrens Services,Learning Skills & Universal,Third Party Payments,Services Rendered By Voluntary Sector,505,21-Mar-14,1203-00182,4410.86,R,Adel Pre School
http://statistics.data.gov.uk/doc/local-authority/00DA,Leeds City Council,Adult Social Care,Services For Older People Under 65 P/Dis,Transfer Payments,Personalised Budgets,627,12-Mar-14,1203-00183,1866.32,R,REDACTED PERSONAL DATA
http://statistics.data.gov.uk/doc/local-authority/00DA,Leeds City Council,Adult Social Care,Services For Older People - 65 And Over,Third Party Payments,Residential Care Dementia,571,12-Mar-14,1203-00184,1269.04,R,Aden House
http://statistics.data.gov.uk/doc/local-authority/00DA,Leeds City Council,Adult Social Care,Services For Older People - 65 And Over,Third Party Payments,Nursing Home,570,12-Mar-14,1203-00185,1290,R,Aden House
http://statistics.data.gov.uk/doc/local-authority/00DA,Leeds City Council,Central & Corporate,Commercial Services Trading Services,Supplies and Services,Operational Materials,205,28-Mar-14,1203-00186,72.77,R,Adi Global
http://statistics.data.gov.uk/doc/local-authority/00DA,Leeds City Council,Central & Corporate,Commercial Services Trading Services,Supplies and Services,Operational Materials,205,26-Mar-14,1203-00187,7.42,R,Adi Global
http://statistics.data.gov.uk/doc/local-authority/00DA,Leeds City Council,Central & Corporate,Commercial Services Trading Services,Supplies and Services,Operational Materials,205,26-Mar-14,1203-00188,36.15,R,Adi Global
http://statistics.data.gov.uk/doc/local-authority/00DA,Leeds City Council,Central & Corporate,Commercial Services Trading Services,Supplies and Services,Operational Materials,205,21-Mar-14,1203-00189,22.69,R,Adi Global
http://statistics.data.gov.uk/doc/local-authority/00DA,Leeds City Council,Central & Corporate,Commercial Services Trading Services,Supplies and Services,Operational Materials,205,14-Mar-14,1203-00190,28.2,R,Adi Global
http://statistics.data.gov.uk/doc/local-authority/00DA,Leeds City Council,Central & Corporate,Commercial Services Trading Services,Supplies and Services,Operational Materials,205,14-Mar-14,1203-00191,88,R,Adi Global
http://statistics.data.gov.uk/doc/local-authority/00DA,Leeds City Council,Central & Corporate,Commercial Services Trading Services,Supplies and Services,Operational Materials,205,07-Mar-14,1203-00192,20.5,R,Adi Global
http://statistics.data.gov.uk/doc/local-authority/00DA,Leeds City Council,Central & Corporate,Commercial Services Trading Services,Supplies and Services,Operational Materials,205,07-Mar-14,1203-00193,990,R,Adi Global
http://statistics.data.gov.uk/doc/local-authority/00DA,Leeds City Council,Central & Corporate,Commercial Services Trading Services,Supplies and Services,Operational Materials,205,07-Mar-14,1203-00194,990,R,Adi Global
http://statistics.data.gov.uk/doc/local-authority/00DA,Leeds City Council,Central & Corporate,Commercial Services Trading Services,Supplies and Services,Operational Materials,205,07-Mar-14,1203-00195,821.09,R,Adi Global
http://statistics.data.gov.uk/doc/local-authority/00DA,Leeds City Council,Central & Corporate,Commercial Services Trading Services,Supplies and Services,Operational Materials,205,11-Mar-14,1203-00196,52.8,R,Adi Global
http://statistics.data.gov.uk/doc/local-authority/00DA,Leeds City Council,Central & Corporate,Commercial Services Trading Services,Supplies and Services,Operational Materials,205,05-Mar-14,1203-00197,903.22,R,Adi Global
http://statistics.data.gov.uk/doc/local-authority/00DA,Leeds City Council,Central & Corporate,Commercial Services Trading Services,Supplies and Services,Operational Materials,205,11-Mar-14,1203-00198,28.38,R,Adi Global
http://statistics.data.gov.uk/doc/local-authority/00DA,Leeds City Council,City Development,Highways,Capital,Construction,3,26-Mar-14,1203-00199,120,C,Adi Global
http://statistics.data.gov.uk/doc/local-authority/00DA,Leeds City Council,Environment & Housing,Community Safety,Supplies and Services,Other Hired And Contracted Services,265,28-Mar-14,1203-00200,149.43,R,Adi Global
http://statistics.data.gov.uk/doc/local-authority/00DA,Leeds City Council,Central & Corporate,Commercial Services Trading Services,Supplies and Services,Other Hired And Contracted Services,265,12-Mar-14,1203-00201,180,R,Admas Limited
http://statistics.data.gov.uk/doc/local-authority/00DA,Leeds City Council,Central & Corporate,Commercial Services Trading Services,Supplies and Services,Other Hired And Contracted Services,265,12-Mar-14,1203-00202,180,R,Admas Limited
http://statistics.data.gov.uk/doc/local-authority/00DA,Leeds City Council,Central & Corporate,Commercial Services Trading Services,Supplies and Services,Other Hired And Contracted Services,265,14-Mar-14,1203-00203,180,R,Admas Limited
http://statistics.data.gov.uk/doc/local-authority/00DA,Leeds City Council,Central & Corporate,Commercial Services Trading Services,Supplies and Services,Other Hired And Contracted Services,265,21-Mar-14,1203-00204,180,R,Admas Limited
http://statistics.data.gov.uk/doc/local-authority/00DA,Leeds City Council,Central & Corporate,Commercial Services Trading Services,Supplies and Services,Other Hired And Contracted Services,265,21-Mar-14,1203-00205,180,R,Admas Limited
http://statistics.data.gov.uk/doc/local-authority/00DA,Leeds City Council,Childrens Services,Safeguarding Targeted & Specialist,Third Party Payments,Interagency Adoptions,559,12-Mar-14,1203-00206,750,R,Adoption Matters Northwest
http://statistics.data.gov.uk/doc/local-authority/00DA,Leeds City Council,Childrens Services,Safeguarding Targeted & Specialist,Third Party Payments,Interagency Adoptions,559,25-Mar-14,1203-00207,1194.42,R,Adoption Matters Northwest
http://statistics.data.gov.uk/doc/local-authority/00DA,Leeds City Council,Childrens Services,Safeguarding Targeted & Specialist,Third Party Payments,Interagency Adoptions,559,14-Mar-14,1203-00208,3750,R,Adoption Matters Northwest
http://statistics.data.gov.uk/doc/local-authority/00DA,Leeds City Council,Childrens Services,Safeguarding Targeted & Specialist,Third Party Payments,Adoptions - Allowances,560,12-Mar-14,1203-00209,286.5,R,Adoption Matters Northwest
http://statistics.data.gov.uk/doc/local-authority/00DA,Leeds City Council,Childrens Services,Safeguarding Targeted & Specialist,Third Party Payments,Interagency Adoptions,559,05-Mar-14,1203-00210,550,R,Adoption Uk
http://statistics.data.gov.uk/doc/local-authority/00DA,Leeds City Council,Environment & Housing,Parks & Countryside,Supplies and Services,Operational Materials,205,14-Mar-14,1203-00211,265,R,Ad-Options Ltd
http://statistics.data.gov.uk/doc/local-authority/00DA,Leeds City Council as Accountable Body,Social Services Pooled Budgets,Jcs For People With Learning Disabilitie,Third Party Payments,Residential,580,20-Mar-14,1203-00212,2453.14,R,REDACTED PERSONAL DATA
http://statistics.data.gov.uk/doc/local-authority/00DA,Leeds City Council,Central & Corporate,Commercial Services Trading Services,Supplies and Services,Other Hired And Contracted Services,265,18-Mar-14,1203-00213,240,R,Adrian Freeman T/A Beacon
http://statistics.data.gov.uk/doc/local-authority/00DA,Leeds City Council,Central & Corporate,Commercial Services Trading Services,Supplies and Services,Other Hired And Contracted Services,265,18-Mar-14,1203-00214,3350,R,Adrian Freeman T/A Beacon
http://statistics.data.gov.uk/doc/local-authority/00DA,Leeds City Council,Central & Corporate,Commercial Services Trading Services,Supplies and Services,Other Hired And Contracted Services,265,18-Mar-14,1203-00215,3456,R,Adrian Freeman T/A Beacon
http://statistics.data.gov.uk/doc/local-authority/00DA,Leeds City Council,Central & Corporate,Commercial Services Trading Services,Supplies and Services,Other Hired And Contracted Services,265,18-Mar-14,1203-00216,3557.4,R,Adrian Freeman T/A Beacon
http://statistics.data.gov.uk/doc/local-authority/00DA,Leeds City Council,Central & Corporate,Commercial Services Trading Services,Supplies and Services,Other Hired And Contracted Services,265,18-Mar-14,1203-00217,3456,R,Adrian Freeman T/A Beacon
http://statistics.data.gov.uk/doc/local-authority/00DA,Leeds City Council,Central & Corporate,Commercial Services Trading Services,Supplies and Services,Other Hired And Contracted Services,265,07-Mar-14,1203-00218,985,R,Adrian Freeman T/A Beacon
http://statistics.data.gov.uk/doc/local-authority/00DA,Leeds City Council,Central & Corporate,Commercial Services Trading Services,Supplies and Services,Other Hired And Contracted Services,265,11-Mar-14,1203-00219,1247,R,Adrian Freeman T/A Beacon
http://statistics.data.gov.uk/doc/local-authority/00DA,Leeds City Council,Central & Corporate,Commercial Services Trading Services,Supplies and Services,Other Hired And Contracted Services,265,18-Mar-14,1203-00220,3456,R,Adrian Freeman T/A Beacon
http://statistics.data.gov.uk/doc/local-authority/00DA,Leeds City Council as Accountable Body,Social Services Pooled Budgets,Jcs For People With Learning Disabilitie,Third Party Payments,Residential,580,20-Mar-14,1203-00221,11766.72,R,Adrian House
http://statistics.data.gov.uk/doc/local-authority/00DA,Leeds City Council,Adult Social Care,Assessment And Care Management,Premises,Premises Security Services,162,11-Mar-14,1203-00222,272,R,Adt Fire And Security Plc
http://statistics.data.gov.uk/doc/local-authority/00DA,Leeds City Council,City Development, Libraries  Arts & Heritage,Premises,Premises Security Services,162,28-Mar-14,1203-00223,808,R,Adt Fire And Security Plc
http://statistics.data.gov.uk/doc/local-authority/00DA,Leeds City Council,Environment & Housing,Hra,Premises,Maintenance Of Buildings,101,28-Mar-14,1203-00224,223.13,R,Adt Fire And Security Plc
http://statistics.data.gov.uk/doc/local-authority/00DA,Leeds City Council,Environment & Housing,Hra,Premises,Maintenance Of Buildings,101,12-Mar-14,1203-00225,223.13,R,Adt Fire And Security Plc
http://statistics.data.gov.uk/doc/local-authority/00DA,Leeds City Council,Environment & Housing,Hra,Premises,Maintenance Of Buildings,101,21-Mar-14,1203-00226,552.59,R,Adt Fire And Security Plc
http://statistics.data.gov.uk/doc/local-authority/00DA,Leeds City Council as Accountable Body,Social Services Pooled Budgets,Jcs For People With Learning Disabilitie,Third Party Payments,Home Care,568,13-Mar-14,1203-00227,608.64,R,Adult Placement Services
http://statistics.data.gov.uk/doc/local-authority/00DA,Leeds City Council,Adult Social Care,Services For Adults Under 65 Mental/Dis,Third Party Payments,Nursing Home,570,12-Mar-14,1203-00228,1549.8,R,Adult Supported Living Ltd
http://statistics.data.gov.uk/doc/local-authority/00DA,Leeds City Council,City Development, Libraries  Arts & Heritage,Supplies and Services,External Audit Fees,261,21-Mar-14,1203-00229,85,R,Advance Stocks Ltd
http://statistics.data.gov.uk/doc/local-authority/00DA,Leeds City Council,City Development, Libraries  Arts & Heritage,Supplies and Services,External Audit Fees,261,11-Mar-14,1203-00230,85,R,Advance Stocks Ltd
http://statistics.data.gov.uk/doc/local-authority/00DA,Leeds City Council,City Development, Libraries  Arts & Heritage,Supplies and Services,External Audit Fees,261,11-Mar-14,1203-00231,85,R,Advance Stocks Ltd
http://statistics.data.gov.uk/doc/local-authority/00DA,Leeds City Council,City Development,Recreation,Supplies and Services,External Audit Fees,261,28-Mar-14,1203-00232,235,R,Advance Stocks Ltd
http://statistics.data.gov.uk/doc/local-authority/00DA,Leeds City Council,City Development,Recreation,Supplies and Services,External Audit Fees,261,14-Mar-14,1203-00233,235,R,Advance Stocks Ltd
http://statistics.data.gov.uk/doc/local-authority/00DA,Leeds City Council as Accountable Body,Social Services Pooled Budgets,Jcs For People With Learning Disabilitie,Third Party Payments,Home Care,568,27-Mar-14,1203-00234,3070.02,R,Advantage Healthcare Group Ltd
http://statistics.data.gov.uk/doc/local-authority/00DA,Leeds City Council as Accountable Body,Social Services Pooled Budgets,Jcs For People With Learning Disabilitie,Third Party Payments,Home Care,568,27-Mar-14,1203-00235,3404.59,R,Advantage Healthcare Group Ltd
http://statistics.data.gov.uk/doc/local-authority/00DA,Leeds City Council as Accountable Body,Social Services Pooled Budgets,Jcs For People With Learning Disabilitie,Third Party Payments,Home Care,568,25-Mar-14,1203-00236,498.24,R,Advantage Healthcare Group Ltd
http://statistics.data.gov.uk/doc/local-authority/00DA,Leeds City Council as Accountable Body,Social Services Pooled Budgets,Jcs For People With Learning Disabilitie,Third Party Payments,Home Care,568,27-Mar-14,1203-00237,1000,R,Advantage Healthcare Group Ltd
http://statistics.data.gov.uk/doc/local-authority/00DA,Leeds City Council as Accountable Body,Social Services Pooled Budgets,Jcs For People With Learning Disabilitie,Third Party Payments,Home Care,568,21-Mar-14,1203-00238,4065.56,R,Advantage Healthcare Group Ltd
http://statistics.data.gov.uk/doc/local-authority/00DA,Leeds City Council as Accountable Body,Social Services Pooled Budgets,Jcs For People With Learning Disabilitie,Third Party Payments,Home Care,568,21-Mar-14,1203-00239,498.24,R,Advantage Healthcare Group Ltd
http://statistics.data.gov.uk/doc/local-authority/00DA,Leeds City Council as Accountable Body,Social Services Pooled Budgets,Jcs For People With Learning Disabilitie,Third Party Payments,Home Care,568,21-Mar-14,1203-00240,1000,R,Advantage Healthcare Group Ltd
http://statistics.data.gov.uk/doc/local-authority/00DA,Leeds City Council as Accountable Body,Social Services Pooled Budgets,Jcs For People With Learning Disabilitie,Third Party Payments,Home Care,568,12-Mar-14,1203-00241,3138.26,R,Advantage Healthcare Group Ltd
http://statistics.data.gov.uk/doc/local-authority/00DA,Leeds City Council as Accountable Body,Social Services Pooled Budgets,Jcs For People With Learning Disabilitie,Third Party Payments,Home Care,568,13-Mar-14,1203-00242,1612.65,R,Advantage Healthcare Group Ltd
http://statistics.data.gov.uk/doc/local-authority/00DA,Leeds City Council as Accountable Body,Social Services Pooled Budgets,Jcs For People With Learning Disabilitie,Third Party Payments,Home Care,568,13-Mar-14,1203-00243,435.96,R,Advantage Healthcare Group Ltd
http://statistics.data.gov.uk/doc/local-authority/00DA,Leeds City Council as Accountable Body,Social Services Pooled Budgets,Jcs For People With Learning Disabilitie,Third Party Payments,Home Care,568,13-Mar-14,1203-00244,646,R,Advantage Healthcare Group Ltd
http://statistics.data.gov.uk/doc/local-authority/00DA,Leeds City Council as Accountable Body,Social Services Pooled Budgets,Jcs For People With Learning Disabilitie,Third Party Payments,Home Care,568,21-Mar-14,1203-00245,677,R,Advantage Healthcare Group Ltd
http://statistics.data.gov.uk/doc/local-authority/00DA,Leeds City Council as Accountable Body,Social Services Pooled Budgets,Jcs For People With Learning Disabilitie,Third Party Payments,Home Care,568,21-Mar-14,1203-00246,4231.2,R,Advantage Healthcare Group Ltd
http://statistics.data.gov.uk/doc/local-authority/00DA,Leeds City Council as Accountable Body,Social Services Pooled Budgets,Jcs For People With Learning Disabilitie,Third Party Payments,Home Care,568,21-Mar-14,1203-00247,708,R,Advantage Healthcare Group Ltd
http://statistics.data.gov.uk/doc/local-authority/00DA,Leeds City Council as Accountable Body,Social Services Pooled Budgets,Jcs For People With Learning Disabilitie,Third Party Payments,Home Care,568,07-Mar-14,1203-00248,904.5,R,Advantage Healthcare Group Ltd
http://statistics.data.gov.uk/doc/local-authority/00DA,Leeds City Council as Accountable Body,Social Services Pooled Budgets,Jcs For People With Learning Disabilitie,Third Party Payments,Home Care,568,04-Mar-14,1203-00249,71.46,R,Advantage Healthcare Group Ltd
http://statistics.data.gov.uk/doc/local-authority/00DA,Leeds City Council as Accountable Body,Social Services Pooled Budgets,Jcs For People With Learning Disabilitie,Third Party Payments,Home Care,568,07-Mar-14,1203-00250,513,R,Advantage Healthcare Group Ltd
http://statistics.data.gov.uk/doc/local-authority/00DA,Leeds City Council as Accountable Body,Social Services Pooled Budgets,Jcs For People With Learning Disabilitie,Third Party Payments,Home Care,568,07-Mar-14,1203-00251,373.68,R,Advantage Healthcare Group Ltd
http://statistics.data.gov.uk/doc/local-authority/00DA,Leeds City Council as Accountable Body,Social Services Pooled Budgets,Jcs For People With Learning Disabilitie,Third Party Payments,Home Care,568,07-Mar-14,1203-00252,323,R,Advantage Healthcare Group Ltd
http://statistics.data.gov.uk/doc/local-authority/00DA,Leeds City Council as Accountable Body,Social Services Pooled Budgets,Jcs For People With Learning Disabilitie,Third Party Payments,Home Care,568,04-Mar-14,1203-00253,498.24,R,Advantage Healthcare Group Ltd
http://statistics.data.gov.uk/doc/local-authority/00DA,Leeds City Council as Accountable Body,Social Services Pooled Budgets,Jcs For People With Learning Disabilitie,Third Party Payments,Home Care,568,04-Mar-14,1203-00254,2199.51,R,Advantage Healthcare Group Ltd
http://statistics.data.gov.uk/doc/local-authority/00DA,Leeds City Council as Accountable Body,Social Services Pooled Budgets,Jcs For People With Learning Disabilitie,Third Party Payments,Home Care,568,03-Mar-14,1203-00255,3186.61,R,Advantage Healthcare Group Ltd
http://statistics.data.gov.uk/doc/local-authority/00DA,Leeds City Council,City Development,Libraries  Arts & Heritage  ,Supplies and Services,Operational Materials,205,27-Feb-14,1203-00256,936,R,Adverpro.Co.Uk
http://statistics.data.gov.uk/doc/local-authority/00DA,Leeds City Council as Accountable Body,Social Services Pooled Budgets,Jcs For People With Learning Disabilitie,Third Party Payments,Day Centre,564,21-Mar-14,1203-00257,416.35,R,Advitam Ltd
http://statistics.data.gov.uk/doc/local-authority/00DA,Leeds City Council as Accountable Body,Social Services Pooled Budgets,Jcs For People With Learning Disabilitie,Third Party Payments,Residential,580,12-Mar-14,1203-00258,20332.4,R,Advitam Ltd
http://statistics.data.gov.uk/doc/local-authority/00DA,Leeds City Council,Adult Social Care,Services For Older People - 65 And Over,Supplies and Services,Non-Recurring Grants,227,17-Mar-14,1203-00259,24000,R,Advocacy For Mental Health And Dementia
http://statistics.data.gov.uk/doc/local-authority/00DA,Leeds City Council,Central & Corporate,Customer Services,Supplies and Services,Other Hired And Contracted Services,265,06-Mar-14,1203-00260,173,R,Afbedel Ltd
http://statistics.data.gov.uk/doc/local-authority/00DA,Leeds City Council,Adult Social Care,Services For Adults Under 65 Learn/Dis,Third Party Payments,Home Care,568,11-Mar-14,1203-00261,319.6,R,Affinity Trust
http://statistics.data.gov.uk/doc/local-authority/00DA,Leeds City Council,Adult Social Care,Services For Older People - 65 And Over,Third Party Payments,Home Care,568,11-Mar-14,1203-00262,1076.48,R,Affinity Trust
http://statistics.data.gov.uk/doc/local-authority/00DA,Leeds City Council,Adult Social Care,Services For Older People Under 65 P/Dis,Third Party Payments,Home Care,568,21-Mar-14,1203-00263,395.01,R,Affinity Trust
http://statistics.data.gov.uk/doc/local-authority/00DA,Leeds City Council,Adult Social Care,Services For Older People Under 65 P/Dis,Third Party Payments,Home Care,568,11-Mar-14,1203-00264,781.58,R,Affinity Trust
http://statistics.data.gov.uk/doc/local-authority/00DA,Leeds City Council,Adult Social Care,Services For Older People Under 65 P/Dis,Third Party Payments,Home Care,568,11-Mar-14,1203-00265,226.49,R,Affinity Trust
http://statistics.data.gov.uk/doc/local-authority/00DA,Leeds City Council,Adult Social Care,Services For Older People Under 65 P/Dis,Third Party Payments,Home Care,568,11-Mar-14,1203-00266,876.5,R,Affinity Trust
http://statistics.data.gov.uk/doc/local-authority/00DA,Leeds City Council,Adult Social Care,Services For Older People Under 65 P/Dis,Third Party Payments,Home Care,568,11-Mar-14,1203-00267,777.84,R,Affinity Trust
http://statistics.data.gov.uk/doc/local-authority/00DA,Leeds City Council,Adult Social Care,Services For Older People Under 65 P/Dis,Third Party Payments,Home Care,568,11-Mar-14,1203-00268,346.5,R,Affinity Trust
http://statistics.data.gov.uk/doc/local-authority/00DA,Leeds City Council,Adult Social Care,Services For Older People Under 65 P/Dis,Third Party Payments,Home Care,568,11-Mar-14,1203-00269,403.68,R,Affinity Trust
http://statistics.data.gov.uk/doc/local-authority/00DA,Leeds City Council,Adult Social Care,Services For Older People Under 65 P/Dis,Third Party Payments,Home Care,568,11-Mar-14,1203-00270,319.6,R,Affinity Trust
http://statistics.data.gov.uk/doc/local-authority/00DA,Leeds City Council,Adult Social Care,Services For Older People Under 65 P/Dis,Third Party Payments,Home Care,568,11-Mar-14,1203-00271,2091.13,R,Affinity Trust
http://statistics.data.gov.uk/doc/local-authority/00DA,Leeds City Council,Adult Social Care,Services For Older People Under 65 P/Dis,Third Party Payments,Home Care,568,11-Mar-14,1203-00272,95.88,R,Affinity Trust
http://statistics.data.gov.uk/doc/local-authority/00DA,Leeds City Council,Adult Social Care,Services For Older People Under 65 P/Dis,Third Party Payments,Home Care,568,11-Mar-14,1203-00273,255.68,R,Affinity Trust
http://statistics.data.gov.uk/doc/local-authority/00DA,Leeds City Council,Adult Social Care,Services For Older People Under 65 P/Dis,Third Party Payments,Home Care,568,11-Mar-14,1203-00274,575.28,R,Affinity Trust
http://statistics.data.gov.uk/doc/local-authority/00DA,Leeds City Council,Adult Social Care,Services For Older People Under 65 P/Dis,Third Party Payments,Home Care,568,03-Mar-14,1203-00275,399.5,R,Affinity Trust
http://statistics.data.gov.uk/doc/local-authority/00DA,Leeds City Council,Adult Social Care,Services For Older People Under 65 P/Dis,Third Party Payments,Home Care,568,24-Mar-14,1203-00276,319.6,R,Affinity Trust
http://statistics.data.gov.uk/doc/local-authority/00DA,Leeds City Council as Accountable Body,Social Services Pooled Budgets,Jcs For People With Learning Disabilitie,Third Party Payments,Home Care,568,13-Mar-14,1203-00277,655.98,R,Affinity Trust
http://statistics.data.gov.uk/doc/local-authority/00DA,Leeds City Council as Accountable Body,Social Services Pooled Budgets,Jcs For People With Learning Disabilitie,Third Party Payments,Home Care,568,13-Mar-14,1203-00278,306.48,R,Affinity Trust
http://statistics.data.gov.uk/doc/local-authority/00DA,Leeds City Council as Accountable Body,Social Services Pooled Budgets,Jcs For People With Learning Disabilitie,Third Party Payments,Home Care,568,13-Mar-14,1203-00279,33,R,Affinity Trust
http://statistics.data.gov.uk/doc/local-authority/00DA,Leeds City Council as Accountable Body,Social Services Pooled Budgets,Jcs For People With Learning Disabilitie,Third Party Payments,Home Care,568,13-Mar-14,1203-00280,303.62,R,Affinity Trust
http://statistics.data.gov.uk/doc/local-authority/00DA,Leeds City Council as Accountable Body,Social Services Pooled Budgets,Jcs For People With Learning Disabilitie,Third Party Payments,Home Care,568,13-Mar-14,1203-00281,511.36,R,Affinity Trust
http://statistics.data.gov.uk/doc/local-authority/00DA,Leeds City Council as Accountable Body,Social Services Pooled Budgets,Jcs For People With Learning Disabilitie,Third Party Payments,Home Care,568,13-Mar-14,1203-00282,1853.68,R,Affinity Trust
http://statistics.data.gov.uk/doc/local-authority/00DA,Leeds City Council as Accountable Body,Social Services Pooled Budgets,Jcs For People With Learning Disabilitie,Third Party Payments,Home Care,568,11-Mar-14,1203-00283,639.2,R,Affinity Trust
http://statistics.data.gov.uk/doc/local-authority/00DA,Leeds City Council as Accountable Body,Social Services Pooled Budgets,Jcs For People With Learning Disabilitie,Third Party Payments,Home Care,568,13-Mar-14,1203-00284,671.16,R,Affinity Trust
http://statistics.data.gov.uk/doc/local-authority/00DA,Leeds City Council as Accountable Body,Social Services Pooled Budgets,Jcs For People With Learning Disabilitie,Third Party Payments,Home Care,568,13-Mar-14,1203-00285,1342.32,R,Affinity Trust
http://statistics.data.gov.uk/doc/local-authority/00DA,Leeds City Council as Accountable Body,Social Services Pooled Budgets,Jcs For People With Learning Disabilitie,Third Party Payments,Home Care,568,13-Mar-14,1203-00286,477.6,R,Affinity Trust
http://statistics.data.gov.uk/doc/local-authority/00DA,Leeds City Council as Accountable Body,Social Services Pooled Budgets,Jcs For People With Learning Disabilitie,Third Party Payments,Home Care,568,13-Mar-14,1203-00287,538.24,R,Affinity Trust
http://statistics.data.gov.uk/doc/local-authority/00DA,Leeds City Council as Accountable Body,Social Services Pooled Budgets,Jcs For People With Learning Disabilitie,Third Party Payments,Home Care,568,13-Mar-14,1203-00288,894.88,R,Affinity Trust
http://statistics.data.gov.uk/doc/local-authority/00DA,Leeds City Council as Accountable Body,Social Services Pooled Budgets,Jcs For People With Learning Disabilitie,Third Party Payments,Home Care,568,13-Mar-14,1203-00289,1319.88,R,Affinity Trust
http://statistics.data.gov.uk/doc/local-authority/00DA,Leeds City Council as Accountable Body,Social Services Pooled Budgets,Jcs For People With Learning Disabilitie,Third Party Payments,Home Care,568,13-Mar-14,1203-00290,3456.74,R,Affinity Trust
http://statistics.data.gov.uk/doc/local-authority/00DA,Leeds City Council as Accountable Body,Social Services Pooled Budgets,Jcs For People With Learning Disabilitie,Third Party Payments,Home Care,568,13-Mar-14,1203-00291,1560,R,Affinity Trust
http://statistics.data.gov.uk/doc/local-authority/00DA,Leeds City Council as Accountable Body,Social Services Pooled Budgets,Jcs For People With Learning Disabilitie,Third Party Payments,Home Care,568,14-Mar-14,1203-00292,450,R,Affinity Trust
http://statistics.data.gov.uk/doc/local-authority/00DA,Leeds City Council as Accountable Body,Social Services Pooled Budgets,Jcs For People With Learning Disabilitie,Third Party Payments,Home Care,568,13-Mar-14,1203-00293,657.15,R,Affinity Trust
http://statistics.data.gov.uk/doc/local-authority/00DA,Leeds City Council as Accountable Body,Social Services Pooled Budgets,Jcs For People With Learning Disabilitie,Third Party Payments,Home Care,568,14-Mar-14,1203-00294,1206.72,R,Affinity Trust
http://statistics.data.gov.uk/doc/local-authority/00DA,Leeds City Council as Accountable Body,Social Services Pooled Budgets,Jcs For People With Learning Disabilitie,Third Party Payments,Home Care,568,13-Mar-14,1203-00295,1199.99,R,Affinity Trust
http://statistics.data.gov.uk/doc/local-authority/00DA,Leeds City Council as Accountable Body,Social Services Pooled Budgets,Jcs For People With Learning Disabilitie,Third Party Payments,Home Care,568,13-Mar-14,1203-00296,854.76,R,Affinity Trust
http://statistics.data.gov.uk/doc/local-authority/00DA,Leeds City Council as Accountable Body,Social Services Pooled Budgets,Jcs For People With Learning Disabilitie,Third Party Payments,Home Care,568,13-Mar-14,1203-00297,776.58,R,Affinity Trust
http://statistics.data.gov.uk/doc/local-authority/00DA,Leeds City Council as Accountable Body,Social Services Pooled Budgets,Jcs For People With Learning Disabilitie,Third Party Payments,Home Care,568,13-Mar-14,1203-00298,875.6,R,Affinity Trust
http://statistics.data.gov.uk/doc/local-authority/00DA,Leeds City Council as Accountable Body,Social Services Pooled Budgets,Jcs For People With Learning Disabilitie,Third Party Payments,Home Care,568,13-Mar-14,1203-00299,720,R,Affinity Trust
http://statistics.data.gov.uk/doc/local-authority/00DA,Leeds City Council as Accountable Body,Social Services Pooled Budgets,Jcs For People With Learning Disabilitie,Third Party Payments,Home Care,568,13-Mar-14,1203-00300,905.04,R,Affinity Trust
http://statistics.data.gov.uk/doc/local-authority/00DA,Leeds City Council as Accountable Body,Social Services Pooled Budgets,Jcs For People With Learning Disabilitie,Third Party Payments,Home Care,568,13-Mar-14,1203-00301,143.46,R,Affinity Trust
http://statistics.data.gov.uk/doc/local-authority/00DA,Leeds City Council as Accountable Body,Social Services Pooled Budgets,Jcs For People With Learning Disabilitie,Third Party Payments,Day Centre,564,05-Mar-14,1203-00302,17538,R,Affinity Trust
http://statistics.data.gov.uk/doc/local-authority/00DA,Leeds City Council as Accountable Body,Social Services Pooled Budgets,Jcs For People With Learning Disabilitie,Third Party Payments,Day Centre,564,05-Mar-14,1203-00303,17389.19,R,Affinity Trust
http://statistics.data.gov.uk/doc/local-authority/00DA,Leeds City Council as Accountable Body,Social Services Pooled Budgets,Jcs For People With Learning Disabilitie,Third Party Payments,Day Centre,564,05-Mar-14,1203-00304,1056,R,Affinity Trust
http://statistics.data.gov.uk/doc/local-authority/00DA,Leeds City Council as Accountable Body,Social Services Pooled Budgets,Jcs For People With Learning Disabilitie,Third Party Payments,Day Centre,564,13-Mar-14,1203-00305,416.64,R,Affinity Trust
http://statistics.data.gov.uk/doc/local-authority/00DA,Leeds City Council as Accountable Body,Social Services Pooled Budgets,Jcs For People With Learning Disabilitie,Third Party Payments,Day Centre,564,13-Mar-14,1203-00306,1053.36,R,Affinity Trust
http://statistics.data.gov.uk/doc/local-authority/00DA,Leeds City Council as Accountable Body,Social Services Pooled Budgets,Jcs For People With Learning Disabilitie,Third Party Payments,Day Centre,564,13-Mar-14,1203-00307,926.08,R,Affinity Trust
http://statistics.data.gov.uk/doc/local-authority/00DA,Leeds City Council as Accountable Body,Social Services Pooled Budgets,Jcs For People With Learning Disabilitie,Third Party Payments,Day Centre,564,13-Mar-14,1203-00308,4474.72,R,Affinity Trust
http://statistics.data.gov.uk/doc/local-authority/00DA,Leeds City Council as Accountable Body,Social Services Pooled Budgets,Jcs For People With Learning Disabilitie,Third Party Payments,Day Centre,564,13-Mar-14,1203-00309,827.64,R,Affinity Trust
http://statistics.data.gov.uk/doc/local-authority/00DA,Leeds City Council as Accountable Body,Social Services Pooled Budgets,Jcs For People With Learning Disabilitie,Third Party Payments,Day Centre,564,13-Mar-14,1203-00310,2530.76,R,Affinity Trust
http://statistics.data.gov.uk/doc/local-authority/00DA,Leeds City Council as Accountable Body,Social Services Pooled Budgets,Jcs For People With Learning Disabilitie,Third Party Payments,Home Care,568,11-Mar-14,1203-00311,-639.2,R,Affinity Trust
http://statistics.data.gov.uk/doc/local-authority/00DA,Leeds City Council as Accountable Body,Social Services Pooled Budgets,Jcs For People With Learning Disabilitie,Third Party Payments,Home Care,568,11-Mar-14,1203-00312,-639.2,R,Affinity Trust
http://statistics.data.gov.uk/doc/local-authority/00DA,Leeds City Council as Accountable Body,Social Services Pooled Budgets,Jcs For People With Learning Disabilitie,Third Party Payments,Home Care,568,11-Mar-14,1203-00313,-799,R,Affinity Trust
http://statistics.data.gov.uk/doc/local-authority/00DA,Leeds City Council as Accountable Body,Social Services Pooled Budgets,Jcs For People With Learning Disabilitie,Third Party Payments,Home Care,568,13-Mar-14,1203-00314,383.52,R,Affinity Trust
http://statistics.data.gov.uk/doc/local-authority/00DA,Leeds City Council as Accountable Body,Social Services Pooled Budgets,Jcs For People With Learning Disabilitie,Third Party Payments,Home Care,568,11-Mar-14,1203-00315,1546.88,R,Affinity Trust
http://statistics.data.gov.uk/doc/local-authority/00DA,Leeds City Council as Accountable Body,Social Services Pooled Budgets,Jcs For People With Learning Disabilitie,Third Party Payments,Home Care,568,13-Mar-14,1203-00316,1551,R,Affinity Trust
http://statistics.data.gov.uk/doc/local-authority/00DA,Leeds City Council as Accountable Body,Social Services Pooled Budgets,Jcs For People With Learning Disabilitie,Third Party Payments,Home Care,568,13-Mar-14,1203-00317,63.92,R,Affinity Trust
http://statistics.data.gov.uk/doc/local-authority/00DA,Leeds City Council as Accountable Body,Social Services Pooled Budgets,Jcs For People With Learning Disabilitie,Third Party Payments,Home Care,568,13-Mar-14,1203-00318,183.77,R,Affinity Trust
http://statistics.data.gov.uk/doc/local-authority/00DA,Leeds City Council as Accountable Body,Social Services Pooled Budgets,Jcs For People With Learning Disabilitie,Third Party Payments,Home Care,568,13-Mar-14,1203-00319,276.64,R,Affinity Trust
http://statistics.data.gov.uk/doc/local-authority/00DA,Leeds City Council as Accountable Body,Social Services Pooled Budgets,Jcs For People With Learning Disabilitie,Third Party Payments,Home Care,568,13-Mar-14,1203-00320,714,R,Affinity Trust
http://statistics.data.gov.uk/doc/local-authority/00DA,Leeds City Council as Accountable Body,Social Services Pooled Budgets,Jcs For People With Learning Disabilitie,Third Party Payments,Home Care,568,13-Mar-14,1203-00321,143.82,R,Affinity Trust
http://statistics.data.gov.uk/doc/local-authority/00DA,Leeds City Council as Accountable Body,Social Services Pooled Budgets,Jcs For People With Learning Disabilitie,Third Party Payments,Home Care,568,13-Mar-14,1203-00322,336.4,R,Affinity Trust
http://statistics.data.gov.uk/doc/local-authority/00DA,Leeds City Council as Accountable Body,Social Services Pooled Budgets,Jcs For People With Learning Disabilitie,Third Party Payments,Home Care,568,05-Mar-14,1203-00323,3726.4,R,Affinity Trust
http://statistics.data.gov.uk/doc/local-authority/00DA,Leeds City Council as Accountable Body,Social Services Pooled Budgets,Jcs For People With Learning Disabilitie,Third Party Payments,Home Care,568,05-Mar-14,1203-00324,3848.08,R,Affinity Trust
http://statistics.data.gov.uk/doc/local-authority/00DA,Leeds City Council as Accountable Body,Social Services Pooled Budgets,Jcs For People With Learning Disabilitie,Third Party Payments,Home Care,568,13-Mar-14,1203-00325,1156.44,R,Affinity Trust
http://statistics.data.gov.uk/doc/local-authority/00DA,Leeds City Council as Accountable Body,Social Services Pooled Budgets,Jcs For People With Learning Disabilitie,Third Party Payments,Home Care,568,11-Mar-14,1203-00326,-639.2,R,Affinity Trust
http://statistics.data.gov.uk/doc/local-authority/00DA,Leeds City Council as Accountable Body,Social Services Pooled Budgets,Jcs For People With Learning Disabilitie,Third Party Payments,Sheltered Accommodation,569,12-Mar-14,1203-00327,101313.76,R,Affinity Trust North Divisional Office
http://statistics.data.gov.uk/doc/local-authority/00DA,Leeds City Council as Accountable Body,Social Services Pooled Budgets,Jcs For People With Learning Disabilitie,Third Party Payments,Residential,580,12-Mar-14,1203-00328,16258.72,R,Affinity Trust North Divisional Office
http://statistics.data.gov.uk/doc/local-authority/00DA,Leeds City Council,City Development,Recreation  ,Transport,Hire Of Movable Plant & Machinery,315,14-Feb-14,1203-00329,368.1,R,Afi Uplift Ltd
http://statistics.data.gov.uk/doc/local-authority/00DA,Leeds City Council,City Development,Recreation  ,Transport,Hire Of Movable Plant & Machinery,315,14-Feb-14,1203-00330,2280,R,Afi Uplift Ltd
http://statistics.data.gov.uk/doc/local-authority/00DA,Leeds City Council,City Development,Recreation  ,Transport,Hire Of Movable Plant & Machinery,315,20-Feb-14,1203-00331,1140,R,Afi Uplift Ltd
http://statistics.data.gov.uk/doc/local-authority/00DA,Leeds City Council,Environment & Housing,Statutory Housing,Supplies and Services,Other Hired And Contracted Services,265,27-Mar-14,1203-00332,600,R,Afk Estates
http://statistics.data.gov.uk/doc/local-authority/00DA,Leeds City Council,Childrens Services,Safeguarding Targeted & Specialist,Third Party Payments,Interagency Adoptions,559,24-Mar-14,1203-00333,4032,R,After Adoption
http://statistics.data.gov.uk/doc/local-authority/00DA,Leeds City Council,City Development,Employment & Skills,Supplies and Services,College Contracts,276,21-Mar-14,1203-00334,11137.5,R,Age Uk Leeds
http://statistics.data.gov.uk/doc/local-authority/00DA,Leeds City Council,Environment & Housing,Strategy & Commissioning,Third Party Payments,Supporting Ppl - Block Gross Chargeable,514,21-Mar-14,1203-00335,3957.68,R,Age Uk Leeds
http://statistics.data.gov.uk/doc/local-authority/00DA,Leeds City Council,Adult Social Care,Services For Older People Under 65 P/Dis,Transfer Payments,Personalised Budgets,627,12-Mar-14,1203-00336,1001.48,R,REDACTED PERSONAL DATA
http://statistics.data.gov.uk/doc/local-authority/00DA,Leeds City Council,Adult Social Care,Services For Older People - 65 And Over,Transfer Payments,Personalised Budgets,627,18-Mar-14,1203-00337,5860.8,R,REDACTED PERSONAL DATA
http://statistics.data.gov.uk/doc/local-authority/00DA,Leeds City Council,Adult Social Care,Services For Older People - 65 And Over,Transfer Payments,Personalised Budgets,627,03-Mar-14,1203-00338,3564,R,REDACTED PERSONAL DATA
http://statistics.data.gov.uk/doc/local-authority/00DA,Leeds City Council,Adult Social Care,Services For Older People Under 65 P/Dis,Third Party Payments,Residential,580,12-Mar-14,1203-00339,5612.16,R,Agricola House
http://statistics.data.gov.uk/doc/local-authority/00DA,Leeds City Council,Central & Corporate,Executive Support,Supplies and Services,'Well Being' Large Grants Projects,230,27-Mar-14,1203-00340,2524,R,Ahead Partnership Ltd
http://statistics.data.gov.uk/doc/local-authority/00DA,Leeds City Council,Adult Social Care,Services For Older People Under 65 P/Dis,Transfer Payments,Personalised Budgets,627,12-Mar-14,1203-00341,531.2,R,REDACTED PERSONAL DATA
http://statistics.data.gov.uk/doc/local-authority/00DA,Leeds City Council,Central & Corporate,Benefits,Support Services,Legal Disbursements,411,21-Mar-14,1203-00342,75,R,Aidan Reay
http://statistics.data.gov.uk/doc/local-authority/00DA,Leeds City Council as Accountable Body,Social Services Pooled Budgets,Leeds Community Equip Store Pooled Budgt,Supplies and Services,Other Equipment,203,28-Mar-14,1203-00343,400,R,Aidapt Bathrooms Ltd
http://statistics.data.gov.uk/doc/local-authority/00DA,Leeds City Council as Accountable Body,Social Services Pooled Budgets,Leeds Community Equip Store Pooled Budgt,Supplies and Services,Other Equipment,203,28-Mar-14,1203-00344,675,R,Aidapt Bathrooms Ltd
http://statistics.data.gov.uk/doc/local-authority/00DA,Leeds City Council as Accountable Body,Social Services Pooled Budgets,Leeds Community Equip Store Pooled Budgt,Supplies and Services,Other Equipment,203,28-Mar-14,1203-00345,645,R,Aidapt Bathrooms Ltd
http://statistics.data.gov.uk/doc/local-authority/00DA,Leeds City Council as Accountable Body,Social Services Pooled Budgets,Leeds Community Equip Store Pooled Budgt,Supplies and Services,Other Equipment,203,21-Mar-14,1203-00346,1557,R,Aidapt Bathrooms Ltd
http://statistics.data.gov.uk/doc/local-authority/00DA,Leeds City Council as Accountable Body,Social Services Pooled Budgets,Leeds Community Equip Store Pooled Budgt,Supplies and Services,Other Equipment,203,21-Mar-14,1203-00347,675,R,Aidapt Bathrooms Ltd
http://statistics.data.gov.uk/doc/local-authority/00DA,Leeds City Council as Accountable Body,Social Services Pooled Budgets,Leeds Community Equip Store Pooled Budgt,Supplies and Services,Other Equipment,203,21-Mar-14,1203-00348,645,R,Aidapt Bathrooms Ltd
http://statistics.data.gov.uk/doc/local-authority/00DA,Leeds City Council as Accountable Body,Social Services Pooled Budgets,Leeds Community Equip Store Pooled Budgt,Supplies and Services,Other Equipment,203,14-Mar-14,1203-00349,675,R,Aidapt Bathrooms Ltd
http://statistics.data.gov.uk/doc/local-authority/00DA,Leeds City Council as Accountable Body,Social Services Pooled Budgets,Leeds Community Equip Store Pooled Budgt,Supplies and Services,Other Equipment,203,14-Mar-14,1203-00350,400,R,Aidapt Bathrooms Ltd
http://statistics.data.gov.uk/doc/local-authority/00DA,Leeds City Council as Accountable Body,Social Services Pooled Budgets,Leeds Community Equip Store Pooled Budgt,Supplies and Services,Other Equipment,203,14-Mar-14,1203-00351,645,R,Aidapt Bathrooms Ltd
http://statistics.data.gov.uk/doc/local-authority/00DA,Leeds City Council as Accountable Body,Social Services Pooled Budgets,Leeds Community Equip Store Pooled Budgt,Supplies and Services,Other Equipment,203,07-Mar-14,1203-00352,789,R,Aidapt Bathrooms Ltd
http://statistics.data.gov.uk/doc/local-authority/00DA,Leeds City Council as Accountable Body,Social Services Pooled Budgets,Leeds Community Equip Store Pooled Budgt,Supplies and Services,Other Equipment,203,07-Mar-14,1203-00353,400,R,Aidapt Bathrooms Ltd
http://statistics.data.gov.uk/doc/local-authority/00DA,Leeds City Council as Accountable Body,Social Services Pooled Budgets,Leeds Community Equip Store Pooled Budgt,Supplies and Services,Other Equipment,203,07-Mar-14,1203-00354,675,R,Aidapt Bathrooms Ltd
http://statistics.data.gov.uk/doc/local-authority/00DA,Leeds City Council as Accountable Body,Social Services Pooled Budgets,Leeds Community Equip Store Pooled Budgt,Supplies and Services,Other Equipment,203,07-Mar-14,1203-00355,645,R,Aidapt Bathrooms Ltd
http://statistics.data.gov.uk/doc/local-authority/00DA,Leeds City Council as Accountable Body,Social Services Pooled Budgets,Leeds Community Equip Store Pooled Budgt,Supplies and Services,Other Equipment,203,06-Mar-14,1203-00356,1816.5,R,Aidapt Bathrooms Ltd
http://statistics.data.gov.uk/doc/local-authority/00DA,Leeds City Council as Accountable Body,Social Services Pooled Budgets,Leeds Community Equip Store Pooled Budgt,Supplies and Services,Other Equipment,203,06-Mar-14,1203-00357,-103.8,R,Aidapt Bathrooms Ltd
http://statistics.data.gov.uk/doc/local-authority/00DA,Leeds City Council as Accountable Body,Social Services Pooled Budgets,Jcs For People With Learning Disabilitie,Third Party Payments,Home Care,568,12-Mar-14,1203-00358,54.9,R,Aid-Call Ltd
http://statistics.data.gov.uk/doc/local-authority/00DA,Leeds City Council as Accountable Body,Social Services Pooled Budgets,Jcs For People With Learning Disabilitie,Transfer Payments,Personal Budgets,627,12-Mar-14,1203-00359,2839.32,R,REDACTED PERSONAL DATA
http://statistics.data.gov.uk/doc/local-authority/00DA,Leeds City Council,Environment & Housing,Hra,Supplies and Services,Office Consumables,210,28-Mar-14,1203-00360,185,R,Aidservice Ltd
http://statistics.data.gov.uk/doc/local-authority/00DA,Leeds City Council as Accountable Body,Social Services Pooled Budgets,Jcs For People With Learning Disabilitie,Supplies and Services,Other Equipment,203,05-Mar-14,1203-00361,309,R,Aidservice Ltd
http://statistics.data.gov.uk/doc/local-authority/00DA,Leeds City Council as Accountable Body,Social Services Pooled Budgets,Jcs For People With Learning Disabilitie,Supplies and Services,Other Equipment,203,14-Mar-14,1203-00362,170,R,Aidservice Ltd
http://statistics.data.gov.uk/doc/local-authority/00DA,Leeds City Council as Accountable Body,Social Services Pooled Budgets,Leeds Community Equip Store Pooled Budgt,Supplies and Services,Other Equipment,203,28-Mar-14,1203-00363,357,R,Aidservice Ltd
http://statistics.data.gov.uk/doc/local-authority/00DA,Leeds City Council,Adult Social Care,Services For Older People - 65 And Over,Transfer Payments,Personalised Budgets,627,12-Mar-14,1203-00364,231.18,R,REDACTED PERSONAL DATA
http://statistics.data.gov.uk/doc/local-authority/00DA,Leeds City Council,Central & Corporate,Executive Support,Supplies and Services,'Well Being' Large Grants Projects,230,03-Mar-14,1203-00365,2060,R,Aim Education Leeds Limited
http://statistics.data.gov.uk/doc/local-authority/00DA,Leeds City Council,Childrens Services,Safeguarding Targeted & Specialist,Supplies and Services,Teaching Materials,202,19-Mar-14,1203-00366,265,R,Aim Project
http://statistics.data.gov.uk/doc/local-authority/00DA,Leeds City Council,City Development,Recreation  ,Supplies and Services,Teaching Materials,203,25-Feb-14,1203-00367,8.28,R,Air Force Pneumati
http://statistics.data.gov.uk/doc/local-authority/00DA,Leeds City Council,City Development,Recreation  ,Transport,Plant Spares,346,11-Feb-14,1203-00368,73.68,R,Air Force Pneumati
http://statistics.data.gov.uk/doc/local-authority/00DA,Leeds City Council,City Development,Recreation  ,Transport,Plant Spares,346,27-Feb-14,1203-00369,19.78,R,Air Force Pneumati
http://statistics.data.gov.uk/doc/local-authority/00DA,Leeds City Council,Central & Corporate,Commercial Services Trading Services,Supplies and Services,Operational Materials,205,14-Mar-14,1203-00370,10.18,R,Air Force Pneumatics & Hydraulics
http://statistics.data.gov.uk/doc/local-authority/00DA,Leeds City Council,Central & Corporate,Commercial Services Trading Services,Supplies and Services,Operational Materials,205,04-Mar-14,1203-00371,9.29,R,Air Force Pneumatics & Hydraulics
http://statistics.data.gov.uk/doc/local-authority/00DA,Leeds City Council,Central & Corporate,Commercial Services Trading Services,Supplies and Services,Operational Materials,205,04-Mar-14,1203-00372,173.6,R,Air Liquide Uk
http://statistics.data.gov.uk/doc/local-authority/00DA,Leeds City Council,Adult Social Care,Services For Adults Under 65 Mental/Dis,Third Party Payments,Residential,580,12-Mar-14,1203-00373,6028.4,R,Aire House
http://statistics.data.gov.uk/doc/local-authority/00DA,Leeds City Council as Accountable Body,Social Services Pooled Budgets,Jcs For People With Learning Disabilitie,Third Party Payments,Residential,580,12-Mar-14,1203-00374,12737.04,R,Aire House
http://statistics.data.gov.uk/doc/local-authority/00DA,Leeds City Council,Adult Social Care,Services For Older People - 65 And Over,Third Party Payments,Residential Care Dementia,571,12-Mar-14,1203-00375,29929.47,R,Aire View Residential Home
http://statistics.data.gov.uk/doc/local-authority/00DA,Leeds City Council,Adult Social Care,Services For Older People - 65 And Over,Third Party Payments,Residential,580,12-Mar-14,1203-00376,3001.9,R,Aire View Residential Home
http://statistics.data.gov.uk/doc/local-authority/00DA,Leeds City Council,Central & Corporate,Public Health,Third Party Payments,Public Health Commissioned Services,526,17-Mar-14,1203-00377,2992.44,R,Aireborough Family Practice
http://statistics.data.gov.uk/doc/local-authority/00DA,Leeds City Council,Adult Social Care,Services For Older People - 65 And Over,Third Party Payments,Residential,580,12-Mar-14,1203-00378,26409.99,R,Airedale (Goldsborough)
http://statistics.data.gov.uk/doc/local-authority/00DA,Leeds City Council,City Development,Recreation,Supplies and Services,Operational Furniture And Equipment,203,28-Mar-14,1203-00379,2985,R,Airspace Solutions.Com Limited
http://statistics.data.gov.uk/doc/local-authority/00DA,Leeds City Council,Central & Corporate,Commercial Services Trading Services,Supplies and Services,Other Hired And Contracted Services,265,04-Mar-14,1203-00380,365,R,Airweigh Europe Limited
http://statistics.data.gov.uk/doc/local-authority/00DA,Leeds City Council,Central & Corporate,Commercial Services Trading Services,Supplies and Services,Other Hired And Contracted Services,265,04-Mar-14,1203-00381,240,R,Airweigh Europe Limited
http://statistics.data.gov.uk/doc/local-authority/00DA,Leeds City Council as Accountable Body,Social Services Pooled Budgets,Jcs For People With Learning Disabilitie,Third Party Payments,Residential,580,12-Mar-14,1203-00382,6179.84,R,Aitch Care Homes
http://statistics.data.gov.uk/doc/local-authority/00DA,Leeds City Council,City Development,Recreation,Supplies and Services,Operational Materials,205,20-Mar-14,1203-00383,208.6,R,Aitkens Sportsturf Ltd
http://statistics.data.gov.uk/doc/local-authority/00DA,Leeds City Council,Environment & Housing,Parks & Countryside,Supplies and Services,Operational Materials,205,12-Mar-14,1203-00384,603.9,R,Aitkens Sportsturf Ltd
http://statistics.data.gov.uk/doc/local-authority/00DA,Leeds City Council,Environment & Housing,Parks & Countryside,Supplies and Services,Operational Materials,205,26-Mar-14,1203-00385,79,R,Aitkens Sportsturf Ltd
http://statistics.data.gov.uk/doc/local-authority/00DA,Leeds City Council,Environment & Housing,Parks & Countryside,Supplies and Services,Operational Materials,205,26-Mar-14,1203-00386,68.4,R,Aitkens Sportsturf Ltd
http://statistics.data.gov.uk/doc/local-authority/00DA,Leeds City Council,Adult Social Care,Services For Older People - 65 And Over,Third Party Payments,Home Care,568,07-Mar-14,1203-00387,7321.6,R,Aj Social Care
http://statistics.data.gov.uk/doc/local-authority/00DA,Leeds City Council,Adult Social Care,Services For Older People - 65 And Over,Third Party Payments,Home Care,568,21-Mar-14,1203-00388,356.22,R,Aj Social Care
http://statistics.data.gov.uk/doc/local-authority/00DA,Leeds City Council,Adult Social Care,Services For Older People - 65 And Over,Third Party Payments,Home Care,568,07-Mar-14,1203-00389,175.5,R,Aj Social Care
http://statistics.data.gov.uk/doc/local-authority/00DA,Leeds City Council,Adult Social Care,Services For Older People Under 65 P/Dis,Third Party Payments,Home Care,568,07-Mar-14,1203-00390,2688,R,Aj Social Care
http://statistics.data.gov.uk/doc/local-authority/00DA,Leeds City Council,Adult Social Care,Services For Older People Under 65 P/Dis,Third Party Payments,Home Care,568,07-Mar-14,1203-00391,1093.5,R,Aj Social Care
http://statistics.data.gov.uk/doc/local-authority/00DA,Leeds City Council,Central & Corporate,Commercial Services Trading Services,Supplies and Services,Operational Materials,205,28-Mar-14,1203-00392,459.8,R,Ajm Fixings & Power Tools Ltd
http://statistics.data.gov.uk/doc/local-authority/00DA,Leeds City Council,Central & Corporate,Commercial Services Trading Services,Supplies and Services,Operational Materials,205,21-Mar-14,1203-00393,132,R,Ajm Fixings & Power Tools Ltd
http://statistics.data.gov.uk/doc/local-authority/00DA,Leeds City Council,Central & Corporate,Commercial Services Trading Services,Supplies and Services,Operational Materials,205,18-Mar-14,1203-00394,305.7,R,Ajm Fixings & Power Tools Ltd
http://statistics.data.gov.uk/doc/local-authority/00DA,Leeds City Council,Central & Corporate,Commercial Services Trading Services,Supplies and Services,Operational Materials,205,18-Mar-14,1203-00395,470.1,R,Ajm Fixings & Power Tools Ltd
http://statistics.data.gov.uk/doc/local-authority/00DA,Leeds City Council,Central & Corporate,Commercial Services Trading Services,Supplies and Services,Operational Materials,205,14-Mar-14,1203-00396,1028.64,R,Ajm Fixings & Power Tools Ltd
http://statistics.data.gov.uk/doc/local-authority/00DA,Leeds City Council,Environment & Housing,Hra,Supplies and Services,Other Hired And Contracted Services,265,18-Mar-14,1203-00397,324.49,R,Ajm Fixings & Power Tools Ltd
http://statistics.data.gov.uk/doc/local-authority/00DA,Leeds City Council,Environment & Housing,Hra,Supplies and Services,Other Hired And Contracted Services,265,26-Mar-14,1203-00398,13.46,R,Ajm Fixings & Power Tools Ltd
http://statistics.data.gov.uk/doc/local-authority/00DA,Leeds City Council,Environment & Housing,Hra,Supplies and Services,Other Hired And Contracted Services,265,18-Mar-14,1203-00399,595.6,R,Ajm Fixings & Power Tools Ltd
http://statistics.data.gov.uk/doc/local-authority/00DA,Leeds City Council,Environment & Housing,Hra,Supplies and Services,Operational Materials,205,18-Mar-14,1203-00400,14.4,R,Ajm Fixings & Power Tools Ltd
http://statistics.data.gov.uk/doc/local-authority/00DA,Leeds City Council,Environment & Housing,Hra,Supplies and Services,Operational Materials,205,18-Mar-14,1203-00401,125.5,R,Ajm Fixings & Power Tools Ltd
http://statistics.data.gov.uk/doc/local-authority/00DA,Leeds City Council,Environment & Housing,Hra,Supplies and Services,Operational Materials,205,05-Mar-14,1203-00402,19.24,R,Ajm Fixings & Power Tools Ltd
http://statistics.data.gov.uk/doc/local-authority/00DA,Leeds City Council,Adult Social Care,Services For Older People - 65 And Over,Third Party Payments,Nursing Home,570,12-Mar-14,1203-00403,1298.84,R,Akari Care Ltd
http://statistics.data.gov.uk/doc/local-authority/00DA,Leeds City Council,Adult Social Care,Social Services Support Services,Employees,Tuition & Course Fees,73,07-Mar-14,1203-00404,1500,R,Akd Training Solutions Ltd
http://statistics.data.gov.uk/doc/local-authority/00DA,Leeds City Council,Adult Social Care,Social Services Support Services,Employees,Tuition & Course Fees,73,12-Mar-14,1203-00405,1500,R,Akd Training Solutions Ltd
http://statistics.data.gov.uk/doc/local-authority/00DA,Leeds City Council,Adult Social Care,Social Services Support Services,Employees,Tuition & Course Fees,73,19-Mar-14,1203-00406,3000,R,Akd Training Solutions Ltd
http://statistics.data.gov.uk/doc/local-authority/00DA,Leeds City Council,Adult Social Care,Social Services Support Services,Employees,Tuition & Course Fees,73,26-Mar-14,1203-00407,1500,R,Akd Training Solutions Ltd
http://statistics.data.gov.uk/doc/local-authority/00DA,Leeds City Council as Accountable Body,Social Services Pooled Budgets,Jcs For People With Learning Disabilitie,Transfer Payments,Personal Budgets,627,12-Mar-14,1203-00408,1371.96,R,REDACTED PERSONAL DATA
http://statistics.data.gov.uk/doc/local-authority/00DA,Leeds City Council,Central & Corporate,Commercial Services Trading Services,Supplies and Services,Operational Materials,205,11-Mar-14,1203-00409,108.22,R,Akw Medicare Ltd
http://statistics.data.gov.uk/doc/local-authority/00DA,Leeds City Council,Central & Corporate,Commercial Services Trading Services,Supplies and Services,Operational Materials,205,11-Mar-14,1203-00410,48.11,R,Akw Medicare Ltd
http://statistics.data.gov.uk/doc/local-authority/00DA,Leeds City Council,Central & Corporate,Commercial Services Trading Services,Supplies and Services,Operational Materials,205,07-Mar-14,1203-00411,62.92,R,Akw Medicare Ltd
http://statistics.data.gov.uk/doc/local-authority/00DA,Leeds City Council,Central & Corporate,Commercial Services Trading Services,Supplies and Services,Operational Materials,205,19-Mar-14,1203-00412,50.16,R,Akw Medicare Ltd
http://statistics.data.gov.uk/doc/local-authority/00DA,Leeds City Council,Central & Corporate,Commercial Services Trading Services,Supplies and Services,Operational Materials,205,19-Mar-14,1203-00413,96.22,R,Akw Medicare Ltd
http://statistics.data.gov.uk/doc/local-authority/00DA,Leeds City Council,Childrens Services,Learning Skills & Universal,Supplies and Services,Non-Recurring Grants,227,19-Mar-14,1203-00414,1437,R,Al Haqq Supplementary School
http://statistics.data.gov.uk/doc/local-authority/00DA,Leeds City Council,Childrens Services,Learning Skills & Universal,Supplies and Services,Non-Recurring Grants,227,21-Mar-14,1203-00415,400,R,Al Haqq Supplementary School
http://statistics.data.gov.uk/doc/local-authority/00DA,Leeds City Council,Childrens Services,Safeguarding Targeted & Specialist  ,Third Party Payments,Fees To Carers,563,14-Feb-14,1203-00416,150,R,Alan Brown Flowers
http://statistics.data.gov.uk/doc/local-authority/00DA,Leeds City Council,Childrens Services,Safeguarding Targeted & Specialist  ,Third Party Payments,Fees To Carers,563,19-Feb-14,1203-00417,90,R,Alan Brown Flowers
http://statistics.data.gov.uk/doc/local-authority/00DA,Leeds City Council,Childrens Services,Safeguarding Targeted & Specialist  ,Third Party Payments,Fees To Carers,563,27-Feb-14,1203-00418,30,R,Alan Brown Flowers
http://statistics.data.gov.uk/doc/local-authority/00DA,Leeds City Council,Adult Social Care,Services For Older People Under 65 P/Dis,Transfer Payments,Personalised Budgets,627,12-Mar-14,1203-00419,2038.96,R,REDACTED PERSONAL DATA
http://statistics.data.gov.uk/doc/local-authority/00DA,Leeds City Council,Environment & Housing,Streetscene Environmental Services,Transport,External Hire -Occasional,304,14-Mar-14,1203-00420,297,R,Alan Thompson Transport
http://statistics.data.gov.uk/doc/local-authority/00DA,Leeds City Council,Central & Corporate,Audit And Risk,Supplies and Services,Memberships,226,07-Mar-14,1203-00421,150,R,Alarm
http://statistics.data.gov.uk/doc/local-authority/00DA,Leeds City Council,Adult Social Care,Services For Older People - 65 And Over,Transfer Payments,Personalised Budgets,627,12-Mar-14,1203-00422,263.6,R,REDACTED PERSONAL DATA
http://statistics.data.gov.uk/doc/local-authority/00DA,Leeds City Council,Environment & Housing,Environmental Action (City Centre),Supplies and Services,Operational Furniture And Equipment,203,07-Mar-14,1203-00423,75.75,R,Albert Haywood & Sons Ltd
http://statistics.data.gov.uk/doc/local-authority/00DA,Leeds City Council,Central & Corporate,Commercial Services Trading Services,Transport,Vehicle Spares,345,11-Mar-14,1203-00424,41.98,R,Albert Jagger Limited
http://statistics.data.gov.uk/doc/local-authority/00DA,Leeds City Council,Environment & Housing,Streetscene Environmental Services,Supplies and Services,Other Hired And Contracted Services,265,14-Mar-14,1203-00425,35,R,Alcontrol Uk Ltd
http://statistics.data.gov.uk/doc/local-authority/00DA,Leeds City Council,Environment & Housing,Streetscene Environmental Services,Supplies and Services,Other Hired And Contracted Services,265,14-Mar-14,1203-00426,34,R,Alcontrol Uk Ltd
http://statistics.data.gov.uk/doc/local-authority/00DA,Leeds City Council,Environment & Housing,Streetscene Environmental Services,Supplies and Services,Other Hired And Contracted Services,265,14-Mar-14,1203-00427,48,R,Alcontrol Uk Ltd
http://statistics.data.gov.uk/doc/local-authority/00DA,Leeds City Council,Childrens Services,Safeguarding Targeted & Specialist,Third Party Payments,Allowances,546,06-Mar-14,1203-00428,145,R,REDACTED PERSONAL DATA
http://statistics.data.gov.uk/doc/local-authority/00DA,Leeds City Council,Childrens Services,Safeguarding Targeted & Specialist,Transfer Payments,Leaving Care Allowances,634,06-Mar-14,1203-00429,146.25,R,REDACTED PERSONAL DATA
http://statistics.data.gov.uk/doc/local-authority/00DA,Leeds City Council,Childrens Services,Safeguarding Targeted & Specialist,Transfer Payments,Leaving Care Grants,635,14-Mar-14,1203-00430,450,R,REDACTED PERSONAL DATA
http://statistics.data.gov.uk/doc/local-authority/00DA,Leeds City Council,Childrens Services,Safeguarding Targeted & Specialist,Support Services,Legal Disbursements,411,06-Mar-14,1203-00431,15.83,R,Alere Toxicology Plc
http://statistics.data.gov.uk/doc/local-authority/00DA,Leeds City Council,Adult Social Care,Services For Older People Under 65 P/Dis,Transfer Payments,Personalised Budgets,627,12-Mar-14,1203-00432,185.8,R,REDACTED PERSONAL DATA
http://statistics.data.gov.uk/doc/local-authority/00DA,Leeds City Council as Accountable Body,Social Services Pooled Budgets,Jcs For People With Learning Disabilitie,Transfer Payments,Direct Payments,626,12-Mar-14,1203-00433,1383.4,R,REDACTED PERSONAL DATA
http://statistics.data.gov.uk/doc/local-authority/00DA,Leeds City Council,Adult Social Care,Services For Older People Under 65 P/Dis,Transfer Payments,Personalised Budgets,627,12-Mar-14,1203-00434,985.44,R,REDACTED PERSONAL DATA
http://statistics.data.gov.uk/doc/local-authority/00DA,Leeds City Council,Environment & Housing,Streetscene Environmental Services,Income,Penalties  Fines & Car Parking Charges,934,06-Mar-14,1203-00435,1.1,R,REDACTED PERSONAL DATA
http://statistics.data.gov.uk/doc/local-authority/00DA,Leeds City Council,Adult Social Care,Services For Older People Under 65 P/Dis,Transfer Payments,Direct Payments,626,12-Mar-14,1203-00436,781.17,R,REDACTED PERSONAL DATA
http://statistics.data.gov.uk/doc/local-authority/00DA,Leeds City Council,Childrens Services,Safeguarding Targeted & Specialist,Support Services,Legal Disbursements,411,21-Mar-14,1203-00437,287.66,R,Alex Taylor
http://statistics.data.gov.uk/doc/local-authority/00DA,Leeds City Council,Adult Social Care,Services For Older People - 65 And Over,Third Party Payments,Nursing Home,570,13-Mar-14,1203-00438,1614.76,R,Alexander Court Care Home
http://statistics.data.gov.uk/doc/local-authority/00DA,Leeds City Council,Adult Social Care,Services For Older People Under 65 P/Dis,Transfer Payments,Personalised Budgets,627,12-Mar-14,1203-00439,726.32,R,REDACTED PERSONAL DATA
http://statistics.data.gov.uk/doc/local-authority/00DA,Leeds City Council,Adult Social Care,Services For Adults Under 65 Mental/Dis,Transfer Payments,Personalised Budgets,627,12-Mar-14,1203-00440,640,R,REDACTED PERSONAL DATA
http://statistics.data.gov.uk/doc/local-authority/00DA,Leeds City Council,Adult Social Care,Services For Adults Under 65 Mental/Dis,Third Party Payments,Residential,580,12-Mar-14,1203-00441,2868,R,Alexander Residential Home
http://statistics.data.gov.uk/doc/local-authority/00DA,Leeds City Council,Adult Social Care,Services For Older People - 65 And Over,Third Party Payments,Residential,580,12-Mar-14,1203-00442,23029.34,R,Alexander Residential Home
http://statistics.data.gov.uk/doc/local-authority/00DA,Leeds City Council,Adult Social Care,Services For Older People - 65 And Over,Third Party Payments,Residential Care Dementia,571,12-Mar-14,1203-00443,19691.26,R,Alexander Residential Home
http://statistics.data.gov.uk/doc/local-authority/00DA,Leeds City Council as Accountable Body,Social Services Pooled Budgets,Jcs For People With Learning Disabilitie,Third Party Payments,Residential,580,12-Mar-14,1203-00444,2114,R,Alexander Residential Home
http://statistics.data.gov.uk/doc/local-authority/00DA,Leeds City Council as Accountable Body,Social Services Pooled Budgets,Jcs For People With Learning Disabilitie,Transfer Payments,Personal Budgets,627,12-Mar-14,1203-00445,583.32,R,REDACTED PERSONAL DATA
http://statistics.data.gov.uk/doc/local-authority/00DA,Leeds City Council as Accountable Body,Social Services Pooled Budgets,Jcs For People With Learning Disabilitie,Transfer Payments,Direct Payments,626,12-Mar-14,1203-00446,266.72,R,REDACTED PERSONAL DATA
http://statistics.data.gov.uk/doc/local-authority/00DA,Leeds City Council,Adult Social Care,Services For Older People - 65 And Over  ,Supplies and Services,Clothing & Uniforms,241,19-Feb-14,1203-00447,83.88,R,Alexandra
http://statistics.data.gov.uk/doc/local-authority/00DA,Leeds City Council,Adult Social Care,Services For Older People - 65 And Over,Third Party Payments,Residential,580,12-Mar-14,1203-00448,20263.06,R,Alexandra Court
http://statistics.data.gov.uk/doc/local-authority/00DA,Leeds City Council,Central & Corporate,Customer Services,Supplies and Services,Other Hired And Contracted Services,265,06-Mar-14,1203-00449,574.25,R,Alexandra Hirst
http://statistics.data.gov.uk/doc/local-authority/00DA,Leeds City Council,Environment & Housing,Health & Environmental Action,Supplies and Services,Other Hired And Contracted Services,265,06-Mar-14,1203-00450,521,R,Alexia Blohm-Pain
http://statistics.data.gov.uk/doc/local-authority/00DA,Leeds City Council,Environment & Housing,Health & Environmental Action,Supplies and Services,Other Hired And Contracted Services,265,19-Mar-14,1203-00451,551,R,Alexia Blohm-Pain
http://statistics.data.gov.uk/doc/local-authority/00DA,Leeds City Council,Environment & Housing,Health & Environmental Action,Supplies and Services,Other Hired And Contracted Services,265,28-Mar-14,1203-00452,275.5,R,Alexia Blohm-Pain
http://statistics.data.gov.uk/doc/local-authority/00DA,Leeds City Council,Environment & Housing,Environmental Action (South),Supplies and Services,Bought In Professional Services,277,21-Mar-14,1203-00453,700,R,Alfies Boarding Kennels
http://statistics.data.gov.uk/doc/local-authority/00DA,Leeds City Council,Environment & Housing,Environmental Action (South),Supplies and Services,Bought In Professional Services,277,07-Mar-14,1203-00454,373.4,R,Alfies Boarding Kennels
http://statistics.data.gov.uk/doc/local-authority/00DA,Leeds City Council,Environment & Housing,Environmental Action (South),Supplies and Services,Bought In Professional Services,277,13-Mar-14,1203-00455,329.3,R,Alfies Boarding Kennels
http://statistics.data.gov.uk/doc/local-authority/00DA,Leeds City Council,Environment & Housing,Environmental Action (South),Supplies and Services,Bought In Professional Services,277,21-Mar-14,1203-00456,371.8,R,Alfies Boarding Kennels
http://statistics.data.gov.uk/doc/local-authority/00DA,Leeds City Council,Environment & Housing,Environmental Action (South),Supplies and Services,Bought In Professional Services,277,21-Mar-14,1203-00457,215.9,R,Alfies Boarding Kennels
http://statistics.data.gov.uk/doc/local-authority/00DA,Leeds City Council,Central & Corporate,Commercial Services Trading Services,Supplies and Services,Other Hired And Contracted Services,265,17-Mar-14,1203-00458,7100,R,Alfred Bagnall & Sons (Leeds) Ltd
http://statistics.data.gov.uk/doc/local-authority/00DA,Leeds City Council,Central & Corporate,Corporate Services Support Services,Premises,Maintenance Of Buildings,101,21-Mar-14,1203-00459,120,R,Alfred Bagnall & Sons (Leeds) Ltd
http://statistics.data.gov.uk/doc/local-authority/00DA,Leeds City Council,City Development,Asset Management Services,Premises,Maintenance Of Buildings,101,26-Mar-14,1203-00460,530,R,Alfred Bagnall & Sons (Leeds) Ltd
http://statistics.data.gov.uk/doc/local-authority/00DA,Leeds City Council,City Development,Asset Management Services,Premises,Maintenance Of Buildings,101,26-Mar-14,1203-00461,9797.5,R,Alfred Bagnall & Sons (Leeds) Ltd
http://statistics.data.gov.uk/doc/local-authority/00DA,Leeds City Council,City Development,Asset Management Services,Premises,Maintenance Of Buildings,101,26-Mar-14,1203-00462,670,R,Alfred Bagnall & Sons (Leeds) Ltd
http://statistics.data.gov.uk/doc/local-authority/00DA,Leeds City Council,City Development,Asset Management Services,Capital,Construction,3,04-Mar-14,1203-00463,1781.6,C,Alfred Bagnall & Sons (Leeds) Ltd
http://statistics.data.gov.uk/doc/local-authority/00DA,Leeds City Council,City Development, Libraries  Arts & Heritage,Premises,Maintenance Of Buildings,101,07-Mar-14,1203-00464,500,R,Alfred Bagnall & Sons (Leeds) Ltd
http://statistics.data.gov.uk/doc/local-authority/00DA,Leeds City Council,City Development, Libraries  Arts & Heritage,Premises,Maintenance Of Buildings,101,04-Mar-14,1203-00465,4700,R,Alfred Bagnall & Sons (Leeds) Ltd
http://statistics.data.gov.uk/doc/local-authority/00DA,Leeds City Council,Adult Social Care,Services For Older People Under 65 P/Dis,Transfer Payments,Personalised Budgets,627,12-Mar-14,1203-00466,525.36,R,REDACTED PERSONAL DATA
http://statistics.data.gov.uk/doc/local-authority/00DA,Leeds City Council as Accountable Body,Social Services Pooled Budgets,Jcs For People With Learning Disabilitie,Transfer Payments,Personal Budgets,627,12-Mar-14,1203-00467,947.96,R,REDACTED PERSONAL DATA
http://statistics.data.gov.uk/doc/local-authority/00DA,Leeds City Council,Adult Social Care,Services For Older People Under 65 P/Dis,Transfer Payments,Personalised Budgets,627,12-Mar-14,1203-00468,192,R,REDACTED PERSONAL DATA
http://statistics.data.gov.uk/doc/local-authority/00DA,Leeds City Council,Environment & Housing,Streetscene Environmental Services,Income,Penalties  Fines & Car Parking Charges,934,06-Mar-14,1203-00469,74.99,R,REDACTED PERSONAL DATA
http://statistics.data.gov.uk/doc/local-authority/00DA,Leeds City Council,City Development, Libraries  Arts & Heritage,Supplies and Services,Other Hired And Contracted Services,265,27-Mar-14,1203-00470,1200,R,Alison Glew
http://statistics.data.gov.uk/doc/local-authority/00DA,Leeds City Council,City Development, Libraries  Arts & Heritage,Supplies and Services,Bought In Professional Services,277,05-Mar-14,1203-00471,1409.5,R,Alison Glew
http://statistics.data.gov.uk/doc/local-authority/00DA,Leeds City Council,Environment & Housing,Streetscene Environmental Services,Income,Penalties  Fines & Car Parking Charges,934,20-Mar-14,1203-00472,4.5,R,REDACTED PERSONAL DATA
http://statistics.data.gov.uk/doc/local-authority/00DA,Leeds City Council,Adult Social Care,Services For Older People Under 65 P/Dis,Transfer Payments,Personalised Budgets,627,12-Mar-14,1203-00473,1394,R,REDACTED PERSONAL DATA
http://statistics.data.gov.uk/doc/local-authority/00DA,Leeds City Council,Childrens Services,Learning Skills & Universal,Transport,Public Transport Expenses,310,19-Mar-14,1203-00474,72,R,Alison Young
http://statistics.data.gov.uk/doc/local-authority/00DA,Leeds City Council,Childrens Services,Learning Skills & Universal,Supplies and Services,Operational Furniture And Equipment,203,14-Mar-14,1203-00475,75,R,All Brass And Woodwind
http://statistics.data.gov.uk/doc/local-authority/00DA,Leeds City Council,Childrens Services,Learning Skills & Universal,Third Party Payments,Services Rendered By Other Organisations,511,21-Mar-14,1203-00476,989.4,R,All Stars Childcare
http://statistics.data.gov.uk/doc/local-authority/00DA,Leeds City Council,Central & Corporate,Public Health,Supplies and Services,Subsistence,256,20-Mar-14,1203-00477,1450,R,All Things Considered Theatre
http://statistics.data.gov.uk/doc/local-authority/00DA,Leeds City Council,Childrens Services,Safeguarding Targeted & Specialist,Support Services,Legal Disbursements,411,05-Mar-14,1203-00478,1500,R,Allan Armbrister
http://statistics.data.gov.uk/doc/local-authority/00DA,Leeds City Council,Environment & Housing,Parks & Countryside,Supplies and Services,Operational Materials,205,06-Mar-14,1203-00479,55,R,Allansound Communications
http://statistics.data.gov.uk/doc/local-authority/00DA,Leeds City Council,City Development,Asset Management Services,Premises,Lifts,103,14-Mar-14,1203-00480,75,R,Allegion (Uk) Ltd
http://statistics.data.gov.uk/doc/local-authority/00DA,Leeds City Council,City Development,Asset Management Services,Premises,Maintenance Of Buildings,101,14-Mar-14,1203-00481,1035.5,R,Allegion (Uk) Ltd
http://statistics.data.gov.uk/doc/local-authority/00DA,Leeds City Council,Central & Corporate,Public Health,Third Party Payments,Public Health Commissioned Services,526,17-Mar-14,1203-00482,4661.55,R,Allen Stanley & Hide
http://statistics.data.gov.uk/doc/local-authority/00DA,Leeds City Council as Accountable Body,Social Services Pooled Budgets,Jcs For People With Learning Disabilitie,Third Party Payments,Sheltered Accommodation,569,12-Mar-14,1203-00483,16596.04,R,Allerton Avenue
http://statistics.data.gov.uk/doc/local-authority/00DA,Leeds City Council,Strategic Accounts,Miscellaneous,Supplies and Services,Non-Recurring Grants,227,10-Mar-14,1203-00484,300,R,Allerton Bywater Community Partnership
http://statistics.data.gov.uk/doc/local-authority/00DA,Leeds City Council,Central & Corporate,Public Health,Third Party Payments,Public Health Commissioned Services,526,17-Mar-14,1203-00485,3937.25,R,Allerton Medical Centre
http://statistics.data.gov.uk/doc/local-authority/00DA,Leeds City Council,Central & Corporate,Benefits,Supplies and Services,Bank Charges,263,05-Mar-14,1203-00486,3.29,R,Alliance & Leicester Commercial Bank
http://statistics.data.gov.uk/doc/local-authority/00DA,Leeds City Council,Central & Corporate,Benefits,Supplies and Services,Bank Charges,263,05-Mar-14,1203-00487,232.65,R,Alliance & Leicester Commercial Bank
http://statistics.data.gov.uk/doc/local-authority/00DA,Leeds City Council,Central & Corporate,Benefits,Supplies and Services,Bank Charges,263,05-Mar-14,1203-00488,1117.68,R,Alliance & Leicester Commercial Bank
http://statistics.data.gov.uk/doc/local-authority/00DA,Leeds City Council,Central & Corporate,Benefits,Supplies and Services,Bank Charges,263,05-Mar-14,1203-00489,130.14,R,Alliance & Leicester Commercial Bank
http://statistics.data.gov.uk/doc/local-authority/00DA,Leeds City Council,Central & Corporate,Benefits,Supplies and Services,Bank Charges,263,03-Mar-14,1203-00490,-118.75,R,Alliance & Leicester Commercial Bank
http://statistics.data.gov.uk/doc/local-authority/00DA,Leeds City Council,Environment & Housing,Hra,Supplies and Services,Other Hired And Contracted Services,265,05-Mar-14,1203-00491,281.06,R,Alliance & Leicester Commercial Bank
http://statistics.data.gov.uk/doc/local-authority/00DA,Leeds City Council,Central & Corporate,Commercial Services Trading Services,Transport,Vehicle Spares,345,07-Mar-14,1203-00492,104.8,R,Alliance Electronics Ltd
http://statistics.data.gov.uk/doc/local-authority/00DA,Leeds City Council,Central & Corporate,Commercial Services Trading Services,Transport,Vehicle Spares,345,07-Mar-14,1203-00493,47.8,R,Alliance Electronics Ltd
http://statistics.data.gov.uk/doc/local-authority/00DA,Leeds City Council,Adult Social Care,Other Generic Services,Third Party Payments,Home Care,568,19-Mar-14,1203-00494,95.6,R,Allied Healthcare Group Ltd
http://statistics.data.gov.uk/doc/local-authority/00DA,Leeds City Council,Adult Social Care,Other Generic Services,Third Party Payments,Home Care,568,21-Mar-14,1203-00495,18725.89,R,Allied Healthcare Group Ltd
http://statistics.data.gov.uk/doc/local-authority/00DA,Leeds City Council,Adult Social Care,Other Generic Services,Third Party Payments,Home Care,568,31-Mar-14,1203-00496,7072.38,R,Allied Healthcare Group Ltd
http://statistics.data.gov.uk/doc/local-authority/00DA,Leeds City Council,Adult Social Care,Services For Older People - 65 And Over,Third Party Payments,Home Care,568,07-Mar-14,1203-00497,403.52,R,Allied Healthcare Group Ltd
http://statistics.data.gov.uk/doc/local-authority/00DA,Leeds City Council,Adult Social Care,Services For Older People - 65 And Over,Third Party Payments,Home Care,568,07-Mar-14,1203-00498,9234.43,R,Allied Healthcare Group Ltd
http://statistics.data.gov.uk/doc/local-authority/00DA,Leeds City Council,Adult Social Care,Services For Older People - 65 And Over,Third Party Payments,Home Care,568,07-Mar-14,1203-00499,6626.04,R,Allied Healthcare Group Ltd
http://statistics.data.gov.uk/doc/local-authority/00DA,Leeds City Council,Adult Social Care,Services For Older People - 65 And Over,Third Party Payments,Home Care,568,07-Mar-14,1203-00500,3044.5,R,Allied Healthcare Group Ltd
http://statistics.data.gov.uk/doc/local-authority/00DA,Leeds City Council,Adult Social Care,Services For Older People - 65 And Over,Third Party Payments,Home Care,568,07-Mar-14,1203-00501,1681.84,R,Allied Healthcare Group Ltd
http://statistics.data.gov.uk/doc/local-authority/00DA,Leeds City Council,Adult Social Care,Services For Older People - 65 And Over,Third Party Payments,Home Care,568,07-Mar-14,1203-00502,4728.62,R,Allied Healthcare Group Ltd
http://statistics.data.gov.uk/doc/local-authority/00DA,Leeds City Council,Adult Social Care,Services For Older People - 65 And Over,Third Party Payments,Home Care,568,07-Mar-14,1203-00503,293.85,R,Allied Healthcare Group Ltd
http://statistics.data.gov.uk/doc/local-authority/00DA,Leeds City Council,Adult Social Care,Services For Older People - 65 And Over,Third Party Payments,Home Care,568,07-Mar-14,1203-00504,10449.99,R,Allied Healthcare Group Ltd
http://statistics.data.gov.uk/doc/local-authority/00DA,Leeds City Council,Adult Social Care,Services For Older People - 65 And Over,Third Party Payments,Home Care,568,07-Mar-14,1203-00505,8857.36,R,Allied Healthcare Group Ltd
http://statistics.data.gov.uk/doc/local-authority/00DA,Leeds City Council,Adult Social Care,Services For Older People - 65 And Over,Third Party Payments,Home Care,568,28-Mar-14,1203-00506,532.14,R,Allied Healthcare Group Ltd
http://statistics.data.gov.uk/doc/local-authority/00DA,Leeds City Council,Adult Social Care,Services For Older People - 65 And Over,Third Party Payments,Home Care,568,28-Mar-14,1203-00507,1381.15,R,Allied Healthcare Group Ltd
http://statistics.data.gov.uk/doc/local-authority/00DA,Leeds City Council,Adult Social Care,Services For Older People - 65 And Over,Third Party Payments,Home Care,568,28-Mar-14,1203-00508,75.66,R,Allied Healthcare Group Ltd
http://statistics.data.gov.uk/doc/local-authority/00DA,Leeds City Council,Adult Social Care,Services For Older People - 65 And Over,Third Party Payments,Home Care,568,28-Mar-14,1203-00509,8266.11,R,Allied Healthcare Group Ltd
http://statistics.data.gov.uk/doc/local-authority/00DA,Leeds City Council,Adult Social Care,Services For Older People - 65 And Over,Third Party Payments,Home Care,568,28-Mar-14,1203-00510,403.14,R,Allied Healthcare Group Ltd
http://statistics.data.gov.uk/doc/local-authority/00DA,Leeds City Council,Adult Social Care,Services For Older People - 65 And Over,Third Party Payments,Home Care,568,07-Mar-14,1203-00511,16682.91,R,Allied Healthcare Group Ltd
http://statistics.data.gov.uk/doc/local-authority/00DA,Leeds City Council,Adult Social Care,Services For Older People - 65 And Over,Third Party Payments,Home Care,568,06-Mar-14,1203-00512,601.8,R,Allied Healthcare Group Ltd
http://statistics.data.gov.uk/doc/local-authority/00DA,Leeds City Council,Adult Social Care,Services For Older People - 65 And Over,Third Party Payments,Home Care,568,06-Mar-14,1203-00513,665.71,R,Allied Healthcare Group Ltd
http://statistics.data.gov.uk/doc/local-authority/00DA,Leeds City Council,Adult Social Care,Services For Older People - 65 And Over,Third Party Payments,Home Care,568,06-Mar-14,1203-00514,153,R,Allied Healthcare Group Ltd
http://statistics.data.gov.uk/doc/local-authority/00DA,Leeds City Council,Adult Social Care,Services For Older People - 65 And Over,Third Party Payments,Home Care,568,06-Mar-14,1203-00515,153.82,R,Allied Healthcare Group Ltd
http://statistics.data.gov.uk/doc/local-authority/00DA,Leeds City Council,Adult Social Care,Services For Older People - 65 And Over,Third Party Payments,Home Care,568,06-Mar-14,1203-00516,122.4,R,Allied Healthcare Group Ltd
http://statistics.data.gov.uk/doc/local-authority/00DA,Leeds City Council,Adult Social Care,Services For Older People - 65 And Over,Third Party Payments,Home Care,568,13-Mar-14,1203-00517,412.28,R,Allied Healthcare Group Ltd
http://statistics.data.gov.uk/doc/local-authority/00DA,Leeds City Council,Adult Social Care,Services For Older People - 65 And Over,Third Party Payments,Home Care,568,13-Mar-14,1203-00518,1463.09,R,Allied Healthcare Group Ltd
http://statistics.data.gov.uk/doc/local-authority/00DA,Leeds City Council,Adult Social Care,Services For Older People - 65 And Over,Third Party Payments,Home Care,568,07-Mar-14,1203-00519,75.66,R,Allied Healthcare Group Ltd
http://statistics.data.gov.uk/doc/local-authority/00DA,Leeds City Council,Adult Social Care,Services For Older People - 65 And Over,Third Party Payments,Home Care,568,07-Mar-14,1203-00520,833.47,R,Allied Healthcare Group Ltd
http://statistics.data.gov.uk/doc/local-authority/00DA,Leeds City Council,Adult Social Care,Services For Older People - 65 And Over,Third Party Payments,Home Care,568,07-Mar-14,1203-00521,1411.12,R,Allied Healthcare Group Ltd
http://statistics.data.gov.uk/doc/local-authority/00DA,Leeds City Council,Adult Social Care,Services For Older People - 65 And Over,Third Party Payments,Home Care,568,07-Mar-14,1203-00522,75.6,R,Allied Healthcare Group Ltd
http://statistics.data.gov.uk/doc/local-authority/00DA,Leeds City Council,Adult Social Care,Services For Older People Under 65 P/Dis,Third Party Payments,Home Care,568,07-Mar-14,1203-00523,376.66,R,Allied Healthcare Group Ltd
http://statistics.data.gov.uk/doc/local-authority/00DA,Leeds City Council,Adult Social Care,Services For Older People Under 65 P/Dis,Third Party Payments,Home Care,568,07-Mar-14,1203-00524,1168.11,R,Allied Healthcare Group Ltd
http://statistics.data.gov.uk/doc/local-authority/00DA,Leeds City Council,Adult Social Care,Services For Older People Under 65 P/Dis,Third Party Payments,Home Care,568,07-Mar-14,1203-00525,239.96,R,Allied Healthcare Group Ltd
http://statistics.data.gov.uk/doc/local-authority/00DA,Leeds City Council,Adult Social Care,Services For Older People Under 65 P/Dis,Third Party Payments,Home Care,568,07-Mar-14,1203-00526,1312.83,R,Allied Healthcare Group Ltd
http://statistics.data.gov.uk/doc/local-authority/00DA,Leeds City Council,Adult Social Care,Services For Older People Under 65 P/Dis,Third Party Payments,Home Care,568,28-Mar-14,1203-00527,305.79,R,Allied Healthcare Group Ltd
http://statistics.data.gov.uk/doc/local-authority/00DA,Leeds City Council,Adult Social Care,Services For Older People Under 65 P/Dis,Third Party Payments,Home Care,568,28-Mar-14,1203-00528,1991.53,R,Allied Healthcare Group Ltd
http://statistics.data.gov.uk/doc/local-authority/00DA,Leeds City Council,Adult Social Care,Services For Older People Under 65 P/Dis,Third Party Payments,Home Care,568,28-Mar-14,1203-00529,515.12,R,Allied Healthcare Group Ltd
http://statistics.data.gov.uk/doc/local-authority/00DA,Leeds City Council,Adult Social Care,Services For Older People Under 65 P/Dis,Third Party Payments,Home Care,568,06-Mar-14,1203-00530,1397.4,R,Allied Healthcare Group Ltd
http://statistics.data.gov.uk/doc/local-authority/00DA,Leeds City Council,Adult Social Care,Services For Older People Under 65 P/Dis,Third Party Payments,Home Care,568,06-Mar-14,1203-00531,1448.4,R,Allied Healthcare Group Ltd
http://statistics.data.gov.uk/doc/local-authority/00DA,Leeds City Council,Adult Social Care,Services For Older People Under 65 P/Dis,Third Party Payments,Home Care,568,06-Mar-14,1203-00532,6097.05,R,Allied Healthcare Group Ltd
http://statistics.data.gov.uk/doc/local-authority/00DA,Leeds City Council,Adult Social Care,Services For Older People Under 65 P/Dis,Third Party Payments,Home Care,568,06-Mar-14,1203-00533,856.8,R,Allied Healthcare Group Ltd
http://statistics.data.gov.uk/doc/local-authority/00DA,Leeds City Council,Adult Social Care,Services For Older People Under 65 P/Dis,Third Party Payments,Home Care,568,13-Mar-14,1203-00534,1192.89,R,Allied Healthcare Group Ltd
http://statistics.data.gov.uk/doc/local-authority/00DA,Leeds City Council,Adult Social Care,Services For Older People Under 65 P/Dis,Third Party Payments,Home Care,568,27-Mar-14,1203-00535,843.2,R,Allied Healthcare Group Ltd
http://statistics.data.gov.uk/doc/local-authority/00DA,Leeds City Council,Adult Social Care,Services For Older People Under 65 P/Dis,Third Party Payments,Home Care,568,27-Mar-14,1203-00536,326.4,R,Allied Healthcare Group Ltd
http://statistics.data.gov.uk/doc/local-authority/00DA,Leeds City Council,Adult Social Care,Services For Older People Under 65 P/Dis,Third Party Payments,Home Care,568,07-Mar-14,1203-00537,75.66,R,Allied Healthcare Group Ltd
http://statistics.data.gov.uk/doc/local-authority/00DA,Leeds City Council,Adult Social Care,Services For Older People Under 65 P/Dis,Third Party Payments,Home Care,568,07-Mar-14,1203-00538,2004.37,R,Allied Healthcare Group Ltd
http://statistics.data.gov.uk/doc/local-authority/00DA,Leeds City Council,Central & Corporate,Commercial Services General Fund,Employees,Agency Staff,8,26-Mar-14,1203-00539,192.67,R,Allied Healthcare Group Ltd
http://statistics.data.gov.uk/doc/local-authority/00DA,Leeds City Council,Central & Corporate,Commercial Services General Fund,Employees,Agency Staff,8,26-Mar-14,1203-00540,150.07,R,Allied Healthcare Group Ltd
http://statistics.data.gov.uk/doc/local-authority/00DA,Leeds City Council,Central & Corporate,Commercial Services General Fund,Employees,Agency Staff,8,07-Mar-14,1203-00541,213.97,R,Allied Healthcare Group Ltd
http://statistics.data.gov.uk/doc/local-authority/00DA,Leeds City Council,Central & Corporate,Commercial Services General Fund,Employees,Agency Staff,8,03-Mar-14,1203-00542,127.8,R,Allied Healthcare Group Ltd
http://statistics.data.gov.uk/doc/local-authority/00DA,Leeds City Council,Central & Corporate,Commercial Services General Fund,Employees,Agency Staff,8,28-Mar-14,1203-00543,213.97,R,Allied Healthcare Group Ltd
http://statistics.data.gov.uk/doc/local-authority/00DA,Leeds City Council,Central & Corporate,Commercial Services General Fund,Employees,Agency Staff,8,28-Mar-14,1203-00544,200.74,R,Allied Healthcare Group Ltd
http://statistics.data.gov.uk/doc/local-authority/00DA,Leeds City Council,Childrens Services,Safeguarding Targeted & Specialist,Third Party Payments,Services Rendered By Voluntary Sector,505,11-Mar-14,1203-00545,379.52,R,Allied Healthcare Group Ltd
http://statistics.data.gov.uk/doc/local-authority/00DA,Leeds City Council,Childrens Services,Safeguarding Targeted & Specialist,Third Party Payments,Services Rendered By Voluntary Sector,505,18-Mar-14,1203-00546,608,R,Allied Healthcare Group Ltd
http://statistics.data.gov.uk/doc/local-authority/00DA,Leeds City Council,Childrens Services,Safeguarding Targeted & Specialist,Third Party Payments,Section 17,551,18-Mar-14,1203-00547,61.48,R,Allied Healthcare Group Ltd
http://statistics.data.gov.uk/doc/local-authority/00DA,Leeds City Council as Accountable Body,Social Services Pooled Budgets,Jcs For People With Learning Disabilitie,Third Party Payments,Home Care,568,28-Mar-14,1203-00548,564.75,R,Allied Healthcare Group Ltd
http://statistics.data.gov.uk/doc/local-authority/00DA,Leeds City Council as Accountable Body,Social Services Pooled Budgets,Jcs For People With Learning Disabilitie,Third Party Payments,Home Care,568,28-Mar-14,1203-00549,192.3,R,Allied Healthcare Group Ltd
http://statistics.data.gov.uk/doc/local-authority/00DA,Leeds City Council as Accountable Body,Social Services Pooled Budgets,Jcs For People With Learning Disabilitie,Third Party Payments,Home Care,568,27-Mar-14,1203-00550,1373.75,R,Allied Healthcare Group Ltd
http://statistics.data.gov.uk/doc/local-authority/00DA,Leeds City Council as Accountable Body,Social Services Pooled Budgets,Jcs For People With Learning Disabilitie,Third Party Payments,Home Care,568,27-Mar-14,1203-00551,1827.52,R,Allied Healthcare Group Ltd
http://statistics.data.gov.uk/doc/local-authority/00DA,Leeds City Council as Accountable Body,Social Services Pooled Budgets,Jcs For People With Learning Disabilitie,Third Party Payments,Home Care,568,18-Mar-14,1203-00552,3360.26,R,Allied Healthcare Group Ltd
http://statistics.data.gov.uk/doc/local-authority/00DA,Leeds City Council as Accountable Body,Social Services Pooled Budgets,Jcs For People With Learning Disabilitie,Third Party Payments,Home Care,568,27-Mar-14,1203-00553,564.75,R,Allied Healthcare Group Ltd
http://statistics.data.gov.uk/doc/local-authority/00DA,Leeds City Council as Accountable Body,Social Services Pooled Budgets,Jcs For People With Learning Disabilitie,Third Party Payments,Home Care,568,27-Mar-14,1203-00554,25.1,R,Allied Healthcare Group Ltd
http://statistics.data.gov.uk/doc/local-authority/00DA,Leeds City Council as Accountable Body,Social Services Pooled Budgets,Jcs For People With Learning Disabilitie,Third Party Payments,Home Care,568,27-Mar-14,1203-00555,3801.76,R,Allied Healthcare Group Ltd
http://statistics.data.gov.uk/doc/local-authority/00DA,Leeds City Council as Accountable Body,Social Services Pooled Budgets,Jcs For People With Learning Disabilitie,Third Party Payments,Home Care,568,11-Mar-14,1203-00556,3356.15,R,Allied Healthcare Group Ltd
http://statistics.data.gov.uk/doc/local-authority/00DA,Leeds City Council as Accountable Body,Social Services Pooled Budgets,Jcs For People With Learning Disabilitie,Third Party Payments,Home Care,568,13-Mar-14,1203-00557,37.65,R,Allied Healthcare Group Ltd
http://statistics.data.gov.uk/doc/local-authority/00DA,Leeds City Council as Accountable Body,Social Services Pooled Budgets,Jcs For People With Learning Disabilitie,Third Party Payments,Home Care,568,11-Mar-14,1203-00558,3820.28,R,Allied Healthcare Group Ltd
http://statistics.data.gov.uk/doc/local-authority/00DA,Leeds City Council as Accountable Body,Social Services Pooled Budgets,Jcs For People With Learning Disabilitie,Third Party Payments,Home Care,568,11-Mar-14,1203-00559,3376.3,R,Allied Healthcare Group Ltd
http://statistics.data.gov.uk/doc/local-authority/00DA,Leeds City Council as Accountable Body,Social Services Pooled Budgets,Jcs For People With Learning Disabilitie,Third Party Payments,Home Care,568,13-Mar-14,1203-00560,564.75,R,Allied Healthcare Group Ltd
http://statistics.data.gov.uk/doc/local-authority/00DA,Leeds City Council as Accountable Body,Social Services Pooled Budgets,Jcs For People With Learning Disabilitie,Third Party Payments,Home Care,568,07-Mar-14,1203-00561,37.65,R,Allied Healthcare Group Ltd
http://statistics.data.gov.uk/doc/local-authority/00DA,Leeds City Council as Accountable Body,Social Services Pooled Budgets,Jcs For People With Learning Disabilitie,Third Party Payments,Home Care,568,31-Mar-14,1203-00562,3787.84,R,Allied Healthcare Group Ltd
http://statistics.data.gov.uk/doc/local-authority/00DA,Leeds City Council as Accountable Body,Social Services Pooled Budgets,Jcs For People With Learning Disabilitie,Third Party Payments,Home Care,568,06-Mar-14,1203-00563,91.8,R,Allied Healthcare Group Ltd
http://statistics.data.gov.uk/doc/local-authority/00DA,Leeds City Council as Accountable Body,Social Services Pooled Budgets,Jcs For People With Learning Disabilitie,Third Party Payments,Home Care,568,06-Mar-14,1203-00564,102,R,Allied Healthcare Group Ltd
http://statistics.data.gov.uk/doc/local-authority/00DA,Leeds City Council as Accountable Body,Social Services Pooled Budgets,Jcs For People With Learning Disabilitie,Third Party Payments,Home Care,568,03-Mar-14,1203-00565,3801.76,R,Allied Healthcare Group Ltd
http://statistics.data.gov.uk/doc/local-authority/00DA,Leeds City Council as Accountable Body,Social Services Pooled Budgets,Jcs For People With Learning Disabilitie,Third Party Payments,Home Care,568,14-Mar-14,1203-00566,1462.57,R,Allied Healthcare Group Ltd
http://statistics.data.gov.uk/doc/local-authority/00DA,Leeds City Council,City Development,Planning & Sustainable Development,Supplies and Services,Computer Software & Equipment,214,12-Mar-14,1203-00567,695,R,Allied Images Ltd
http://statistics.data.gov.uk/doc/local-authority/00DA,Leeds City Council,Central & Corporate,Public Health,Third Party Payments,Public Health Commissioned Services,526,21-Mar-14,1203-00568,403.5,R,Allied Pharmacy Ltd
http://statistics.data.gov.uk/doc/local-authority/00DA,Leeds City Council,Central & Corporate,Public Health,Third Party Payments,Public Health Commissioned Services,526,04-Mar-14,1203-00569,573.95,R,Allied Pharmacy Ltd
http://statistics.data.gov.uk/doc/local-authority/00DA,Leeds City Council,Central & Corporate,Commercial Services Trading Services,Transport,Fuel (Non LCC Supplies),321,28-Mar-14,1203-00570,26.18,R,Allstar Business Solutions Ltd
http://statistics.data.gov.uk/doc/local-authority/00DA,Leeds City Council,Central & Corporate,Commercial Services Trading Services,Transport,Fuel (Non LCC Supplies),321,17-Mar-14,1203-00571,101.43,R,Allstar Business Solutions Ltd
http://statistics.data.gov.uk/doc/local-authority/00DA,Leeds City Council,Central & Corporate,Support And Facilities General Fund,Transport,Fuel (Non LCC Supplies),321,07-Mar-14,1203-00572,118.42,R,Allstar Business Solutions Ltd
http://statistics.data.gov.uk/doc/local-authority/00DA,Leeds City Council,Childrens Services,Learning Skills & Universal,Transport,Fuel (Non LCC Supplies),321,07-Mar-14,1203-00573,2411.12,R,Allstar Business Solutions Ltd
http://statistics.data.gov.uk/doc/local-authority/00DA,Leeds City Council,City Development,Highways,Transport,Fuel (Non LCC Supplies),321,07-Mar-14,1203-00574,464.42,R,Allstar Business Solutions Ltd
http://statistics.data.gov.uk/doc/local-authority/00DA,Leeds City Council,Environment & Housing,Hra,Premises,General Maintenance,104,03-Mar-14,1203-00575,20.84,R,Al-Murad Diy Ltd
http://statistics.data.gov.uk/doc/local-authority/00DA,Leeds City Council,Environment & Housing,Hra,Premises,General Maintenance,104,03-Mar-14,1203-00576,166.67,R,Al-Murad Diy Ltd
http://statistics.data.gov.uk/doc/local-authority/00DA,Leeds City Council,Environment & Housing,Hra,Premises,General Maintenance,104,03-Mar-14,1203-00577,41.67,R,Al-Murad Diy Ltd
http://statistics.data.gov.uk/doc/local-authority/00DA,Leeds City Council,Environment & Housing,Hra,Premises,General Maintenance,104,03-Mar-14,1203-00578,41.67,R,Al-Murad Diy Ltd
http://statistics.data.gov.uk/doc/local-authority/00DA,Leeds City Council,Environment & Housing,Hra,Premises,General Maintenance,104,03-Mar-14,1203-00579,41.67,R,Al-Murad Diy Ltd
http://statistics.data.gov.uk/doc/local-authority/00DA,Leeds City Council,Environment & Housing,Hra,Premises,General Maintenance,104,03-Mar-14,1203-00580,83.34,R,Al-Murad Diy Ltd
http://statistics.data.gov.uk/doc/local-authority/00DA,Leeds City Council,Environment & Housing,Hra,Premises,General Maintenance,104,03-Mar-14,1203-00581,25,R,Al-Murad Diy Ltd
http://statistics.data.gov.uk/doc/local-authority/00DA,Leeds City Council,Environment & Housing,Hra,Premises,General Maintenance,104,03-Mar-14,1203-00582,83.34,R,Al-Murad Diy Ltd
http://statistics.data.gov.uk/doc/local-authority/00DA,Leeds City Council,Environment & Housing,Hra,Premises,General Maintenance,104,05-Mar-14,1203-00583,16.67,R,Al-Murad Diy Ltd
http://statistics.data.gov.uk/doc/local-authority/00DA,Leeds City Council,Environment & Housing,Hra,Premises,General Maintenance,104,03-Mar-14,1203-00584,41.67,R,Al-Murad Diy Ltd
http://statistics.data.gov.uk/doc/local-authority/00DA,Leeds City Council,Environment & Housing,Hra,Premises,General Maintenance,104,03-Mar-14,1203-00585,83.34,R,Al-Murad Diy Ltd
http://statistics.data.gov.uk/doc/local-authority/00DA,Leeds City Council,Environment & Housing,Hra,Premises,General Maintenance,104,05-Mar-14,1203-00586,83.34,R,Al-Murad Diy Ltd
http://statistics.data.gov.uk/doc/local-authority/00DA,Leeds City Council,Environment & Housing,Hra,Premises,General Maintenance,104,05-Mar-14,1203-00587,62.5,R,Al-Murad Diy Ltd
http://statistics.data.gov.uk/doc/local-authority/00DA,Leeds City Council,Environment & Housing,Hra,Premises,General Maintenance,104,05-Mar-14,1203-00588,33.34,R,Al-Murad Diy Ltd
http://statistics.data.gov.uk/doc/local-authority/00DA,Leeds City Council,Environment & Housing,Hra,Premises,General Maintenance,104,05-Mar-14,1203-00589,333.34,R,Al-Murad Diy Ltd
http://statistics.data.gov.uk/doc/local-authority/00DA,Leeds City Council,Environment & Housing,Hra,Premises,General Maintenance,104,05-Mar-14,1203-00590,83.34,R,Al-Murad Diy Ltd
http://statistics.data.gov.uk/doc/local-authority/00DA,Leeds City Council,Environment & Housing,Hra,Premises,General Maintenance,104,05-Mar-14,1203-00591,91.67,R,Al-Murad Diy Ltd
http://statistics.data.gov.uk/doc/local-authority/00DA,Leeds City Council,Environment & Housing,Hra,Premises,General Maintenance,104,05-Mar-14,1203-00592,33.34,R,Al-Murad Diy Ltd
http://statistics.data.gov.uk/doc/local-authority/00DA,Leeds City Council,Environment & Housing,Hra,Premises,General Maintenance,104,05-Mar-14,1203-00593,125,R,Al-Murad Diy Ltd
http://statistics.data.gov.uk/doc/local-authority/00DA,Leeds City Council,Environment & Housing,Hra,Supplies and Services,Teaching Furniture & Equipment,207,24-Mar-14,1203-00594,126.14,R,Alpha Abc
http://statistics.data.gov.uk/doc/local-authority/00DA,Leeds City Council,Environment & Housing,Hra,Supplies and Services,Teaching Furniture & Equipment,207,24-Mar-14,1203-00595,211.09,R,Alpha Abc
http://statistics.data.gov.uk/doc/local-authority/00DA,Leeds City Council,Childrens Services,Safeguarding Targeted & Specialist,Support Services,Legal Disbursements,411,19-Mar-14,1203-00596,127.5,R,Alpha Biolabs
http://statistics.data.gov.uk/doc/local-authority/00DA,Leeds City Council,Childrens Services,Safeguarding Targeted & Specialist,Support Services,Legal Disbursements,411,05-Mar-14,1203-00597,106.25,R,Alpha Biolabs
http://statistics.data.gov.uk/doc/local-authority/00DA,Leeds City Council,Childrens Services,Safeguarding Targeted & Specialist,Support Services,Legal Disbursements,411,07-Mar-14,1203-00598,173.33,R,Alpha Biolabs
http://statistics.data.gov.uk/doc/local-authority/00DA,Leeds City Council,Childrens Services,Safeguarding Targeted & Specialist,Support Services,Legal Disbursements,411,19-Mar-14,1203-00599,101.25,R,Alpha Biolabs
http://statistics.data.gov.uk/doc/local-authority/00DA,Leeds City Council,Childrens Services,Safeguarding Targeted & Specialist,Support Services,Legal Disbursements,411,14-Mar-14,1203-00600,235,R,Alpha Biolabs
http://statistics.data.gov.uk/doc/local-authority/00DA,Leeds City Council,Childrens Services,Safeguarding Targeted & Specialist,Support Services,Legal Disbursements,411,19-Mar-14,1203-00601,564,R,Alpha Biolabs
http://statistics.data.gov.uk/doc/local-authority/00DA,Leeds City Council,Childrens Services,Safeguarding Targeted & Specialist,Support Services,Legal Disbursements,411,21-Mar-14,1203-00602,171.67,R,Alpha Biolabs
http://statistics.data.gov.uk/doc/local-authority/00DA,Leeds City Council,Childrens Services,Safeguarding Targeted & Specialist,Support Services,Legal Disbursements,411,21-Mar-14,1203-00603,128.75,R,Alpha Biolabs
http://statistics.data.gov.uk/doc/local-authority/00DA,Leeds City Council,Childrens Services,Safeguarding Targeted & Specialist,Support Services,Legal Disbursements,411,26-Mar-14,1203-00604,228.33,R,Alpha Biolabs
http://statistics.data.gov.uk/doc/local-authority/00DA,Leeds City Council,City Development,Asset Management Services,Premises,Maintenance Of Buildings,101,07-Mar-14,1203-00605,206,R,Alternative Drainage Company Ltd
http://statistics.data.gov.uk/doc/local-authority/00DA,Leeds City Council,Central & Corporate,Commercial Services Trading Services,Supplies and Services,Operational Materials,205,21-Mar-14,1203-00606,298.77,R,Alumasc Interior Building Products Ltd
http://statistics.data.gov.uk/doc/local-authority/00DA,Leeds City Council,Central & Corporate,Executive Support,Supplies and Services,'Well Being' Large Grants Projects,230,20-Mar-14,1203-00607,2765.94,R,Alwoodley Allotment Association
http://statistics.data.gov.uk/doc/local-authority/00DA,Leeds City Council,Strategic Accounts,Miscellaneous,Supplies and Services,Non-Recurring Grants,227,31-Mar-14,1203-00608,250,R,Alwoodley Community Association
http://statistics.data.gov.uk/doc/local-authority/00DA,Leeds City Council,Adult Social Care,Services For Older People - 65 And Over,Third Party Payments,Nursing Home,570,12-Mar-14,1203-00609,2717.48,R,Alwoodley Nursing Home
http://statistics.data.gov.uk/doc/local-authority/00DA,Leeds City Council,Adult Social Care,Services For Older People - 65 And Over,Third Party Payments,Residential,580,12-Mar-14,1203-00610,1172.32,R,Alwoodley Nursing Home
http://statistics.data.gov.uk/doc/local-authority/00DA,Leeds City Council,Adult Social Care,Services For Older People Under 65 P/Dis,Transfer Payments,Personalised Budgets,627,12-Mar-14,1203-00611,1475,R,REDACTED PERSONAL DATA
http://statistics.data.gov.uk/doc/local-authority/00DA,Leeds City Council,Environment & Housing,Streetscene Environmental Services,Income,Penalties  Fines & Car Parking Charges,934,06-Mar-14,1203-00612,25,R,REDACTED PERSONAL DATA
http://statistics.data.gov.uk/doc/local-authority/00DA,Leeds City Council as Accountable Body,Social Services Pooled Budgets,Jcs For People With Learning Disabilitie,Transfer Payments,Personal Budgets,627,12-Mar-14,1203-00613,1073.2,R,REDACTED PERSONAL DATA
http://statistics.data.gov.uk/doc/local-authority/00DA,Leeds City Council,Adult Social Care,Services For Adults Under 65 Mental/Dis,Transfer Payments,Personalised Budgets,627,12-Mar-14,1203-00614,2082.56,R,REDACTED PERSONAL DATA
http://statistics.data.gov.uk/doc/local-authority/00DA,Leeds City Council,Adult Social Care,Services For Older People Under 65 P/Dis,Transfer Payments,Personalised Budgets,627,12-Mar-14,1203-00615,952.48,R,REDACTED PERSONAL DATA
http://statistics.data.gov.uk/doc/local-authority/00DA,Leeds City Council,Childrens Services,Learning Skills & Universal,Third Party Payments,Services Rendered By Other Organisations,511,21-Mar-14,1203-00616,123.75,R,Amanda Wharton
http://statistics.data.gov.uk/doc/local-authority/00DA,Leeds City Council,Adult Social Care,Services For Older People Under 65 P/Dis,Transfer Payments,Direct Payments,626,12-Mar-14,1203-00617,761.44,R,REDACTED PERSONAL DATA
http://statistics.data.gov.uk/doc/local-authority/00DA,Leeds City Council,Central & Corporate,Support And Facilities General Fund,Supplies and Services,Operational Materials,205,19-Mar-14,1203-00618,35.55,R,Amari Plastics Plc
http://statistics.data.gov.uk/doc/local-authority/00DA,Leeds City Council,Central & Corporate,Support And Facilities General Fund,Supplies and Services,Operational Materials,205,19-Mar-14,1203-00619,104,R,Amari Plastics Plc
http://statistics.data.gov.uk/doc/local-authority/00DA,Leeds City Council,Central & Corporate,Support And Facilities General Fund,Supplies and Services,Operational Materials,205,21-Mar-14,1203-00620,52.5,R,Amari Plastics Plc
http://statistics.data.gov.uk/doc/local-authority/00DA,Leeds City Council,Central & Corporate,Support And Facilities General Fund,Supplies and Services,Operational Materials,205,21-Mar-14,1203-00621,71.51,R,Amari Plastics Plc
http://statistics.data.gov.uk/doc/local-authority/00DA,Leeds City Council,Childrens Services,Safeguarding Targeted & Specialist  ,Premises,Maintenance of Buildings,101,13-Feb-14,1203-00622,624,R,Amari Plastics Plc
http://statistics.data.gov.uk/doc/local-authority/00DA,Leeds City Council,Childrens Services,Learning Skills & Universal,Third Party Payments,Services Rendered By Other Organisations,511,21-Mar-14,1203-00623,3847.58,R,Amazing Grace Early Years Childcare
http://statistics.data.gov.uk/doc/local-authority/00DA,Leeds City Council,Adult Social Care,Services For Older People - 65 And Over  ,Premises,First Aid Requisites,128,21-Feb-14,1203-00624,27.98,R,Amazon *mktplce Eu-Uk
http://statistics.data.gov.uk/doc/local-authority/00DA,Leeds City Council,Adult Social Care,Services For Older People Under 65 P/Dis  ,Supplies and Services,Books & Audio-Visual Materials,206,05-Feb-14,1203-00625,26.7,R,Amazon *mktplce Eu-Uk
http://statistics.data.gov.uk/doc/local-authority/00DA,Leeds City Council,Adult Social Care,Social Services Support Services  ,Supplies and Services,Books & Audio-Visual Materials,206,03-Feb-14,1203-00626,4.99,R,Amazon *mktplce Eu-Uk
http://statistics.data.gov.uk/doc/local-authority/00DA,Leeds City Council,Adult Social Care,Social Services Support Services  ,Supplies and Services,Books & Audio-Visual Materials,206,03-Feb-14,1203-00627,4.99,R,Amazon *mktplce Eu-Uk
http://statistics.data.gov.uk/doc/local-authority/00DA,Leeds City Council,Adult Social Care,Social Services Support Services  ,Supplies and Services,Books & Audio-Visual Materials,206,04-Feb-14,1203-00628,4.99,R,Amazon *mktplce Eu-Uk
http://statistics.data.gov.uk/doc/local-authority/00DA,Leeds City Council,Adult Social Care,Social Services Support Services  ,Supplies and Services,Books & Audio-Visual Materials,206,18-Feb-14,1203-00629,88.25,R,Amazon *mktplce Eu-Uk
http://statistics.data.gov.uk/doc/local-authority/00DA,Leeds City Council,Adult Social Care,Social Services Support Services  ,Supplies and Services,Books & Audio-Visual Materials,206,25-Feb-14,1203-00630,-88.25,R,Amazon *mktplce Eu-Uk
http://statistics.data.gov.uk/doc/local-authority/00DA,Leeds City Council,Central & Corporate Functions,Benefits  ,Supplies and Services,Office Furniture & Equipment,201,06-Feb-14,1203-00631,69.99,R,Amazon *mktplce Eu-Uk
http://statistics.data.gov.uk/doc/local-authority/00DA,Leeds City Council,Central & Corporate Functions,Commercial Services Trading Services  ,Supplies and Services,Teaching Materials,203,03-Feb-14,1203-00632,75.6,R,Amazon *mktplce Eu-Uk
http://statistics.data.gov.uk/doc/local-authority/00DA,Leeds City Council,Central & Corporate Functions,Commercial Services Trading Services  ,Supplies and Services,Teaching Materials,203,10-Feb-14,1203-00633,129.91,R,Amazon *mktplce Eu-Uk
http://statistics.data.gov.uk/doc/local-authority/00DA,Leeds City Council,Central & Corporate Functions,Commercial Services Trading Services  ,Supplies and Services,Teaching Materials,203,17-Feb-14,1203-00634,58.97,R,Amazon *mktplce Eu-Uk
http://statistics.data.gov.uk/doc/local-authority/00DA,Leeds City Council,Central & Corporate Functions,Commercial Services Trading Services  ,Supplies and Services,Teaching Materials,203,18-Feb-14,1203-00635,27.93,R,Amazon *mktplce Eu-Uk
http://statistics.data.gov.uk/doc/local-authority/00DA,Leeds City Council,Central & Corporate Functions,Commercial Services Trading Services  ,Supplies and Services,Teaching Materials,203,19-Feb-14,1203-00636,6.39,R,Amazon *mktplce Eu-Uk
http://statistics.data.gov.uk/doc/local-authority/00DA,Leeds City Council,Central & Corporate Functions,Commercial Services Trading Services  ,Supplies and Services,Teaching Materials,203,24-Feb-14,1203-00637,143.6,R,Amazon *mktplce Eu-Uk
http://statistics.data.gov.uk/doc/local-authority/00DA,Leeds City Council,Central & Corporate Functions,Commercial Services Trading Services  ,Supplies and Services,Telephones,213,20-Feb-14,1203-00638,-23.1,R,Amazon *mktplce Eu-Uk
http://statistics.data.gov.uk/doc/local-authority/00DA,Leeds City Council,Central & Corporate Functions,Commercial Services Trading Services  ,Supplies and Services,Telephones,213,27-Feb-14,1203-00639,4.06,R,Amazon *mktplce Eu-Uk
http://statistics.data.gov.uk/doc/local-authority/00DA,Leeds City Council,Central & Corporate Functions,Commercial Services Trading Services  ,Supplies and Services,Telephones,213,27-Feb-14,1203-00640,6.6,R,Amazon *mktplce Eu-Uk
http://statistics.data.gov.uk/doc/local-authority/00DA,Leeds City Council,Central & Corporate Functions,Commercial Services Trading Services  ,Supplies and Services,Clothing & Uniforms,241,26-Feb-14,1203-00641,67.94,R,Amazon *mktplce Eu-Uk
http://statistics.data.gov.uk/doc/local-authority/00DA,Leeds City Council,Central & Corporate Functions,Corporate Governance  ,Supplies and Services,Other Hired And Contracted Services,265,07-Feb-14,1203-00642,95.3,R,Amazon *mktplce Eu-Uk
http://statistics.data.gov.uk/doc/local-authority/00DA,Leeds City Council,Central & Corporate Functions,Customer Services  ,Supplies and Services,Operational Materials,205,10-Feb-14,1203-00643,92.7,R,Amazon *mktplce Eu-Uk
http://statistics.data.gov.uk/doc/local-authority/00DA,Leeds City Council,Central & Corporate Functions,Customer Services  ,Supplies and Services,Bedding & Linen,222,17-Feb-14,1203-00644,50.08,R,Amazon *mktplce Eu-Uk
http://statistics.data.gov.uk/doc/local-authority/00DA,Leeds City Council,Central & Corporate Functions,Executive Support  ,Supplies and Services,Computer Software & Equipment,214,27-Feb-14,1203-00645,35,R,Amazon *mktplce Eu-Uk
http://statistics.data.gov.uk/doc/local-authority/00DA,Leeds City Council,Central & Corporate Functions,Financial Management  ,Supplies and Services,Computer Software & Equipment,214,14-Feb-14,1203-00646,28.23,R,Amazon *mktplce Eu-Uk
http://statistics.data.gov.uk/doc/local-authority/00DA,Leeds City Council,Central & Corporate Functions,Information Technology  ,Supplies and Services,Telephones,213,13-Feb-14,1203-00647,7.5,R,Amazon *mktplce Eu-Uk
http://statistics.data.gov.uk/doc/local-authority/00DA,Leeds City Council,Central & Corporate Functions,Information Technology  ,Supplies and Services,Computer Software & Equipment,214,05-Feb-14,1203-00648,109.89,R,Amazon *mktplce Eu-Uk
http://statistics.data.gov.uk/doc/local-authority/00DA,Leeds City Council,Central & Corporate Functions,Information Technology  ,Supplies and Services,Computer Software & Equipment,214,10-Feb-14,1203-00649,1.96,R,Amazon *mktplce Eu-Uk
http://statistics.data.gov.uk/doc/local-authority/00DA,Leeds City Council,Central & Corporate Functions,Information Technology  ,Supplies and Services,Computer Software & Equipment,214,25-Feb-14,1203-00650,32.08,R,Amazon *mktplce Eu-Uk
http://statistics.data.gov.uk/doc/local-authority/00DA,Leeds City Council,Central & Corporate Functions,Information Technology  ,Supplies and Services,Computer Software & Equipment,214,28-Feb-14,1203-00651,1.99,R,Amazon *mktplce Eu-Uk
http://statistics.data.gov.uk/doc/local-authority/00DA,Leeds City Council,Central & Corporate Functions,Revenues  ,Supplies and Services,Office Furniture & Equipment,201,14-Feb-14,1203-00652,1.99,R,Amazon *mktplce Eu-Uk
http://statistics.data.gov.uk/doc/local-authority/00DA,Leeds City Council,Central & Corporate Functions,Revenues  ,Supplies and Services,Office Furniture & Equipment,201,20-Feb-14,1203-00653,21.98,R,Amazon *mktplce Eu-Uk
http://statistics.data.gov.uk/doc/local-authority/00DA,Leeds City Council,Central & Corporate Functions,Support And Facilities General Fund  ,Supplies and Services,Books & Audio-Visual Materials,206,11-Feb-14,1203-00654,5.1,R,Amazon *mktplce Eu-Uk
http://statistics.data.gov.uk/doc/local-authority/00DA,Leeds City Council,Central & Corporate Functions,Support And Facilities General Fund  ,Supplies and Services,Books & Audio-Visual Materials,206,11-Feb-14,1203-00655,29.16,R,Amazon *mktplce Eu-Uk
http://statistics.data.gov.uk/doc/local-authority/00DA,Leeds City Council,Central & Corporate Functions,Support And Facilities General Fund  ,Supplies and Services,Books & Audio-Visual Materials,206,11-Feb-14,1203-00656,5.22,R,Amazon *mktplce Eu-Uk
http://statistics.data.gov.uk/doc/local-authority/00DA,Leeds City Council,Central & Corporate Functions,Support And Facilities General Fund  ,Supplies and Services,Books & Audio-Visual Materials,206,11-Feb-14,1203-00657,19.5,R,Amazon *mktplce Eu-Uk
http://statistics.data.gov.uk/doc/local-authority/00DA,Leeds City Council,Central & Corporate Functions,Support And Facilities General Fund  ,Supplies and Services,Books & Audio-Visual Materials,206,12-Feb-14,1203-00658,11.89,R,Amazon *mktplce Eu-Uk
http://statistics.data.gov.uk/doc/local-authority/00DA,Leeds City Council,Childrens Services,Learning Skills & Universal  ,Supplies and Services,Teaching Materials,202,05-Feb-14,1203-00659,19.79,R,Amazon *mktplce Eu-Uk
http://statistics.data.gov.uk/doc/local-authority/00DA,Leeds City Council,Childrens Services,Learning Skills & Universal  ,Supplies and Services,Teaching Materials,203,03-Feb-14,1203-00660,67.95,R,Amazon *mktplce Eu-Uk
http://statistics.data.gov.uk/doc/local-authority/00DA,Leeds City Council,Childrens Services,Learning Skills & Universal  ,Supplies and Services,Teaching Materials,203,03-Feb-14,1203-00661,52.4,R,Amazon *mktplce Eu-Uk
http://statistics.data.gov.uk/doc/local-authority/00DA,Leeds City Council,Childrens Services,Learning Skills & Universal  ,Supplies and Services,Teaching Materials,203,20-Feb-14,1203-00662,4.6,R,Amazon *mktplce Eu-Uk
http://statistics.data.gov.uk/doc/local-authority/00DA,Leeds City Council,Childrens Services,Learning Skills & Universal  ,Supplies and Services,Teaching Materials,203,24-Feb-14,1203-00663,63.53,R,Amazon *mktplce Eu-Uk
http://statistics.data.gov.uk/doc/local-authority/00DA,Leeds City Council,Childrens Services,Learning Skills & Universal  ,Supplies and Services,Teaching Materials,203,26-Feb-14,1203-00664,189.99,R,Amazon *mktplce Eu-Uk
http://statistics.data.gov.uk/doc/local-authority/00DA,Leeds City Council,Childrens Services,Learning Skills & Universal  ,Supplies and Services,Operational Materials,205,21-Feb-14,1203-00665,10,R,Amazon *mktplce Eu-Uk
http://statistics.data.gov.uk/doc/local-authority/00DA,Leeds City Council,Childrens Services,Learning Skills & Universal  ,Supplies and Services,Books & Audio-Visual Materials,206,12-Feb-14,1203-00666,35.52,R,Amazon *mktplce Eu-Uk
http://statistics.data.gov.uk/doc/local-authority/00DA,Leeds City Council,Childrens Services,Learning Skills & Universal  ,Supplies and Services,Office Consumables,210,27-Feb-14,1203-00667,32.98,R,Amazon *mktplce Eu-Uk
http://statistics.data.gov.uk/doc/local-authority/00DA,Leeds City Council,Childrens Services,Safeguarding Targeted & Specialist  ,Supplies and Services,Teaching Materials,202,28-Feb-14,1203-00668,44.95,R,Amazon *mktplce Eu-Uk
http://statistics.data.gov.uk/doc/local-authority/00DA,Leeds City Council,Childrens Services,Safeguarding Targeted & Specialist  ,Supplies and Services,Books & Audio-Visual Materials,206,17-Feb-14,1203-00669,58.31,R,Amazon *mktplce Eu-Uk
http://statistics.data.gov.uk/doc/local-authority/00DA,Leeds City Council,Childrens Services,Safeguarding Targeted & Specialist  ,Supplies and Services,Books & Audio-Visual Materials,206,28-Feb-14,1203-00670,10.97,R,Amazon *mktplce Eu-Uk
http://statistics.data.gov.uk/doc/local-authority/00DA,Leeds City Council,Childrens Services,Safeguarding Targeted & Specialist  ,Supplies and Services,Office Consumables,210,12-Feb-14,1203-00671,3.58,R,Amazon *mktplce Eu-Uk
http://statistics.data.gov.uk/doc/local-authority/00DA,Leeds City Council,Childrens Services,Safeguarding Targeted & Specialist  ,Supplies and Services,Office Consumables,210,14-Feb-14,1203-00672,2.08,R,Amazon *mktplce Eu-Uk
http://statistics.data.gov.uk/doc/local-authority/00DA,Leeds City Council,Childrens Services,Safeguarding Targeted & Specialist  ,Supplies and Services,Office Consumables,210,18-Feb-14,1203-00673,54.99,R,Amazon *mktplce Eu-Uk
http://statistics.data.gov.uk/doc/local-authority/00DA,Leeds City Council,Childrens Services,Safeguarding Targeted & Specialist  ,Supplies and Services,Office Consumables,210,20-Feb-14,1203-00674,7.56,R,Amazon *mktplce Eu-Uk
http://statistics.data.gov.uk/doc/local-authority/00DA,Leeds City Council,Childrens Services,Safeguarding Targeted & Specialist  ,Supplies and Services,Office Consumables,210,28-Feb-14,1203-00675,-54.99,R,Amazon *mktplce Eu-Uk
http://statistics.data.gov.uk/doc/local-authority/00DA,Leeds City Council,Childrens Services,Safeguarding Targeted & Specialist  ,Supplies and Services,Telephones,213,14-Feb-14,1203-00676,7.54,R,Amazon *mktplce Eu-Uk
http://statistics.data.gov.uk/doc/local-authority/00DA,Leeds City Council,Childrens Services,Safeguarding Targeted & Specialist  ,Transfer Payments,Payments To Residents,622,10-Feb-14,1203-00677,3.44,R,Amazon *mktplce Eu-Uk
http://statistics.data.gov.uk/doc/local-authority/00DA,Leeds City Council,Childrens Services,Safeguarding Targeted & Specialist  ,Transfer Payments,Payments To Residents,622,11-Feb-14,1203-00678,14.71,R,Amazon *mktplce Eu-Uk
http://statistics.data.gov.uk/doc/local-authority/00DA,Leeds City Council,Childrens Services,Safeguarding Targeted & Specialist  ,Transfer Payments,16 Plus Top Up Allowance,625,17-Feb-14,1203-00679,28.64,R,Amazon *mktplce Eu-Uk
http://statistics.data.gov.uk/doc/local-authority/00DA,Leeds City Council,City Development,Highways  ,Supplies and Services,Other Hired And Contracted Services,265,06-Feb-14,1203-00680,142.35,R,Amazon *mktplce Eu-Uk
http://statistics.data.gov.uk/doc/local-authority/00DA,Leeds City Council,City Development,Highways  ,Supplies and Services,Other Hired And Contracted Services,265,07-Feb-14,1203-00681,11.76,R,Amazon *mktplce Eu-Uk
http://statistics.data.gov.uk/doc/local-authority/00DA,Leeds City Council,City Development,Highways  ,Supplies and Services,Other Hired And Contracted Services,265,07-Feb-14,1203-00682,34.99,R,Amazon *mktplce Eu-Uk
http://statistics.data.gov.uk/doc/local-authority/00DA,Leeds City Council,City Development,Libraries  Arts & Heritage  ,Supplies and Services,Teaching Materials,202,06-Feb-14,1203-00683,22.94,R,Amazon *mktplce Eu-Uk
http://statistics.data.gov.uk/doc/local-authority/00DA,Leeds City Council,City Development,Libraries  Arts & Heritage  ,Supplies and Services,Teaching Materials,202,17-Feb-14,1203-00684,8,R,Amazon *mktplce Eu-Uk
http://statistics.data.gov.uk/doc/local-authority/00DA,Leeds City Council,City Development,Libraries  Arts & Heritage  ,Supplies and Services,Teaching Materials,202,20-Feb-14,1203-00685,10.5,R,Amazon *mktplce Eu-Uk
http://statistics.data.gov.uk/doc/local-authority/00DA,Leeds City Council,City Development,Libraries  Arts & Heritage  ,Supplies and Services,Teaching Materials,203,05-Feb-14,1203-00686,15.93,R,Amazon *mktplce Eu-Uk
http://statistics.data.gov.uk/doc/local-authority/00DA,Leeds City Council,City Development,Libraries  Arts & Heritage  ,Supplies and Services,Teaching Materials,203,05-Feb-14,1203-00687,5.08,R,Amazon *mktplce Eu-Uk
http://statistics.data.gov.uk/doc/local-authority/00DA,Leeds City Council,City Development,Libraries  Arts & Heritage  ,Supplies and Services,Teaching Materials,203,05-Feb-14,1203-00688,10.76,R,Amazon *mktplce Eu-Uk
http://statistics.data.gov.uk/doc/local-authority/00DA,Leeds City Council,City Development,Libraries  Arts & Heritage  ,Supplies and Services,Teaching Materials,203,05-Feb-14,1203-00689,4.99,R,Amazon *mktplce Eu-Uk
http://statistics.data.gov.uk/doc/local-authority/00DA,Leeds City Council,City Development,Libraries  Arts & Heritage  ,Supplies and Services,Teaching Materials,203,05-Feb-14,1203-00690,40.17,R,Amazon *mktplce Eu-Uk
http://statistics.data.gov.uk/doc/local-authority/00DA,Leeds City Council,City Development,Libraries  Arts & Heritage  ,Supplies and Services,Teaching Materials,203,05-Feb-14,1203-00691,11.45,R,Amazon *mktplce Eu-Uk
http://statistics.data.gov.uk/doc/local-authority/00DA,Leeds City Council,City Development,Libraries  Arts & Heritage  ,Supplies and Services,Teaching Materials,203,05-Feb-14,1203-00692,5.12,R,Amazon *mktplce Eu-Uk
http://statistics.data.gov.uk/doc/local-authority/00DA,Leeds City Council,City Development,Libraries  Arts & Heritage  ,Supplies and Services,Teaching Materials,203,06-Feb-14,1203-00693,4.99,R,Amazon *mktplce Eu-Uk
http://statistics.data.gov.uk/doc/local-authority/00DA,Leeds City Council,City Development,Libraries  Arts & Heritage  ,Supplies and Services,Teaching Materials,203,06-Feb-14,1203-00694,5.67,R,Amazon *mktplce Eu-Uk
http://statistics.data.gov.uk/doc/local-authority/00DA,Leeds City Council,City Development,Libraries  Arts & Heritage  ,Supplies and Services,Teaching Materials,203,06-Feb-14,1203-00695,10.99,R,Amazon *mktplce Eu-Uk
http://statistics.data.gov.uk/doc/local-authority/00DA,Leeds City Council,City Development,Libraries  Arts & Heritage  ,Supplies and Services,Operational Materials,205,05-Feb-14,1203-00696,62.49,R,Amazon *mktplce Eu-Uk
http://statistics.data.gov.uk/doc/local-authority/00DA,Leeds City Council,City Development,Libraries  Arts & Heritage  ,Supplies and Services,Operational Materials,205,05-Feb-14,1203-00697,2.58,R,Amazon *mktplce Eu-Uk
http://statistics.data.gov.uk/doc/local-authority/00DA,Leeds City Council,City Development,Libraries  Arts & Heritage  ,Supplies and Services,Operational Materials,205,05-Feb-14,1203-00698,3.82,R,Amazon *mktplce Eu-Uk
http://statistics.data.gov.uk/doc/local-authority/00DA,Leeds City Council,City Development,Libraries  Arts & Heritage  ,Supplies and Services,Operational Materials,205,05-Feb-14,1203-00699,99.98,R,Amazon *mktplce Eu-Uk
http://statistics.data.gov.uk/doc/local-authority/00DA,Leeds City Council,City Development,Libraries  Arts & Heritage  ,Supplies and Services,Operational Materials,205,06-Feb-14,1203-00700,10.7,R,Amazon *mktplce Eu-Uk
http://statistics.data.gov.uk/doc/local-authority/00DA,Leeds City Council,City Development,Libraries  Arts & Heritage  ,Supplies and Services,Operational Materials,205,06-Feb-14,1203-00701,719.32,R,Amazon *mktplce Eu-Uk
http://statistics.data.gov.uk/doc/local-authority/00DA,Leeds City Council,City Development,Libraries  Arts & Heritage  ,Supplies and Services,Operational Materials,205,07-Feb-14,1203-00702,5.44,R,Amazon *mktplce Eu-Uk
http://statistics.data.gov.uk/doc/local-authority/00DA,Leeds City Council,City Development,Libraries  Arts & Heritage  ,Supplies and Services,Operational Materials,205,11-Feb-14,1203-00703,29.99,R,Amazon *mktplce Eu-Uk
http://statistics.data.gov.uk/doc/local-authority/00DA,Leeds City Council,City Development,Libraries  Arts & Heritage  ,Supplies and Services,Operational Materials,205,12-Feb-14,1203-00704,18.99,R,Amazon *mktplce Eu-Uk
http://statistics.data.gov.uk/doc/local-authority/00DA,Leeds City Council,City Development,Libraries  Arts & Heritage  ,Supplies and Services,Operational Materials,205,13-Feb-14,1203-00705,7.05,R,Amazon *mktplce Eu-Uk
http://statistics.data.gov.uk/doc/local-authority/00DA,Leeds City Council,City Development,Libraries  Arts & Heritage  ,Supplies and Services,Operational Materials,205,13-Feb-14,1203-00706,11.1,R,Amazon *mktplce Eu-Uk
http://statistics.data.gov.uk/doc/local-authority/00DA,Leeds City Council,City Development,Libraries  Arts & Heritage  ,Supplies and Services,Operational Materials,205,17-Feb-14,1203-00707,12.99,R,Amazon *mktplce Eu-Uk
http://statistics.data.gov.uk/doc/local-authority/00DA,Leeds City Council,City Development,Libraries  Arts & Heritage  ,Supplies and Services,Operational Materials,205,26-Feb-14,1203-00708,10.69,R,Amazon *mktplce Eu-Uk
http://statistics.data.gov.uk/doc/local-authority/00DA,Leeds City Council,City Development,Libraries  Arts & Heritage  ,Supplies and Services,Operational Materials,205,26-Feb-14,1203-00709,9.67,R,Amazon *mktplce Eu-Uk
http://statistics.data.gov.uk/doc/local-authority/00DA,Leeds City Council,City Development,Libraries  Arts & Heritage  ,Supplies and Services,Operational Materials,205,27-Feb-14,1203-00710,12.5,R,Amazon *mktplce Eu-Uk
http://statistics.data.gov.uk/doc/local-authority/00DA,Leeds City Council,City Development,Libraries  Arts & Heritage  ,Supplies and Services,Operational Materials,205,27-Feb-14,1203-00711,11.95,R,Amazon *mktplce Eu-Uk
http://statistics.data.gov.uk/doc/local-authority/00DA,Leeds City Council,City Development,Libraries  Arts & Heritage  ,Supplies and Services,Operational Materials,205,27-Feb-14,1203-00712,10.98,R,Amazon *mktplce Eu-Uk
http://statistics.data.gov.uk/doc/local-authority/00DA,Leeds City Council,City Development,Libraries  Arts & Heritage  ,Supplies and Services,Operational Materials,205,27-Feb-14,1203-00713,30.58,R,Amazon *mktplce Eu-Uk
http://statistics.data.gov.uk/doc/local-authority/00DA,Leeds City Council,City Development,Libraries  Arts & Heritage  ,Supplies and Services,Operational Materials,205,28-Feb-14,1203-00714,9.99,R,Amazon *mktplce Eu-Uk
http://statistics.data.gov.uk/doc/local-authority/00DA,Leeds City Council,City Development,Libraries  Arts & Heritage  ,Supplies and Services,Books & Audio-Visual Materials,206,05-Feb-14,1203-00715,17.3,R,Amazon *mktplce Eu-Uk
http://statistics.data.gov.uk/doc/local-authority/00DA,Leeds City Council,City Development,Libraries  Arts & Heritage  ,Supplies and Services,Books & Audio-Visual Materials,206,06-Feb-14,1203-00716,13.74,R,Amazon *mktplce Eu-Uk
http://statistics.data.gov.uk/doc/local-authority/00DA,Leeds City Council,City Development,Libraries  Arts & Heritage  ,Supplies and Services,Books & Audio-Visual Materials,206,07-Feb-14,1203-00717,17.42,R,Amazon *mktplce Eu-Uk
http://statistics.data.gov.uk/doc/local-authority/00DA,Leeds City Council,City Development,Libraries  Arts & Heritage  ,Supplies and Services,Books & Audio-Visual Materials,206,07-Feb-14,1203-00718,19.5,R,Amazon *mktplce Eu-Uk
http://statistics.data.gov.uk/doc/local-authority/00DA,Leeds City Council,City Development,Libraries  Arts & Heritage  ,Supplies and Services,Books & Audio-Visual Materials,206,10-Feb-14,1203-00719,9.06,R,Amazon *mktplce Eu-Uk
http://statistics.data.gov.uk/doc/local-authority/00DA,Leeds City Council,City Development,Libraries  Arts & Heritage  ,Supplies and Services,Books & Audio-Visual Materials,206,10-Feb-14,1203-00720,1.69,R,Amazon *mktplce Eu-Uk
http://statistics.data.gov.uk/doc/local-authority/00DA,Leeds City Council,City Development,Libraries  Arts & Heritage  ,Supplies and Services,Books & Audio-Visual Materials,206,12-Feb-14,1203-00721,26.89,R,Amazon *mktplce Eu-Uk
http://statistics.data.gov.uk/doc/local-authority/00DA,Leeds City Council,City Development,Libraries  Arts & Heritage  ,Supplies and Services,Books & Audio-Visual Materials,206,26-Feb-14,1203-00722,13.8,R,Amazon *mktplce Eu-Uk
http://statistics.data.gov.uk/doc/local-authority/00DA,Leeds City Council,City Development,Planning & Sustainable Development  ,Supplies and Services,Operational Materials,205,12-Feb-14,1203-00723,5.04,R,Amazon *mktplce Eu-Uk
http://statistics.data.gov.uk/doc/local-authority/00DA,Leeds City Council,City Development,Planning & Sustainable Development  ,Supplies and Services,Operational Materials,205,17-Feb-14,1203-00724,3.47,R,Amazon *mktplce Eu-Uk
http://statistics.data.gov.uk/doc/local-authority/00DA,Leeds City Council,City Development,Planning & Sustainable Development  ,Supplies and Services,Operational Materials,205,17-Feb-14,1203-00725,3.47,R,Amazon *mktplce Eu-Uk
http://statistics.data.gov.uk/doc/local-authority/00DA,Leeds City Council,City Development,Recreation  ,Supplies and Services,Books & Audio-Visual Materials,206,07-Feb-14,1203-00726,23.22,R,Amazon *mktplce Eu-Uk
http://statistics.data.gov.uk/doc/local-authority/00DA,Leeds City Council,City Development,Recreation  ,Supplies and Services,Office Consumables,210,20-Feb-14,1203-00727,11.97,R,Amazon *mktplce Eu-Uk
http://statistics.data.gov.uk/doc/local-authority/00DA,Leeds City Council,Environments and Housing ,Environmental Action (East North East)  ,Supplies and Services,Operational Materials,205,14-Feb-14,1203-00728,15.99,R,Amazon *mktplce Eu-Uk
http://statistics.data.gov.uk/doc/local-authority/00DA,Leeds City Council,Environments and Housing ,Environmental Health  ,Supplies and Services,Books & Audio-Visual Materials,206,03-Feb-14,1203-00729,30.81,R,Amazon *mktplce Eu-Uk
http://statistics.data.gov.uk/doc/local-authority/00DA,Leeds City Council,Environments and Housing ,Streetscene Environmental Services  ,Supplies and Services,Computer Software & Equipment,214,11-Feb-14,1203-00730,1096.4,R,Amazon *mktplce Eu-Uk
http://statistics.data.gov.uk/doc/local-authority/00DA,Leeds City Council,Central & Corporate Functions,Benefits  ,Supplies and Services,Office Furniture & Equipment,201,20-Feb-14,1203-00731,13.61,R,Amazon Eu
http://statistics.data.gov.uk/doc/local-authority/00DA,Leeds City Council,Central & Corporate Functions,Benefits  ,Supplies and Services,Office Furniture & Equipment,201,24-Feb-14,1203-00732,38.69,R,Amazon Eu
http://statistics.data.gov.uk/doc/local-authority/00DA,Leeds City Council,Central & Corporate Functions,Corporate Governance  ,Supplies and Services,Books & Audio-Visual Materials,206,18-Feb-14,1203-00733,87.75,R,Amazon Eu
http://statistics.data.gov.uk/doc/local-authority/00DA,Leeds City Council,Central & Corporate Functions,Customer Services  ,Supplies and Services,Office Furniture & Equipment,201,21-Feb-14,1203-00734,77.17,R,Amazon Eu
http://statistics.data.gov.uk/doc/local-authority/00DA,Leeds City Council,Central & Corporate Functions,Executive Support  ,Supplies and Services,Books & Audio-Visual Materials,206,25-Feb-14,1203-00735,33.99,R,Amazon Eu
http://statistics.data.gov.uk/doc/local-authority/00DA,Leeds City Council,Central & Corporate Functions,Executive Support  ,Supplies and Services,Office Consumables,210,26-Feb-14,1203-00736,32.41,R,Amazon Eu
http://statistics.data.gov.uk/doc/local-authority/00DA,Leeds City Council,Central & Corporate Functions,Human Resources  ,Supplies and Services,Office Furniture & Equipment,201,26-Feb-14,1203-00737,22.11,R,Amazon Eu
http://statistics.data.gov.uk/doc/local-authority/00DA,Leeds City Council,Central & Corporate Functions,Information Technology  ,Supplies and Services,Computer Software & Equipment,214,07-Feb-14,1203-00738,67.98,R,Amazon Eu
http://statistics.data.gov.uk/doc/local-authority/00DA,Leeds City Council,Childrens Services,Learning Skills & Universal  ,Supplies and Services,Teaching Materials,202,06-Feb-14,1203-00739,15.51,R,Amazon Eu
http://statistics.data.gov.uk/doc/local-authority/00DA,Leeds City Council,Childrens Services,Learning Skills & Universal  ,Supplies and Services,Teaching Materials,202,10-Feb-14,1203-00740,29.98,R,Amazon Eu
http://statistics.data.gov.uk/doc/local-authority/00DA,Leeds City Council,Childrens Services,Learning Skills & Universal  ,Supplies and Services,Teaching Materials,202,10-Feb-14,1203-00741,44.18,R,Amazon Eu
http://statistics.data.gov.uk/doc/local-authority/00DA,Leeds City Council,Childrens Services,Learning Skills & Universal  ,Supplies and Services,Teaching Materials,202,10-Feb-14,1203-00742,22.09,R,Amazon Eu
http://statistics.data.gov.uk/doc/local-authority/00DA,Leeds City Council,Childrens Services,Learning Skills & Universal  ,Supplies and Services,Teaching Materials,202,10-Feb-14,1203-00743,175.21,R,Amazon Eu
http://statistics.data.gov.uk/doc/local-authority/00DA,Leeds City Council,Childrens Services,Learning Skills & Universal  ,Supplies and Services,Teaching Materials,202,21-Feb-14,1203-00744,44.49,R,Amazon Eu
http://statistics.data.gov.uk/doc/local-authority/00DA,Leeds City Council,Childrens Services,Learning Skills & Universal  ,Supplies and Services,Teaching Materials,202,21-Feb-14,1203-00745,327.89,R,Amazon Eu
http://statistics.data.gov.uk/doc/local-authority/00DA,Leeds City Council,Childrens Services,Learning Skills & Universal  ,Supplies and Services,Teaching Materials,202,21-Feb-14,1203-00746,5.66,R,Amazon Eu
http://statistics.data.gov.uk/doc/local-authority/00DA,Leeds City Council,Childrens Services,Learning Skills & Universal  ,Supplies and Services,Teaching Materials,203,03-Feb-14,1203-00747,71.16,R,Amazon Eu
http://statistics.data.gov.uk/doc/local-authority/00DA,Leeds City Council,Childrens Services,Safeguarding Targeted & Specialist  ,Supplies and Services,Teaching Materials,202,13-Feb-14,1203-00748,86.88,R,Amazon Eu
http://statistics.data.gov.uk/doc/local-authority/00DA,Leeds City Council,Childrens Services,Safeguarding Targeted & Specialist  ,Supplies and Services,Office Consumables,210,20-Feb-14,1203-00749,38,R,Amazon Eu
http://statistics.data.gov.uk/doc/local-authority/00DA,Leeds City Council,Childrens Services,Safeguarding Targeted & Specialist  ,Supplies and Services,Other Hired And Contracted Services,265,06-Feb-14,1203-00750,9.99,R,Amazon Eu
http://statistics.data.gov.uk/doc/local-authority/00DA,Leeds City Council,Childrens Services,Safeguarding Targeted & Specialist  ,Transfer Payments,Payments To Residents,622,03-Feb-14,1203-00751,15.5,R,Amazon Eu
http://statistics.data.gov.uk/doc/local-authority/00DA,Leeds City Council,Childrens Services,Safeguarding Targeted & Specialist  ,Transfer Payments,16 Plus Top Up Allowance,625,14-Feb-14,1203-00752,10.99,R,Amazon Eu
http://statistics.data.gov.uk/doc/local-authority/00DA,Leeds City Council,Childrens Services,Safeguarding Targeted & Specialist  ,Transfer Payments,16 Plus Top Up Allowance,625,27-Feb-14,1203-00753,8.34,R,Amazon Eu
http://statistics.data.gov.uk/doc/local-authority/00DA,Leeds City Council,City Development,Libraries  Arts & Heritage  ,Supplies and Services,Teaching Materials,203,06-Feb-14,1203-00754,5.03,R,Amazon Eu
http://statistics.data.gov.uk/doc/local-authority/00DA,Leeds City Council,City Development,Libraries  Arts & Heritage  ,Supplies and Services,Operational Materials,205,17-Feb-14,1203-00755,54.74,R,Amazon Eu
http://statistics.data.gov.uk/doc/local-authority/00DA,Leeds City Council,City Development,Libraries  Arts & Heritage  ,Supplies and Services,Books & Audio-Visual Materials,206,19-Feb-14,1203-00756,12.32,R,Amazon Eu
http://statistics.data.gov.uk/doc/local-authority/00DA,Leeds City Council,City Development,Libraries  Arts & Heritage  ,Supplies and Services,Office Consumables,210,03-Feb-14,1203-00757,12.84,R,Amazon Eu
http://statistics.data.gov.uk/doc/local-authority/00DA,Leeds City Council,City Development,Recreation  ,Supplies and Services,Office Consumables,210,20-Feb-14,1203-00758,111.45,R,Amazon Eu
http://statistics.data.gov.uk/doc/local-authority/00DA,Leeds City Council,Environments and Housing ,HRA  ,Supplies and Services,Office Consumables,210,21-Feb-14,1203-00759,71.74,R,Amazon Eu
http://statistics.data.gov.uk/doc/local-authority/00DA,Leeds City Council,Childrens Services,Learning Skills & Universal  ,Supplies and Services,Office Consumables,210,27-Feb-14,1203-00760,49,R,Amazon Prime
http://statistics.data.gov.uk/doc/local-authority/00DA,Leeds City Council,Childrens Services,Family Support Services  ,Transport,Public Transport Expenses,310,10-Feb-14,1203-00761,40.08,R,Amber Cars
http://statistics.data.gov.uk/doc/local-authority/00DA,Leeds City Council,Childrens Services,Learning Skills & Universal  ,Transport,Public Transport Expenses,310,10-Feb-14,1203-00762,218.4,R,Amber Cars
http://statistics.data.gov.uk/doc/local-authority/00DA,Leeds City Council,Childrens Services,Partnership Development & Leadership  ,Transport,Public Transport Expenses,310,10-Feb-14,1203-00763,45.6,R,Amber Cars
http://statistics.data.gov.uk/doc/local-authority/00DA,Leeds City Council,Childrens Services,Partnership Development & Leadership  ,Transport,Public Transport Expenses,310,12-Feb-14,1203-00764,100.32,R,Amber Cars
http://statistics.data.gov.uk/doc/local-authority/00DA,Leeds City Council,Childrens Services,Safeguarding Targeted & Specialist  ,Transport,Public Transport Expenses,310,10-Feb-14,1203-00765,317.62,R,Amber Cars
http://statistics.data.gov.uk/doc/local-authority/00DA,Leeds City Council,Childrens Services,Safeguarding Targeted & Specialist  ,Transport,Public Transport Expenses,310,12-Feb-14,1203-00766,93.38,R,Amber Cars
http://statistics.data.gov.uk/doc/local-authority/00DA,Leeds City Council,Childrens Services,Strategy Policy Planning & Participation  ,Transport,Public Transport Expenses,310,10-Feb-14,1203-00767,4.68,R,Amber Cars
http://statistics.data.gov.uk/doc/local-authority/00DA,Leeds City Council,Childrens Services,Safeguarding Targeted & Specialist,Third Party Payments,General External Residential Placements,507,14-Mar-14,1203-00768,14952,R,Amberleigh Care Ltd
http://statistics.data.gov.uk/doc/local-authority/00DA,Leeds City Council,Environment & Housing,Parks & Countryside,Supplies and Services,Operational Materials,205,21-Mar-14,1203-00769,714.6,R,Amberol Ltd
http://statistics.data.gov.uk/doc/local-authority/00DA,Leeds City Council,Environment & Housing,Parks & Countryside,Supplies and Services,Operational Materials,205,21-Mar-14,1203-00770,536.5,R,Amberol Ltd
http://statistics.data.gov.uk/doc/local-authority/00DA,Leeds City Council,Environment & Housing,Parks & Countryside,Supplies and Services,Operational Materials,205,21-Mar-14,1203-00771,786.25,R,Amberol Ltd
http://statistics.data.gov.uk/doc/local-authority/00DA,Leeds City Council,Central & Corporate,Commercial Services Trading Services,Supplies and Services,Operational Materials,205,19-Mar-14,1203-00772,805.85,R,Ambi-Rad Limited
http://statistics.data.gov.uk/doc/local-authority/00DA,Leeds City Council,Central & Corporate,Customer Services,Supplies and Services,Bought In Professional Services,277,14-Mar-14,1203-00773,50.88,R,Ame-It Interpreting Ltd
http://statistics.data.gov.uk/doc/local-authority/00DA,Leeds City Council,Adult Social Care,Services For Older People - 65 And Over,Third Party Payments,Residential,580,12-Mar-14,1203-00774,2139.44,R,Amelia House Care Home
http://statistics.data.gov.uk/doc/local-authority/00DA,Leeds City Council,Childrens Services,Safeguarding Targeted & Specialist  ,Third Party Payments,Contact,548,26-Feb-14,1203-00775,9.5,R,Amf Bowling
http://statistics.data.gov.uk/doc/local-authority/00DA,Leeds City Council,Adult Social Care,Services For Older People - 65 And Over,Transfer Payments,Direct Payments,626,12-Mar-14,1203-00776,388.44,R,REDACTED PERSONAL DATA
http://statistics.data.gov.uk/doc/local-authority/00DA,Leeds City Council,Adult Social Care,Services For Older People - 65 And Over,Transfer Payments,Personalised Budgets,627,12-Mar-14,1203-00777,1469.48,R,REDACTED PERSONAL DATA
http://statistics.data.gov.uk/doc/local-authority/00DA,Leeds City Council as Accountable Body,Social Services Pooled Budgets,Jcs For People With Learning Disabilitie,Transfer Payments,Personal Budgets,627,12-Mar-14,1203-00778,1814.56,R,REDACTED PERSONAL DATA
http://statistics.data.gov.uk/doc/local-authority/00DA,Leeds City Council,Central & Corporate,Commercial Services Trading Services,Supplies and Services,Computer Software & Equipment,214,06-Mar-14,1203-00779,96,R,Amtech Group Ltd
http://statistics.data.gov.uk/doc/local-authority/00DA,Leeds City Council,Central & Corporate,Commercial Services Trading Services,Supplies and Services,Computer Software & Equipment,214,12-Mar-14,1203-00780,96,R,Amtech Group Ltd
http://statistics.data.gov.uk/doc/local-authority/00DA,Leeds City Council,Central & Corporate,Customer Services,Supplies and Services,Other Hired And Contracted Services,265,06-Mar-14,1203-00781,30,R,Amtul Rashid Jawaid
http://statistics.data.gov.uk/doc/local-authority/00DA,Leeds City Council as Accountable Body,Social Services Pooled Budgets,Jcs For People With Learning Disabilitie,Transfer Payments,Personal Budgets,627,12-Mar-14,1203-00782,354.48,R,REDACTED PERSONAL DATA
http://statistics.data.gov.uk/doc/local-authority/00DA,Leeds City Council as Accountable Body,Social Services Pooled Budgets,Jcs For People With Learning Disabilitie,Transfer Payments,Personal Budgets,627,12-Mar-14,1203-00783,549.48,R,REDACTED PERSONAL DATA
http://statistics.data.gov.uk/doc/local-authority/00DA,Leeds City Council,Adult Social Care,Services For Adults Under 65 Mental/Dis,Transfer Payments,Personalised Budgets,627,12-Mar-14,1203-00784,532.72,R,REDACTED PERSONAL DATA
http://statistics.data.gov.uk/doc/local-authority/00DA,Leeds City Council,Adult Social Care,Services For Older People Under 65 P/Dis,Transfer Payments,Direct Payments,626,12-Mar-14,1203-00785,1124.72,R,REDACTED PERSONAL DATA
http://statistics.data.gov.uk/doc/local-authority/00DA,Leeds City Council,City Development, Libraries  Arts & Heritage,Supplies and Services,Other Hired And Contracted Services,265,14-Mar-14,1203-00786,500,R,Amy Welch
http://statistics.data.gov.uk/doc/local-authority/00DA,Leeds City Council as Accountable Body,Social Services Pooled Budgets,Jcs For People With Learning Disabilitie,Transfer Payments,Personal Budgets,627,12-Mar-14,1203-00787,728.76,R,REDACTED PERSONAL DATA
http://statistics.data.gov.uk/doc/local-authority/00DA,Leeds City Council,Adult Social Care,Services For Adults Under 65 Mental/Dis,Third Party Payments,Home Care,568,04-Mar-14,1203-00788,396.9,R,Anchor Trust
http://statistics.data.gov.uk/doc/local-authority/00DA,Leeds City Council,Adult Social Care,Services For Older People - 65 And Over,Third Party Payments,Residential,580,12-Mar-14,1203-00789,905.89,R,Anchor Trust
http://statistics.data.gov.uk/doc/local-authority/00DA,Leeds City Council,Adult Social Care,Services For Older People - 65 And Over,Third Party Payments,Nursing Care Dementia,574,12-Mar-14,1203-00790,1140.04,R,Anchor Trust
http://statistics.data.gov.uk/doc/local-authority/00DA,Leeds City Council,Adult Social Care,Services For Older People - 65 And Over,Third Party Payments,Residential,580,12-Mar-14,1203-00791,5073.32,R,Anchor Trust
http://statistics.data.gov.uk/doc/local-authority/00DA,Leeds City Council,Adult Social Care,Services For Older People - 65 And Over,Third Party Payments,Nursing Home,570,12-Mar-14,1203-00792,29460.6,R,Anchor Trust
http://statistics.data.gov.uk/doc/local-authority/00DA,Leeds City Council,Adult Social Care,Services For Older People - 65 And Over,Third Party Payments,Residential Care Dementia,571,12-Mar-14,1203-00793,4983,R,Anchor Trust
http://statistics.data.gov.uk/doc/local-authority/00DA,Leeds City Council,Adult Social Care,Services For Older People - 65 And Over,Third Party Payments,Nursing Care Dementia,574,12-Mar-14,1203-00794,3186,R,Anchor Trust
http://statistics.data.gov.uk/doc/local-authority/00DA,Leeds City Council,Adult Social Care,Services For Older People - 65 And Over,Third Party Payments,Residential,580,12-Mar-14,1203-00795,3477.12,R,Anchor Trust
http://statistics.data.gov.uk/doc/local-authority/00DA,Leeds City Council,Adult Social Care,Services For Older People Under 65 P/Dis,Third Party Payments,Nursing Home,570,12-Mar-14,1203-00796,2833.4,R,Anchor Trust
http://statistics.data.gov.uk/doc/local-authority/00DA,Leeds City Council,Adult Social Care,Services For Older People - 65 And Over,Third Party Payments,Residential Care Dementia,571,12-Mar-14,1203-00797,22330.17,R,Anchor Trust Simon Marks Court
http://statistics.data.gov.uk/doc/local-authority/00DA,Leeds City Council,Adult Social Care,Services For Older People - 65 And Over,Third Party Payments,Residential,580,12-Mar-14,1203-00798,9463.19,R,Anchor Trust Simon Marks Court
http://statistics.data.gov.uk/doc/local-authority/00DA,Leeds City Council,Childrens Services,Learning Skills & Universal,Third Party Payments,Services Rendered By Other Organisations,511,21-Mar-14,1203-00799,209.52,R,Andrea Cannan
http://statistics.data.gov.uk/doc/local-authority/00DA,Leeds City Council,Adult Social Care,Services For Older People - 65 And Over,Transfer Payments,Personalised Budgets,627,12-Mar-14,1203-00800,100.36,R,REDACTED PERSONAL DATA
http://statistics.data.gov.uk/doc/local-authority/00DA,Leeds City Council,Adult Social Care,Services For Older People Under 65 P/Dis,Transfer Payments,Personalised Budgets,627,12-Mar-14,1203-00801,603.6,R,REDACTED PERSONAL DATA
http://statistics.data.gov.uk/doc/local-authority/00DA,Leeds City Council,Childrens Services,Learning Skills & Universal,Third Party Payments,Services Rendered By Other Organisations,511,21-Mar-14,1203-00802,123.75,R,Andrea Gray
http://statistics.data.gov.uk/doc/local-authority/00DA,Leeds City Council,Childrens Services,Learning Skills & Universal,Third Party Payments,Services Rendered By Other Organisations,511,05-Mar-14,1203-00803,1000,R,Andrea Knapton
http://statistics.data.gov.uk/doc/local-authority/00DA,Leeds City Council,Childrens Services,Learning Skills & Universal,Third Party Payments,Services Rendered By Other Organisations,511,21-Mar-14,1203-00804,800.25,R,Andrea Knapton
http://statistics.data.gov.uk/doc/local-authority/00DA,Leeds City Council,Childrens Services,Safeguarding Targeted & Specialist,Supplies and Services,General Amenity For Clients/Residents,285,11-Mar-14,1203-00805,35.45,R,REDACTED PERSONAL DATA
http://statistics.data.gov.uk/doc/local-authority/00DA,Leeds City Council,Childrens Services,Safeguarding Targeted & Specialist,Transport,Public Transport Expenses,310,11-Mar-14,1203-00806,40.64,R,REDACTED PERSONAL DATA
http://statistics.data.gov.uk/doc/local-authority/00DA,Leeds City Council,Childrens Services,Safeguarding Targeted & Specialist,Employees,Damage To Employees Effects,55,13-Mar-14,1203-00807,180,R,REDACTED PERSONAL DATA
http://statistics.data.gov.uk/doc/local-authority/00DA,Leeds City Council,Adult Social Care,Services For Adults Under 65 Mental/Dis,Transfer Payments,Personalised Budgets,627,12-Mar-14,1203-00808,1059.16,R,REDACTED PERSONAL DATA
http://statistics.data.gov.uk/doc/local-authority/00DA,Leeds City Council,Environment & Housing,South South East,Capital,Other Costs,7,13-Mar-14,1203-00809,400,C,REDACTED PERSONAL DATA
http://statistics.data.gov.uk/doc/local-authority/00DA,Leeds City Council as Accountable Body,Social Services Pooled Budgets,Jcs For People With Learning Disabilitie,Transfer Payments,Personal Budgets,627,12-Mar-14,1203-00810,690.32,R,REDACTED PERSONAL DATA
http://statistics.data.gov.uk/doc/local-authority/00DA,Leeds City Council,City Development,Recreation,Supplies and Services,Operational Furniture And Equipment,203,14-Mar-14,1203-00811,500,R,REDACTED PERSONAL DATA
http://statistics.data.gov.uk/doc/local-authority/00DA,Leeds City Council as Accountable Body,Social Services Pooled Budgets,Jcs For People With Learning Disabilitie,Transfer Payments,Personal Budgets,627,12-Mar-14,1203-00812,837.4,R,REDACTED PERSONAL DATA
http://statistics.data.gov.uk/doc/local-authority/00DA,Leeds City Council,Adult Social Care,Services For Older People Under 65 P/Dis,Transfer Payments,Direct Payments,626,12-Mar-14,1203-00813,5326.56,R,REDACTED PERSONAL DATA
http://statistics.data.gov.uk/doc/local-authority/00DA,Leeds City Council,Adult Social Care,Services For Older People Under 65 P/Dis,Transfer Payments,Direct Payments,626,12-Mar-14,1203-00814,340.6,R,REDACTED PERSONAL DATA
http://statistics.data.gov.uk/doc/local-authority/00DA,Leeds City Council,Environment & Housing,South South East,Capital,Other Costs,7,20-Mar-14,1203-00815,350,C,REDACTED PERSONAL DATA
http://statistics.data.gov.uk/doc/local-authority/00DA,Leeds City Council,Adult Social Care,Services For Older People Under 65 P/Dis,Transfer Payments,Direct Payments,626,12-Mar-14,1203-00816,402.8,R,REDACTED PERSONAL DATA
http://statistics.data.gov.uk/doc/local-authority/00DA,Leeds City Council,Adult Social Care,Services For Older People Under 65 P/Dis,Transfer Payments,Personalised Budgets,627,12-Mar-14,1203-00817,1000,R,REDACTED PERSONAL DATA
http://statistics.data.gov.uk/doc/local-authority/00DA,Leeds City Council as Accountable Body,Social Services Pooled Budgets,Jcs For People With Learning Disabilitie,Transfer Payments,Direct Payments,626,12-Mar-14,1203-00818,552.32,R,REDACTED PERSONAL DATA
http://statistics.data.gov.uk/doc/local-authority/00DA,Leeds City Council,Adult Social Care,Services For Older People Under 65 P/Dis,Transfer Payments,Personalised Budgets,627,12-Mar-14,1203-00819,686.15,R,REDACTED PERSONAL DATA
http://statistics.data.gov.uk/doc/local-authority/00DA,Leeds City Council,Environments and Housing ,Hra  ,Supplies and Services,Other Hired And Contracted Services,265,07-Feb-14,1203-00820,60,R,Andrew Miller Buil
http://statistics.data.gov.uk/doc/local-authority/00DA,Leeds City Council,Environments and Housing ,Hra  ,Supplies and Services,Other Hired And Contracted Services,265,07-Feb-14,1203-00821,28,R,Andrew Miller Buil
http://statistics.data.gov.uk/doc/local-authority/00DA,Leeds City Council,Environments and Housing ,Hra  ,Supplies and Services,Other Hired And Contracted Services,265,20-Feb-14,1203-00822,452.76,R,Andrew Miller Buil
http://statistics.data.gov.uk/doc/local-authority/00DA,Leeds City Council,Environment & Housing,Hra,Supplies and Services,Other Hired And Contracted Services,265,28-Mar-14,1203-00823,6650,R,Andrew Miller Builders
http://statistics.data.gov.uk/doc/local-authority/00DA,Leeds City Council,Environment & Housing,Hra,Supplies and Services,Other Hired And Contracted Services,265,07-Mar-14,1203-00824,2418.5,R,Andrew Miller Builders
http://statistics.data.gov.uk/doc/local-authority/00DA,Leeds City Council,Environment & Housing,Hra,Supplies and Services,Other Hired And Contracted Services,265,07-Mar-14,1203-00825,1550,R,Andrew Miller Builders
http://statistics.data.gov.uk/doc/local-authority/00DA,Leeds City Council,Environment & Housing,Hra,Supplies and Services,Other Hired And Contracted Services,265,07-Mar-14,1203-00826,2061.6,R,Andrew Miller Builders
http://statistics.data.gov.uk/doc/local-authority/00DA,Leeds City Council,Central & Corporate,Commercial Services Trading Services,Transport,Vehicle Spares,345,14-Mar-14,1203-00827,3.93,R,Andrew Page Ltd
http://statistics.data.gov.uk/doc/local-authority/00DA,Leeds City Council,Adult Social Care,Services For Older People Under 65 P/Dis,Transfer Payments,Personalised Budgets,627,12-Mar-14,1203-00828,505.6,R,REDACTED PERSONAL DATA
http://statistics.data.gov.uk/doc/local-authority/00DA,Leeds City Council,Adult Social Care,Services For Older People Under 65 P/Dis,Transfer Payments,Direct Payments,626,12-Mar-14,1203-00829,2021.52,R,REDACTED PERSONAL DATA
http://statistics.data.gov.uk/doc/local-authority/00DA,Leeds City Council,City Development,Recreation,Supplies and Services,Other Hired And Contracted Services,265,05-Mar-14,1203-00830,500,R,Andrew Shepherd
http://statistics.data.gov.uk/doc/local-authority/00DA,Leeds City Council,Adult Social Care,Services For Older People Under 65 P/Dis,Transfer Payments,Personalised Budgets,627,12-Mar-14,1203-00831,655.68,R,REDACTED PERSONAL DATA
http://statistics.data.gov.uk/doc/local-authority/00DA,Leeds City Council as Accountable Body,Social Services Pooled Budgets,Jcs For People With Learning Disabilitie,Transfer Payments,Direct Payments,626,12-Mar-14,1203-00832,866.12,R,REDACTED PERSONAL DATA
http://statistics.data.gov.uk/doc/local-authority/00DA,Leeds City Council,Adult Social Care,Services For Older People Under 65 P/Dis,Transfer Payments,Personalised Budgets,627,12-Mar-14,1203-00833,2108.56,R,REDACTED PERSONAL DATA
http://statistics.data.gov.uk/doc/local-authority/00DA,Leeds City Council,City Development, Libraries  Arts & Heritage,Supplies and Services,Other Hired And Contracted Services,265,11-Mar-14,1203-00834,500,R,REDACTED PERSONAL DATA
http://statistics.data.gov.uk/doc/local-authority/00DA,Leeds City Council,Central & Corporate,Public Health,Third Party Payments,Public Health Commissioned Services,526,04-Mar-14,1203-00835,1449.65,R,Andrew Tylee
http://statistics.data.gov.uk/doc/local-authority/00DA,Leeds City Council,Childrens Services,Learning Skills & Universal,Supplies and Services,Bought In Professional Services,277,07-Mar-14,1203-00836,250,R,Andy Craven-Griffiths
http://statistics.data.gov.uk/doc/local-authority/00DA,Leeds City Council,Adult Social Care,Services For Older People Under 65 P/Dis,Transfer Payments,Personalised Budgets,627,13-Mar-14,1203-00837,199.36,R,REDACTED PERSONAL DATA
http://statistics.data.gov.uk/doc/local-authority/00DA,Leeds City Council as Accountable Body,Social Services Pooled Budgets,Jcs For People With Learning Disabilitie,Transfer Payments,Direct Payments,626,12-Mar-14,1203-00838,433.6,R,REDACTED PERSONAL DATA
http://statistics.data.gov.uk/doc/local-authority/00DA,Leeds City Council,City Development,Economic Development,Supplies and Services,Other Hired And Contracted Services,265,31-Mar-14,1203-00839,34.48,R,Angel Springs Ltd
http://statistics.data.gov.uk/doc/local-authority/00DA,Leeds City Council,Environment & Housing,Community Safety,Supplies and Services,Other Hired And Contracted Services,265,04-Mar-14,1203-00840,52.82,R,Angel Springs Ltd
http://statistics.data.gov.uk/doc/local-authority/00DA,Leeds City Council,Adult Social Care,Services For Older People Under 65 P/Dis,Transfer Payments,Personalised Budgets,627,12-Mar-14,1203-00841,567,R,REDACTED PERSONAL DATA
http://statistics.data.gov.uk/doc/local-authority/00DA,Leeds City Council,Adult Social Care,Services For Older People Under 65 P/Dis,Transfer Payments,Personalised Budgets,627,12-Mar-14,1203-00842,476.16,R,REDACTED PERSONAL DATA
http://statistics.data.gov.uk/doc/local-authority/00DA,Leeds City Council as Accountable Body,Social Services Pooled Budgets,Jcs For People With Learning Disabilitie,Transfer Payments,Direct Payments,626,12-Mar-14,1203-00843,687.48,R,REDACTED PERSONAL DATA
http://statistics.data.gov.uk/doc/local-authority/00DA,Leeds City Council,Childrens Services,Learning Skills & Universal,Third Party Payments,Services Rendered By Other Organisations,511,21-Mar-14,1203-00844,480.15,R,Angela Mcveigh
http://statistics.data.gov.uk/doc/local-authority/00DA,Leeds City Council,Childrens Services,Safeguarding Targeted & Specialist,Employees,Damage To Employees Effects,55,13-Mar-14,1203-00845,393.6,R,REDACTED PERSONAL DATA
http://statistics.data.gov.uk/doc/local-authority/00DA,Leeds City Council,Adult Social Care,Services For Older People Under 65 P/Dis,Transfer Payments,Personalised Budgets,627,12-Mar-14,1203-00846,531.68,R,REDACTED PERSONAL DATA
http://statistics.data.gov.uk/doc/local-authority/00DA,Leeds City Council,Central & Corporate Functions,Executive Support  ,Supplies and Services,Schools Examination Entry Fees,269,17-Feb-14,1203-00847,280,R,Angelica
http://statistics.data.gov.uk/doc/local-authority/00DA,Leeds City Council,Adult Social Care,Services For Adults Under 65 Mental/Dis,Third Party Payments,Home Care,568,27-Mar-14,1203-00848,912,R,Angels Home Care Services
http://statistics.data.gov.uk/doc/local-authority/00DA,Leeds City Council,Adult Social Care,Services For Older People - 65 And Over,Third Party Payments,Home Care,568,27-Mar-14,1203-00849,2198,R,Angels Home Care Services
http://statistics.data.gov.uk/doc/local-authority/00DA,Leeds City Council,Adult Social Care,Services For Older People - 65 And Over,Third Party Payments,Home Care,568,27-Mar-14,1203-00850,2382.33,R,Angels Home Care Services
http://statistics.data.gov.uk/doc/local-authority/00DA,Leeds City Council,Adult Social Care,Services For Older People - 65 And Over,Third Party Payments,Home Care,568,27-Mar-14,1203-00851,266,R,Angels Home Care Services
http://statistics.data.gov.uk/doc/local-authority/00DA,Leeds City Council,Adult Social Care,Services For Older People - 65 And Over,Third Party Payments,Home Care,568,27-Mar-14,1203-00852,1882,R,Angels Home Care Services
http://statistics.data.gov.uk/doc/local-authority/00DA,Leeds City Council,Adult Social Care,Services For Older People - 65 And Over,Third Party Payments,Home Care,568,27-Mar-14,1203-00853,435.6,R,Angels Home Care Services
http://statistics.data.gov.uk/doc/local-authority/00DA,Leeds City Council,Adult Social Care,Services For Older People - 65 And Over,Third Party Payments,Home Care,568,27-Mar-14,1203-00854,3412.36,R,Angels Home Care Services
http://statistics.data.gov.uk/doc/local-authority/00DA,Leeds City Council,Adult Social Care,Services For Older People Under 65 P/Dis,Third Party Payments,Home Care,568,27-Mar-14,1203-00855,1687,R,Angels Home Care Services
http://statistics.data.gov.uk/doc/local-authority/00DA,Leeds City Council,Childrens Services,Learning Skills & Universal,Third Party Payments,Services Rendered By Other Organisations,511,21-Mar-14,1203-00856,2385,R,Angels Nursery
http://statistics.data.gov.uk/doc/local-authority/00DA,Leeds City Council,Childrens Services,Learning Skills & Universal,Third Party Payments,Services Rendered By Other Organisations,511,21-Mar-14,1203-00857,582,R,Angels Nursery
http://statistics.data.gov.uk/doc/local-authority/00DA,Leeds City Council,City Development, Libraries  Arts & Heritage,Supplies and Services,Other Hired And Contracted Services,265,07-Mar-14,1203-00858,64.45,R,Anglo Brands Ltd
http://statistics.data.gov.uk/doc/local-authority/00DA,Leeds City Council,City Development, Libraries  Arts & Heritage,Supplies and Services,Operational Materials,205,07-Mar-14,1203-00859,291.33,R,Anglo Brands Ltd
http://statistics.data.gov.uk/doc/local-authority/00DA,Leeds City Council,City Development, Libraries  Arts & Heritage,Supplies and Services,Operational Furniture And Equipment,203,07-Mar-14,1203-00860,499.5,R,Anglo Brands Ltd
http://statistics.data.gov.uk/doc/local-authority/00DA,Leeds City Council,City Development,Libraries  Arts & Heritage  ,Supplies and Services,Teaching Materials,202,17-Feb-14,1203-00861,35.44,R,Anglo Brands Ltd
http://statistics.data.gov.uk/doc/local-authority/00DA,Leeds City Council,Adult Social Care,Services For Older People Under 65 P/Dis,Transfer Payments,Personalised Budgets,627,12-Mar-14,1203-00862,438.64,R,REDACTED PERSONAL DATA
http://statistics.data.gov.uk/doc/local-authority/00DA,Leeds City Council,Environment & Housing,Hra,Premises,General Maintenance,104,06-Mar-14,1203-00863,100,R,REDACTED PERSONAL DATA
http://statistics.data.gov.uk/doc/local-authority/00DA,Leeds City Council,Adult Social Care,Services For Older People Under 65 P/Dis,Transfer Payments,Direct Payments,626,12-Mar-14,1203-00864,642.24,R,REDACTED PERSONAL DATA
http://statistics.data.gov.uk/doc/local-authority/00DA,Leeds City Council,Childrens Services,Learning Skills & Universal,Supplies and Services,Bought In Professional Services,277,26-Mar-14,1203-00865,400,R,Ann Dix
http://statistics.data.gov.uk/doc/local-authority/00DA,Leeds City Council,Adult Social Care,Services For Older People Under 65 P/Dis,Transfer Payments,Personalised Budgets,627,12-Mar-14,1203-00866,1779,R,REDACTED PERSONAL DATA
http://statistics.data.gov.uk/doc/local-authority/00DA,Leeds City Council,Adult Social Care,Services For Older People - 65 And Over,Transfer Payments,Direct Payments,626,12-Mar-14,1203-00867,643.32,R,REDACTED PERSONAL DATA
http://statistics.data.gov.uk/doc/local-authority/00DA,Leeds City Council,Adult Social Care,Services For Older People Under 65 P/Dis,Transfer Payments,Direct Payments,626,12-Mar-14,1203-00868,1969.16,R,REDACTED PERSONAL DATA
http://statistics.data.gov.uk/doc/local-authority/00DA,Leeds City Council,Childrens Services,Safeguarding Targeted & Specialist,Employees,Agency Staff,8,06-Mar-14,1203-00869,1813.85,R,Ann Ward-Jarvis
http://statistics.data.gov.uk/doc/local-authority/00DA,Leeds City Council,Adult Social Care,Services For Older People Under 65 P/Dis,Transfer Payments,Personalised Budgets,627,12-Mar-14,1203-00870,893.88,R,REDACTED PERSONAL DATA
http://statistics.data.gov.uk/doc/local-authority/00DA,Leeds City Council,Adult Social Care,Services For Adults Under 65 Mental/Dis,Transfer Payments,Personalised Budgets,627,12-Mar-14,1203-00871,941.92,R,REDACTED PERSONAL DATA
http://statistics.data.gov.uk/doc/local-authority/00DA,Leeds City Council,Central & Corporate,Customer Services,Supplies and Services,Other Hired And Contracted Services,265,06-Mar-14,1203-00872,1256.75,R,Anna West
http://statistics.data.gov.uk/doc/local-authority/00DA,Leeds City Council,Adult Social Care,Services For Older People - 65 And Over,Transfer Payments,Personalised Budgets,627,12-Mar-14,1203-00873,98,R,REDACTED PERSONAL DATA
http://statistics.data.gov.uk/doc/local-authority/00DA,Leeds City Council,Adult Social Care,Services For Older People Under 65 P/Dis,Transfer Payments,Personalised Budgets,627,12-Mar-14,1203-00874,168.32,R,REDACTED PERSONAL DATA
http://statistics.data.gov.uk/doc/local-authority/00DA,Leeds City Council,Childrens Services,Safeguarding Targeted & Specialist,Transport,Public Transport Expenses,310,11-Mar-14,1203-00875,4.4,R,REDACTED PERSONAL DATA
http://statistics.data.gov.uk/doc/local-authority/00DA,Leeds City Council,Childrens Services,Safeguarding Targeted & Specialist,Supplies and Services,General Amenity For Clients/Residents,285,11-Mar-14,1203-00876,27.3,R,REDACTED PERSONAL DATA
http://statistics.data.gov.uk/doc/local-authority/00DA,Leeds City Council,Environment & Housing,Hra,Transport,Miscellaneous Transport Related Costs,324,20-Mar-14,1203-00877,45,R,REDACTED PERSONAL DATA
http://statistics.data.gov.uk/doc/local-authority/00DA,Leeds City Council,Adult Social Care,Other Generic Services,Third Party Payments,Fees To Carers,563,14-Mar-14,1203-00878,184.68,R,REDACTED PERSONAL DATA
http://statistics.data.gov.uk/doc/local-authority/00DA,Leeds City Council,Adult Social Care,Other Generic Services,Third Party Payments,Fees To Carers,563,14-Mar-14,1203-00879,148.66,R,REDACTED PERSONAL DATA
http://statistics.data.gov.uk/doc/local-authority/00DA,Leeds City Council,Adult Social Care,Other Generic Services,Third Party Payments,Fees To Carers,563,14-Mar-14,1203-00880,186.33,R,REDACTED PERSONAL DATA
http://statistics.data.gov.uk/doc/local-authority/00DA,Leeds City Council,Adult Social Care,Services For Older People Under 65 P/Dis,Transfer Payments,Personalised Budgets,627,12-Mar-14,1203-00881,998.92,R,REDACTED PERSONAL DATA
